Workbook

Sheet 1確認
A2: =名簿!A1-1+'1確認'!J2 -> 1101 | B2: =VLOOKUP($A2,名簿!$A:$C,3,0) -> 田中太郎 | J2: 1
A3: 1学期の 授業日数 | G3: 備考
A4: =VLOOKUP($A2,テーブル1[],'1学期'!C$1,0) -> 61 | G4: =VLOOKUP($A2,テーブル3[],'3学期'!I$1,0) -> 0
B5: 4月からの 出停・忌引 | C5: 4月からの留学日数 | D5: 4月からの 欠席日数 | E5: 4月からの 遅刻回数 | F5: 4月からの 早退回数 | G5: 備考 | H5: 理由
B6: =SUMIF(テーブル1[番号],'1確認'!$A2,テーブル1[1学期の出停忌引]) -> 0 | C6: =SUMIF(テーブル1[番号],'1確認'!$A2,テーブル1[1学期の留学日数])+SUMIF(テーブル2[番号],'1確認'!$A2,テーブル2[2学期の留学日数])+SUMIF(テーブル3[番号],'1確認'!$A2,テーブル3[3学期の留学日数]) -> 0 | D6: =SUMIF(テーブル1[番号],'1確認'!$A2,テーブル1[1学期の欠席日数]) -> 0 | E6: =SUMIF(テーブル1[番号],'1確認'!$A2,テーブル1[1学期の遅刻回数]) -> 0 | F6: =SUMIF(テーブル1[番号],'1確認'!$A2,テーブル1[1学期の早退回数]) -> 0 | G6: =SUMIF(テーブル1[1学期の出停忌引],'1確認'!$A2,テーブル1[備考])+SUMIF(テーブル2[2学期の出停忌引],'1確認'!$A2,テーブル2[備考])+SUMIF(テーブル3[3学期の出停忌引],'1確認'!$A2,テーブル3[備考]) -> 0 | H6: =VLOOKUP($A2,テーブル1[],'1学期'!J$1,0) -> 皆勤
A7: ※ここでいう「1学期」とは4月から1学期期末考査最終日までのこと
A9: =A2+8 -> 1109 | B9: =VLOOKUP($A9,名簿!$A:$C,3,0) -> 0
A10: 1学期の 授業日数 | G10: 備考
A11: =VLOOKUP($A9,テーブル1[],'1学期'!C$1,0) -> 61 | G11: =VLOOKUP($A9,テーブル3[],'3学期'!I$1,0) -> 0
B12: 4月からの 出停・忌引 | C12: 4月からの留学日数 | D12: 4月からの 欠席日数 | E12: 4月からの 遅刻回数 | F12: 4月からの 早退回数 | G12: 備考 | H12: 理由
B13: =SUMIF(テーブル1[番号],'1確認'!$A9,テーブル1[1学期の出停忌引]) -> 0 | C13: =SUMIF(テーブル1[番号],'1確認'!$A9,テーブル1[1学期の留学日数])+SUMIF(テーブル2[番号],'1確認'!$A9,テーブル2[2学期の留学日数])+SUMIF(テーブル3[番号],'1確認'!$A9,テーブル3[3学期の留学日数]) -> 0 | D13: =SUMIF(テーブル1[番号],'1確認'!$A9,テーブル1[1学期の欠席日数]) -> 6 | E13: =SUMIF(テーブル1[番号],'1確認'!$A9,テーブル1[1学期の遅刻回数]) -> 0 | F13: =SUMIF(テーブル1[番号],'1確認'!$A9,テーブル1[1学期の早退回数]) -> 0 | G13: =SUMIF(テーブル1[1学期の出停忌引],'1確認'!$A9,テーブル1[備考])+SUMIF(テーブル2[2学期の出停忌引],'1確認'!$A9,テーブル2[備考])+SUMIF(テーブル3[3学期の出停忌引],'1確認'!$A9,テーブル3[備考]) -> 0 | H13: =VLOOKUP($A9,テーブル1[],'1学期'!J$1,0) -> 体調不良5、発熱1
A14: ※ここでいう「1学期」とは4月から1学期期末考査最終日までのこと
A16: =A9+8 -> 1117 | B16: =VLOOKUP($A16,名簿!$A:$C,3,0) -> 0
A17: 1学期の 授業日数 | G17: 備考
A18: =VLOOKUP($A16,テーブル1[],'1学期'!C$1,0) -> 61 | G18: =VLOOKUP($A16,テーブル3[],'3学期'!I$1,0) -> 0
B19: 4月からの 出停・忌引 | C19: 4月からの留学日数 | D19: 4月からの 欠席日数 | E19: 4月からの 遅刻回数 | F19: 4月からの 早退回数 | G19: 備考 | H19: 理由
B20: =SUMIF(テーブル1[番号],'1確認'!$A16,テーブル1[1学期の出停忌引]) -> 0 | C20: =SUMIF(テーブル1[番号],'1確認'!$A16,テーブル1[1学期の留学日数])+SUMIF(テーブル2[番号],'1確認'!$A16,テーブル2[2学期の留学日数])+SUMIF(テーブル3[番号],'1確認'!$A16,テーブル3[3学期の留学日数]) -> 0 | D20: =SUMIF(テーブル1[番号],'1確認'!$A16,テーブル1[1学期の欠席日数]) -> 1 | E20: =SUMIF(テーブル1[番号],'1確認'!$A16,テーブル1[1学期の遅刻回数]) -> 0 | F20: =SUMIF(テーブル1[番号],'1確認'!$A16,テーブル1[1学期の早退回数]) -> 0 | G20: =SUMIF(テーブル1[1学期の出停忌引],'1確認'!$A16,テーブル1[備考])+SUMIF(テーブル2[2学期の出停忌引],'1確認'!$A16,テーブル2[備考])+SUMIF(テーブル3[3学期の出停忌引],'1確認'!$A16,テーブル3[備考]) -> 0 | H20: =VLOOKUP($A16,テーブル1[],'1学期'!J$1,0) -> 頭痛1
A21: ※ここでいう「1学期」とは4月から1学期期末考査最終日までのこと
A23: =A16+8 -> 1125 | B23: =VLOOKUP($A23,名簿!$A:$C,3,0) -> 0
A24: 1学期の 授業日数 | G24: 備考
A25: =VLOOKUP($A23,テーブル1[],'1学期'!C$1,0) -> 61 | G25: =VLOOKUP($A23,テーブル3[],'3学期'!I$1,0) -> 0
B26: 4月からの 出停・忌引 | C26: 4月からの留学日数 | D26: 4月からの 欠席日数 | E26: 4月からの 遅刻回数 | F26: 4月からの 早退回数 | G26: 備考 | H26: 理由
B27: =SUMIF(テーブル1[番号],'1確認'!$A23,テーブル1[1学期の出停忌引]) -> 0 | C27: =SUMIF(テーブル1[番号],'1確認'!$A23,テーブル1[1学期の留学日数])+SUMIF(テーブル2[番号],'1確認'!$A23,テーブル2[2学期の留学日数])+SUMIF(テーブル3[番号],'1確認'!$A23,テーブル3[3学期の留学日数]) -> 0 | D27: =SUMIF(テーブル1[番号],'1確認'!$A23,テーブル1[1学期の欠席日数]) -> 1 | E27: =SUMIF(テーブル1[番号],'1確認'!$A23,テーブル1[1学期の遅刻回数]) -> 1 | F27: =SUMIF(テーブル1[番号],'1確認'!$A23,テーブル1[1学期の早退回数]) -> 0 | G27: =SUMIF(テーブル1[1学期の出停忌引],'1確認'!$A23,テーブル1[備考])+SUMIF(テーブル2[2学期の出停忌引],'1確認'!$A23,テーブル2[備考])+SUMIF(テーブル3[3学期の出停忌引],'1確認'!$A23,テーブル3[備考]) -> 0 | H27: =VLOOKUP($A23,テーブル1[],'1学期'!J$1,0) -> 体調不良1
A28: ※ここでいう「1学期」とは4月から1学期期末考査最終日までのこと
A30: =A23+8 -> 1133 | B30: =VLOOKUP($A30,名簿!$A:$C,3,0) -> 0
A31: 1学期の 授業日数 | G31: 備考
A32: =VLOOKUP($A30,テーブル1[],'1学期'!C$1,0) -> 61 | G32: =VLOOKUP($A30,テーブル3[],'3学期'!I$1,0) -> 0
B33: 4月からの 出停・忌引 | C33: 4月からの留学日数 | D33: 4月からの 欠席日数 | E33: 4月からの 遅刻回数 | F33: 4月からの 早退回数 | G33: 備考 | H33: 理由
B34: =SUMIF(テーブル1[番号],'1確認'!$A30,テーブル1[1学期の出停忌引]) -> 7 | C34: =SUMIF(テーブル1[番号],'1確認'!$A30,テーブル1[1学期の留学日数])+SUMIF(テーブル2[番号],'1確認'!$A30,テーブル2[2学期の留学日数])+SUMIF(テーブル3[番号],'1確認'!$A30,テーブル3[3学期の留学日数]) -> 0 | D34: =SUMIF(テーブル1[番号],'1確認'!$A30,テーブル1[1学期の欠席日数]) -> 0 | E34: =SUMIF(テーブル1[番号],'1確認'!$A30,テーブル1[1学期の遅刻回数]) -> 1 | F34: =SUMIF(テーブル1[番号],'1確認'!$A30,テーブル1[1学期の早退回数]) -> 0 | G34: =SUMIF(テーブル1[1学期の出停忌引],'1確認'!$A30,テーブル1[備考])+SUMIF(テーブル2[2学期の出停忌引],'1確認'!$A30,テーブル2[備考])+SUMIF(テーブル3[3学期の出停忌引],'1確認'!$A30,テーブル3[備考]) -> 0 | H34: =VLOOKUP($A30,テーブル1[],'1学期'!J$1,0) -> 感染症予防のため7
A35: ※ここでいう「1学期」とは4月から1学期期末考査最終日までのこと

Sheet 2確認
A2: =3500+J2 -> 3508 | B2: =VLOOKUP($A2,名簿!$A:$C,3,0) ->  | J2: 8
A3: 2学期の 授業日数 | B3: 2学期の 出停・忌引 | C3: 3学期の 留学日数 | D3: 2学期の 欠席日数 | E3: 2学期の 遅刻回数 | F3: 2学期の 早退回数 | G3: 備考
A4: =VLOOKUP($A2,テーブル2[],'2学期'!C$1,0) ->  | B4: =VLOOKUP($A2,テーブル2[],'2学期'!D$1,0) ->  | C4: =VLOOKUP($A2,テーブル2[],'2学期'!E$1,0) ->  | D4: =VLOOKUP($A2,テーブル2[],'2学期'!F$1,0) ->  | E4: =VLOOKUP($A2,テーブル2[],'2学期'!G$1,0) ->  | F4: =VLOOKUP($A2,テーブル2[],'2学期'!H$1,0) ->  | G4: =VLOOKUP($A2,テーブル3[],'3学期'!I$1,0) -> 
B5: 4月からの 出停・忌引 | C5: 4月からの留学日数 | D5: 4月からの 欠席日数 | E5: 4月からの 遅刻回数 | F5: 4月からの 早退回数 | G5: 備考 | H5: 理由
B6: =SUMIF(テーブル1[番号],'2確認'!$A2,テーブル1[1学期の出停忌引])+SUMIF(テーブル2[番号],'2確認'!$A2,テーブル2[2学期の出停忌引]) -> 0 | C6: =SUMIF(テーブル1[番号],'2確認'!$A2,テーブル1[1学期の留学日数])+SUMIF(テーブル2[番号],'2確認'!$A2,テーブル2[2学期の留学日数])+SUMIF(テーブル3[番号],'2確認'!$A2,テーブル3[3学期の留学日数]) -> 0 | D6: =SUMIF(テーブル1[番号],'2確認'!$A2,テーブル1[1学期の欠席日数])+SUMIF(テーブル2[番号],'2確認'!$A2,テーブル2[2学期の欠席日数]) -> 0 | E6: =SUMIF(テーブル1[番号],'2確認'!$A2,テーブル1[1学期の遅刻回数])+SUMIF(テーブル2[番号],'2確認'!$A2,テーブル2[2学期の遅刻回数]) -> 0 | F6: =SUMIF(テーブル1[番号],'2確認'!$A2,テーブル1[1学期の早退回数])+SUMIF(テーブル2[番号],'2確認'!$A2,テーブル2[2学期の早退回数]) -> 0 | G6: =SUMIF(テーブル1[1学期の出停忌引],'2確認'!$A2,テーブル1[備考])+SUMIF(テーブル2[2学期の出停忌引],'2確認'!$A2,テーブル2[備考])+SUMIF(テーブル3[3学期の出停忌引],'2確認'!$A2,テーブル3[備考]) -> 0 | H6: =VLOOKUP($A2,テーブル2[],'2学期'!J$1,0) -> 
A7: ※ここでいう「2学期」とは1学期期末テストが終わった翌日から2学期期末テスト最終日までのこと
A9: =A2+8 -> 3516 | B9: =VLOOKUP($A9,名簿!$A:$C,3,0) -> 
A10: 2学期の 授業日数 | B10: 2学期の 出停・忌引 | C10: 3学期の 留学日数 | D10: 2学期の 欠席日数 | E10: 2学期の 遅刻回数 | F10: 2学期の 早退回数 | G10: 備考
A11: =VLOOKUP($A9,テーブル2[],'2学期'!C$1,0) ->  | B11: =VLOOKUP($A9,テーブル2[],'2学期'!D$1,0) ->  | C11: =VLOOKUP($A9,テーブル2[],'2学期'!E$1,0) ->  | D11: =VLOOKUP($A9,テーブル2[],'2学期'!F$1,0) ->  | E11: =VLOOKUP($A9,テーブル2[],'2学期'!G$1,0) ->  | F11: =VLOOKUP($A9,テーブル2[],'2学期'!H$1,0) ->  | G11: =VLOOKUP($A9,テーブル3[],'3学期'!I$1,0) -> 
B12: 4月からの 出停・忌引 | C12: 4月からの留学日数 | D12: 4月からの 欠席日数 | E12: 4月からの 遅刻回数 | F12: 4月からの 早退回数 | G12: 備考 | H12: 理由
B13: =SUMIF(テーブル1[番号],'2確認'!$A9,テーブル1[1学期の出停忌引])+SUMIF(テーブル2[番号],'2確認'!$A9,テーブル2[2学期の出停忌引]) -> 0 | C13: =SUMIF(テーブル1[番号],'2確認'!$A9,テーブル1[1学期の留学日数])+SUMIF(テーブル2[番号],'2確認'!$A9,テーブル2[2学期の留学日数])+SUMIF(テーブル3[番号],'2確認'!$A9,テーブル3[3学期の留学日数]) -> 0 | D13: =SUMIF(テーブル1[番号],'2確認'!$A9,テーブル1[1学期の欠席日数])+SUMIF(テーブル2[番号],'2確認'!$A9,テーブル2[2学期の欠席日数]) -> 0 | E13: =SUMIF(テーブル1[番号],'2確認'!$A9,テーブル1[1学期の遅刻回数])+SUMIF(テーブル2[番号],'2確認'!$A9,テーブル2[2学期の遅刻回数]) -> 0 | F13: =SUMIF(テーブル1[番号],'2確認'!$A9,テーブル1[1学期の早退回数])+SUMIF(テーブル2[番号],'2確認'!$A9,テーブル2[2学期の早退回数]) -> 0 | G13: =SUMIF(テーブル1[1学期の出停忌引],'2確認'!$A9,テーブル1[備考])+SUMIF(テーブル2[2学期の出停忌引],'2確認'!$A9,テーブル2[備考])+SUMIF(テーブル3[3学期の出停忌引],'2確認'!$A9,テーブル3[備考]) -> 0 | H13: =VLOOKUP($A9,テーブル2[],'2学期'!J$1,0) -> 
A14: ※ここでいう「2学期」とは1学期期末テストが終わった翌日から2学期期末テスト最終日までのこと
A16: =A9+8 -> 3524 | B16: =VLOOKUP($A16,名簿!$A:$C,3,0) -> 
A17: 2学期の 授業日数 | B17: 2学期の 出停・忌引 | C17: 3学期の 留学日数 | D17: 2学期の 欠席日数 | E17: 2学期の 遅刻回数 | F17: 2学期の 早退回数 | G17: 備考
A18: =VLOOKUP($A16,テーブル2[],'2学期'!C$1,0) ->  | B18: =VLOOKUP($A16,テーブル2[],'2学期'!D$1,0) ->  | C18: =VLOOKUP($A16,テーブル2[],'2学期'!E$1,0) ->  | D18: =VLOOKUP($A16,テーブル2[],'2学期'!F$1,0) ->  | E18: =VLOOKUP($A16,テーブル2[],'2学期'!G$1,0) ->  | F18: =VLOOKUP($A16,テーブル2[],'2学期'!H$1,0) ->  | G18: =VLOOKUP($A16,テーブル3[],'3学期'!I$1,0) -> 
B19: 4月からの 出停・忌引 | C19: 4月からの留学日数 | D19: 4月からの 欠席日数 | E19: 4月からの 遅刻回数 | F19: 4月からの 早退回数 | G19: 備考 | H19: 理由
B20: =SUMIF(テーブル1[番号],'2確認'!$A16,テーブル1[1学期の出停忌引])+SUMIF(テーブル2[番号],'2確認'!$A16,テーブル2[2学期の出停忌引]) -> 0 | C20: =SUMIF(テーブル1[番号],'2確認'!$A16,テーブル1[1学期の留学日数])+SUMIF(テーブル2[番号],'2確認'!$A16,テーブル2[2学期の留学日数])+SUMIF(テーブル3[番号],'2確認'!$A16,テーブル3[3学期の留学日数]) -> 0 | D20: =SUMIF(テーブル1[番号],'2確認'!$A16,テーブル1[1学期の欠席日数])+SUMIF(テーブル2[番号],'2確認'!$A16,テーブル2[2学期の欠席日数]) -> 0 | E20: =SUMIF(テーブル1[番号],'2確認'!$A16,テーブル1[1学期の遅刻回数])+SUMIF(テーブル2[番号],'2確認'!$A16,テーブル2[2学期の遅刻回数]) -> 0 | F20: =SUMIF(テーブル1[番号],'2確認'!$A16,テーブル1[1学期の早退回数])+SUMIF(テーブル2[番号],'2確認'!$A16,テーブル2[2学期の早退回数]) -> 0 | G20: =SUMIF(テーブル1[1学期の出停忌引],'2確認'!$A16,テーブル1[備考])+SUMIF(テーブル2[2学期の出停忌引],'2確認'!$A16,テーブル2[備考])+SUMIF(テーブル3[3学期の出停忌引],'2確認'!$A16,テーブル3[備考]) -> 0 | H20: =VLOOKUP($A16,テーブル2[],'2学期'!J$1,0) -> 
A21: ※ここでいう「2学期」とは1学期期末テストが終わった翌日から2学期期末テスト最終日までのこと
A23: =A16+8 -> 3532 | B23: =VLOOKUP($A23,名簿!$A:$C,3,0) -> 
A24: 2学期の 授業日数 | B24: 2学期の 出停・忌引 | C24: 3学期の 留学日数 | D24: 2学期の 欠席日数 | E24: 2学期の 遅刻回数 | F24: 2学期の 早退回数 | G24: 備考
A25: =VLOOKUP($A23,テーブル2[],'2学期'!C$1,0) ->  | B25: =VLOOKUP($A23,テーブル2[],'2学期'!D$1,0) ->  | C25: =VLOOKUP($A23,テーブル2[],'2学期'!E$1,0) ->  | D25: =VLOOKUP($A23,テーブル2[],'2学期'!F$1,0) ->  | E25: =VLOOKUP($A23,テーブル2[],'2学期'!G$1,0) ->  | F25: =VLOOKUP($A23,テーブル2[],'2学期'!H$1,0) ->  | G25: =VLOOKUP($A23,テーブル3[],'3学期'!I$1,0) -> 
B26: 4月からの 出停・忌引 | C26: 4月からの留学日数 | D26: 4月からの 欠席日数 | E26: 4月からの 遅刻回数 | F26: 4月からの 早退回数 | G26: 備考 | H26: 理由
B27: =SUMIF(テーブル1[番号],'2確認'!$A23,テーブル1[1学期の出停忌引])+SUMIF(テーブル2[番号],'2確認'!$A23,テーブル2[2学期の出停忌引]) -> 0 | C27: =SUMIF(テーブル1[番号],'2確認'!$A23,テーブル1[1学期の留学日数])+SUMIF(テーブル2[番号],'2確認'!$A23,テーブル2[2学期の留学日数])+SUMIF(テーブル3[番号],'2確認'!$A23,テーブル3[3学期の留学日数]) -> 0 | D27: =SUMIF(テーブル1[番号],'2確認'!$A23,テーブル1[1学期の欠席日数])+SUMIF(テーブル2[番号],'2確認'!$A23,テーブル2[2学期の欠席日数]) -> 0 | E27: =SUMIF(テーブル1[番号],'2確認'!$A23,テーブル1[1学期の遅刻回数])+SUMIF(テーブル2[番号],'2確認'!$A23,テーブル2[2学期の遅刻回数]) -> 0 | F27: =SUMIF(テーブル1[番号],'2確認'!$A23,テーブル1[1学期の早退回数])+SUMIF(テーブル2[番号],'2確認'!$A23,テーブル2[2学期の早退回数]) -> 0 | G27: =SUMIF(テーブル1[1学期の出停忌引],'2確認'!$A23,テーブル1[備考])+SUMIF(テーブル2[2学期の出停忌引],'2確認'!$A23,テーブル2[備考])+SUMIF(テーブル3[3学期の出停忌引],'2確認'!$A23,テーブル3[備考]) -> 0 | H27: =VLOOKUP($A23,テーブル2[],'2学期'!J$1,0) -> 
A28: ※ここでいう「2学期」とは1学期期末テストが終わった翌日から2学期期末テスト最終日までのこと
A30: =A23+8 -> 3540 | B30: =VLOOKUP($A30,名簿!$A:$C,3,0) -> 
A31: 2学期の 授業日数 | B31: 2学期の 出停・忌引 | C31: 3学期の 留学日数 | D31: 2学期の 欠席日数 | E31: 2学期の 遅刻回数 | F31: 2学期の 早退回数 | G31: 備考
A32: =VLOOKUP($A30,テーブル2[],'2学期'!C$1,0) ->  | B32: =VLOOKUP($A30,テーブル2[],'2学期'!D$1,0) ->  | C32: =VLOOKUP($A30,テーブル2[],'2学期'!E$1,0) ->  | D32: =VLOOKUP($A30,テーブル2[],'2学期'!F$1,0) ->  | E32: =VLOOKUP($A30,テーブル2[],'2学期'!G$1,0) ->  | F32: =VLOOKUP($A30,テーブル2[],'2学期'!H$1,0) ->  | G32: =VLOOKUP($A30,テーブル3[],'3学期'!I$1,0) -> 
B33: 4月からの 出停・忌引 | C33: 4月からの留学日数 | D33: 4月からの 欠席日数 | E33: 4月からの 遅刻回数 | F33: 4月からの 早退回数 | G33: 備考 | H33: 理由
B34: =SUMIF(テーブル1[番号],'2確認'!$A30,テーブル1[1学期の出停忌引])+SUMIF(テーブル2[番号],'2確認'!$A30,テーブル2[2学期の出停忌引]) -> 0 | C34: =SUMIF(テーブル1[番号],'2確認'!$A30,テーブル1[1学期の留学日数])+SUMIF(テーブル2[番号],'2確認'!$A30,テーブル2[2学期の留学日数])+SUMIF(テーブル3[番号],'2確認'!$A30,テーブル3[3学期の留学日数]) -> 0 | D34: =SUMIF(テーブル1[番号],'2確認'!$A30,テーブル1[1学期の欠席日数])+SUMIF(テーブル2[番号],'2確認'!$A30,テーブル2[2学期の欠席日数]) -> 0 | E34: =SUMIF(テーブル1[番号],'2確認'!$A30,テーブル1[1学期の遅刻回数])+SUMIF(テーブル2[番号],'2確認'!$A30,テーブル2[2学期の遅刻回数]) -> 0 | F34: =SUMIF(テーブル1[番号],'2確認'!$A30,テーブル1[1学期の早退回数])+SUMIF(テーブル2[番号],'2確認'!$A30,テーブル2[2学期の早退回数]) -> 0 | G34: =SUMIF(テーブル1[1学期の出停忌引],'2確認'!$A30,テーブル1[備考])+SUMIF(テーブル2[2学期の出停忌引],'2確認'!$A30,テーブル2[備考])+SUMIF(テーブル3[3学期の出停忌引],'2確認'!$A30,テーブル3[備考]) -> 0 | H34: =VLOOKUP($A30,テーブル2[],'2学期'!J$1,0) -> 
A35: ※ここでいう「2学期」とは1学期期末テストが終わった翌日から2学期期末テスト最終日までのこと

Sheet 3確認
A2: ='1確認'!A2 -> 1101 | B2: =VLOOKUP($A2,名簿!$A:$C,3,0) -> 田中太郎 | J2: 5
A3: 3学期の 授業日数 | B3: 3学期の 出停・忌引 | C3: 3学期の 留学日数 | D3: 3学期の 欠席日数 | E3: 3学期の 遅刻回数 | F3: 3学期の 早退回数 | G3: 備考
A4: =VLOOKUP($A2,テーブル3[],'3学期'!C$1,0) -> 56 | B4: =VLOOKUP($A2,テーブル3[],'3学期'!D$1,0) -> 0 | C4: =VLOOKUP($A2,テーブル3[],'3学期'!E$1,0) -> 0 | D4: =VLOOKUP($A2,テーブル3[],'3学期'!F$1,0) -> 0 | E4: =VLOOKUP($A2,テーブル3[],'3学期'!G$1,0) -> 0 | F4: =VLOOKUP($A2,テーブル3[],'3学期'!H$1,0) -> 0 | G4: =VLOOKUP($A2,テーブル3[],'3学期'!I$1,0) -> 0
B5: 4月からの 出停・忌引 | C5: 4月からの留学日数 | D5: 4月からの 欠席日数 | E5: 4月からの 遅刻回数 | F5: 4月からの 早退回数 | G5: 備考 | H5: 理由
B6: =SUMIF(テーブル1[番号],'3確認'!$A2,テーブル1[1学期の出停忌引])+SUMIF(テーブル2[番号],'3確認'!$A2,テーブル2[2学期の出停忌引])+SUMIF(テーブル3[番号],'3確認'!$A2,テーブル3[3学期の出停忌引]) -> 0 | C6: =SUMIF(テーブル1[番号],'3確認'!$A2,テーブル1[1学期の留学日数])+SUMIF(テーブル2[番号],'3確認'!$A2,テーブル2[2学期の留学日数])+SUMIF(テーブル3[番号],'3確認'!$A2,テーブル3[3学期の留学日数]) -> 0 | D6: =SUMIF(テーブル1[番号],'3確認'!$A2,テーブル1[1学期の欠席日数])+SUMIF(テーブル2[番号],'3確認'!$A2,テーブル2[2学期の欠席日数])+SUMIF(テーブル3[番号],'3確認'!$A2,テーブル3[3学期の欠席日数]) -> 0 | E6: =SUMIF(テーブル1[番号],'3確認'!$A2,テーブル1[1学期の遅刻回数])+SUMIF(テーブル2[番号],'3確認'!$A2,テーブル2[2学期の遅刻回数])+SUMIF(テーブル3[番号],'3確認'!$A2,テーブル3[3学期の遅刻回数]) -> 0 | F6: =SUMIF(テーブル1[番号],'3確認'!$A2,テーブル1[1学期の早退回数])+SUMIF(テーブル2[番号],'3確認'!$A2,テーブル2[2学期の早退回数])+SUMIF(テーブル3[番号],'3確認'!$A2,テーブル3[3学期の早退回数]) -> 0 | G6: =SUMIF(テーブル1[1学期の出停忌引],'3確認'!$A2,テーブル1[備考])+SUMIF(テーブル2[2学期の出停忌引],'3確認'!$A2,テーブル2[備考])+SUMIF(テーブル3[3学期の出停忌引],'3確認'!$A2,テーブル3[備考]) -> 0 | H6: =VLOOKUP($A2,テーブル3[],'3学期'!J$1,0) -> 皆勤
A7: ※ここでいう「3学期」とは2学期期末が終わった翌日から学年末テスト最終日までのこと
A9: =A2+8 -> 1109 | B9: =VLOOKUP($A9,名簿!$A:$C,3,0) -> 0
A10: 3学期の 授業日数 | B10: 3学期の 出停・忌引 | C10: 3学期の 留学日数 | D10: 3学期の 欠席日数 | E10: 3学期の 遅刻回数 | F10: 3学期の 早退回数 | G10: 備考
A11: =VLOOKUP($A9,テーブル3[],'3学期'!C$1,0) -> 56 | B11: =VLOOKUP($A9,テーブル3[],'3学期'!D$1,0) -> 0 | C11: =VLOOKUP($A9,テーブル3[],'3学期'!E$1,0) -> 0 | D11: =VLOOKUP($A9,テーブル3[],'3学期'!F$1,0) -> 0 | E11: =VLOOKUP($A9,テーブル3[],'3学期'!G$1,0) -> 0 | F11: =VLOOKUP($A9,テーブル3[],'3学期'!H$1,0) -> 0 | G11: =IF(VLOOKUP($A9,テーブル3[],'3学期'!I$1,0)="","",VLOOKUP($A9,テーブル3[],'3学期'!I$1,0)) -> 
B12: 4月からの 出停・忌引 | C12: 4月からの留学日数 | D12: 4月からの 欠席日数 | E12: 4月からの 遅刻回数 | F12: 4月からの 早退回数 | G12: 備考 | H12: 理由
B13: =SUMIF(テーブル1[番号],'3確認'!$A9,テーブル1[1学期の出停忌引])+SUMIF(テーブル2[番号],'3確認'!$A9,テーブル2[2学期の出停忌引])+SUMIF(テーブル3[番号],'3確認'!$A9,テーブル3[3学期の出停忌引]) -> 2 | C13: =SUMIF(テーブル1[番号],'3確認'!$A9,テーブル1[1学期の留学日数])+SUMIF(テーブル2[番号],'3確認'!$A9,テーブル2[2学期の留学日数])+SUMIF(テーブル3[番号],'3確認'!$A9,テーブル3[3学期の留学日数]) -> 0 | D13: =SUMIF(テーブル1[番号],'3確認'!$A9,テーブル1[1学期の欠席日数])+SUMIF(テーブル2[番号],'3確認'!$A9,テーブル2[2学期の欠席日数])+SUMIF(テーブル3[番号],'3確認'!$A9,テーブル3[3学期の欠席日数]) -> 10 | E13: =SUMIF(テーブル1[番号],'3確認'!$A9,テーブル1[1学期の遅刻回数])+SUMIF(テーブル2[番号],'3確認'!$A9,テーブル2[2学期の遅刻回数])+SUMIF(テーブル3[番号],'3確認'!$A9,テーブル3[3学期の遅刻回数]) -> 0 | F13: =SUMIF(テーブル1[番号],'3確認'!$A9,テーブル1[1学期の早退回数])+SUMIF(テーブル2[番号],'3確認'!$A9,テーブル2[2学期の早退回数])+SUMIF(テーブル3[番号],'3確認'!$A9,テーブル3[3学期の早退回数]) -> 0 | G13: =SUMIF(テーブル1[1学期の出停忌引],'3確認'!$A9,テーブル1[備考])+SUMIF(テーブル2[2学期の出停忌引],'3確認'!$A9,テーブル2[備考])+SUMIF(テーブル3[3学期の出停忌引],'3確認'!$A9,テーブル3[備考]) -> 0 | H13: =VLOOKUP($A9,テーブル3[],'3学期'!J$1,0) -> 体調不良7、発熱1、頭痛1、腹痛1、感染症予防のため2
A14: ※ここでいう「3学期」とは2学期期末が終わった翌日から学年末テスト最終日までのこと
A16: =A9+8 -> 1117 | B16: =VLOOKUP($A16,名簿!$A:$C,3,0) -> 0
A17: 3学期の 授業日数 | B17: 3学期の 出停・忌引 | C17: 3学期の 留学日数 | D17: 3学期の 欠席日数 | E17: 3学期の 遅刻回数 | F17: 3学期の 早退回数 | G17: 備考
A18: =VLOOKUP($A16,テーブル3[],'3学期'!C$1,0) -> 56 | B18: =VLOOKUP($A16,テーブル3[],'3学期'!D$1,0) -> 0 | C18: =VLOOKUP($A16,テーブル3[],'3学期'!E$1,0) -> 0 | D18: =VLOOKUP($A16,テーブル3[],'3学期'!F$1,0) -> 0 | E18: =VLOOKUP($A16,テーブル3[],'3学期'!G$1,0) -> 0 | F18: =VLOOKUP($A16,テーブル3[],'3学期'!H$1,0) -> 0 | G18: =IF(VLOOKUP($A16,テーブル3[],'3学期'!I$1,0)="","",VLOOKUP($A16,テーブル3[],'3学期'!I$1,0)) -> 
B19: 4月からの 出停・忌引 | C19: 4月からの留学日数 | D19: 4月からの 欠席日数 | E19: 4月からの 遅刻回数 | F19: 4月からの 早退回数 | G19: 備考 | H19: 理由
B20: =SUMIF(テーブル1[番号],'3確認'!$A16,テーブル1[1学期の出停忌引])+SUMIF(テーブル2[番号],'3確認'!$A16,テーブル2[2学期の出停忌引])+SUMIF(テーブル3[番号],'3確認'!$A16,テーブル3[3学期の出停忌引]) -> 1 | C20: =SUMIF(テーブル1[番号],'3確認'!$A16,テーブル1[1学期の留学日数])+SUMIF(テーブル2[番号],'3確認'!$A16,テーブル2[2学期の留学日数])+SUMIF(テーブル3[番号],'3確認'!$A16,テーブル3[3学期の留学日数]) -> 0 | D20: =SUMIF(テーブル1[番号],'3確認'!$A16,テーブル1[1学期の欠席日数])+SUMIF(テーブル2[番号],'3確認'!$A16,テーブル2[2学期の欠席日数])+SUMIF(テーブル3[番号],'3確認'!$A16,テーブル3[3学期の欠席日数]) -> 1 | E20: =SUMIF(テーブル1[番号],'3確認'!$A16,テーブル1[1学期の遅刻回数])+SUMIF(テーブル2[番号],'3確認'!$A16,テーブル2[2学期の遅刻回数])+SUMIF(テーブル3[番号],'3確認'!$A16,テーブル3[3学期の遅刻回数]) -> 0 | F20: =SUMIF(テーブル1[番号],'3確認'!$A16,テーブル1[1学期の早退回数])+SUMIF(テーブル2[番号],'3確認'!$A16,テーブル2[2学期の早退回数])+SUMIF(テーブル3[番号],'3確認'!$A16,テーブル3[3学期の早退回数]) -> 0 | G20: =SUMIF(テーブル1[1学期の出停忌引],'3確認'!$A16,テーブル1[備考])+SUMIF(テーブル2[2学期の出停忌引],'3確認'!$A16,テーブル2[備考])+SUMIF(テーブル3[3学期の出停忌引],'3確認'!$A16,テーブル3[備考]) -> 0 | H20: =VLOOKUP($A16,テーブル3[],'3学期'!J$1,0) -> 頭痛1、感染症予防のため6
A21: ※ここでいう「3学期」とは2学期期末が終わった翌日から学年末テスト最終日までのこと
A23: =A16+8 -> 1125 | B23: =VLOOKUP($A23,名簿!$A:$C,3,0) -> 0
A24: 3学期の 授業日数 | B24: 3学期の 出停・忌引 | C24: 3学期の 留学日数 | D24: 3学期の 欠席日数 | E24: 3学期の 遅刻回数 | F24: 3学期の 早退回数 | G24: 備考
A25: =VLOOKUP($A23,テーブル3[],'3学期'!C$1,0) -> 56 | B25: =VLOOKUP($A23,テーブル3[],'3学期'!D$1,0) -> 0 | C25: =VLOOKUP($A23,テーブル3[],'3学期'!E$1,0) -> 0 | D25: =VLOOKUP($A23,テーブル3[],'3学期'!F$1,0) -> 0 | E25: =VLOOKUP($A23,テーブル3[],'3学期'!G$1,0) -> 0 | F25: =VLOOKUP($A23,テーブル3[],'3学期'!H$1,0) -> 0 | G25: =IF(VLOOKUP($A23,テーブル3[],'3学期'!I$1,0)="","",VLOOKUP($A23,テーブル3[],'3学期'!I$1,0)) -> 
B26: 4月からの 出停・忌引 | C26: 4月からの留学日数 | D26: 4月からの 欠席日数 | E26: 4月からの 遅刻回数 | F26: 4月からの 早退回数 | G26: 備考 | H26: 理由
B27: =SUMIF(テーブル1[番号],'3確認'!$A23,テーブル1[1学期の出停忌引])+SUMIF(テーブル2[番号],'3確認'!$A23,テーブル2[2学期の出停忌引])+SUMIF(テーブル3[番号],'3確認'!$A23,テーブル3[3学期の出停忌引]) -> 0 | C27: =SUMIF(テーブル1[番号],'3確認'!$A23,テーブル1[1学期の留学日数])+SUMIF(テーブル2[番号],'3確認'!$A23,テーブル2[2学期の留学日数])+SUMIF(テーブル3[番号],'3確認'!$A23,テーブル3[3学期の留学日数]) -> 0 | D27: =SUMIF(テーブル1[番号],'3確認'!$A23,テーブル1[1学期の欠席日数])+SUMIF(テーブル2[番号],'3確認'!$A23,テーブル2[2学期の欠席日数])+SUMIF(テーブル3[番号],'3確認'!$A23,テーブル3[3学期の欠席日数]) -> 3 | E27: =SUMIF(テーブル1[番号],'3確認'!$A23,テーブル1[1学期の遅刻回数])+SUMIF(テーブル2[番号],'3確認'!$A23,テーブル2[2学期の遅刻回数])+SUMIF(テーブル3[番号],'3確認'!$A23,テーブル3[3学期の遅刻回数]) -> 4 | F27: =SUMIF(テーブル1[番号],'3確認'!$A23,テーブル1[1学期の早退回数])+SUMIF(テーブル2[番号],'3確認'!$A23,テーブル2[2学期の早退回数])+SUMIF(テーブル3[番号],'3確認'!$A23,テーブル3[3学期の早退回数]) -> 0 | G27: =SUMIF(テーブル1[1学期の出停忌引],'3確認'!$A23,テーブル1[備考])+SUMIF(テーブル2[2学期の出停忌引],'3確認'!$A23,テーブル2[備考])+SUMIF(テーブル3[3学期の出停忌引],'3確認'!$A23,テーブル3[備考]) -> 0 | H27: =VLOOKUP($A23,テーブル3[],'3学期'!J$1,0) -> 体調不良2、感染症予防のため1
A28: ※ここでいう「3学期」とは2学期期末が終わった翌日から学年末テスト最終日までのこと
A30: =A23+8 -> 1133 | B30: =VLOOKUP($A30,名簿!$A:$C,3,0) -> 0
A31: 3学期の 授業日数 | B31: 3学期の 出停・忌引 | C31: 3学期の 留学日数 | D31: 3学期の 欠席日数 | E31: 3学期の 遅刻回数 | F31: 3学期の 早退回数 | G31: 備考
A32: =VLOOKUP($A30,テーブル3[],'3学期'!C$1,0) -> 56 | B32: =VLOOKUP($A30,テーブル3[],'3学期'!D$1,0) -> 0 | C32: =VLOOKUP($A30,テーブル3[],'3学期'!E$1,0) -> 0 | D32: =VLOOKUP($A30,テーブル3[],'3学期'!F$1,0) -> 0 | E32: =VLOOKUP($A30,テーブル3[],'3学期'!G$1,0) -> 0 | F32: =VLOOKUP($A30,テーブル3[],'3学期'!H$1,0) -> 0 | G32: =IF(VLOOKUP($A30,テーブル3[],'3学期'!I$1,0)="","",VLOOKUP($A30,テーブル3[],'3学期'!I$1,0)) -> 
B33: 4月からの 出停・忌引 | C33: 4月からの留学日数 | D33: 4月からの 欠席日数 | E33: 4月からの 遅刻回数 | F33: 4月からの 早退回数 | G33: 備考 | H33: 理由
B34: =SUMIF(テーブル1[番号],'3確認'!$A30,テーブル1[1学期の出停忌引])+SUMIF(テーブル2[番号],'3確認'!$A30,テーブル2[2学期の出停忌引])+SUMIF(テーブル3[番号],'3確認'!$A30,テーブル3[3学期の出停忌引]) -> 7 | C34: =SUMIF(テーブル1[番号],'3確認'!$A30,テーブル1[1学期の留学日数])+SUMIF(テーブル2[番号],'3確認'!$A30,テーブル2[2学期の留学日数])+SUMIF(テーブル3[番号],'3確認'!$A30,テーブル3[3学期の留学日数]) -> 0 | D34: =SUMIF(テーブル1[番号],'3確認'!$A30,テーブル1[1学期の欠席日数])+SUMIF(テーブル2[番号],'3確認'!$A30,テーブル2[2学期の欠席日数])+SUMIF(テーブル3[番号],'3確認'!$A30,テーブル3[3学期の欠席日数]) -> 0 | E34: =SUMIF(テーブル1[番号],'3確認'!$A30,テーブル1[1学期の遅刻回数])+SUMIF(テーブル2[番号],'3確認'!$A30,テーブル2[2学期の遅刻回数])+SUMIF(テーブル3[番号],'3確認'!$A30,テーブル3[3学期の遅刻回数]) -> 2 | F34: =SUMIF(テーブル1[番号],'3確認'!$A30,テーブル1[1学期の早退回数])+SUMIF(テーブル2[番号],'3確認'!$A30,テーブル2[2学期の早退回数])+SUMIF(テーブル3[番号],'3確認'!$A30,テーブル3[3学期の早退回数]) -> 0 | G34: =SUMIF(テーブル1[1学期の出停忌引],'3確認'!$A30,テーブル1[備考])+SUMIF(テーブル2[2学期の出停忌引],'3確認'!$A30,テーブル2[備考])+SUMIF(テーブル3[3学期の出停忌引],'3確認'!$A30,テーブル3[備考]) -> 0 | H34: =VLOOKUP($A30,テーブル3[],'3学期'!J$1,0) -> 感染症予防のため7、祖父葬儀3
A35: ※ここでいう「3学期」とは2学期期末が終わった翌日から学年末テスト最終日までのこと

Sheet 1学期
A1: 1 | B1: 2 | C1: 3 | D1: 4 | E1: 5 | F1: 6 | G1: 7 | H1: 8 | I1: 9 | J1: 10
A2: 番号 | B2: 名前 | C2: 1学期の授業日数 | D2: 1学期の出停忌引 | E2: 1学期の留学日数 | F2: 1学期の欠席日数 | G2: 1学期の遅刻回数 | H2: 1学期の早退回数 | I2: 備考 | J2: 連絡 | L2: 感染症予防のため | M2: 感染症のため | N2: 祖母葬儀 | O2: 祖父葬儀 | P2: 入試 | Q2: 体調不良 | R2: 発熱 | S2: 風邪 | T2: 頭痛 | U2: 腹痛 | V2: 腰痛 | W2: 通院 | X2: 怪我 | Y2: 家事都合 | Z2: 自己都合 | AA2: 遅刻 早退 | AB2: 欠席合計 | AD2: 感染症予防のため | AE2: 感染症のため | AF2: 祖母葬儀 | AG2: 祖父葬儀 | AH2: 入試 | AI2: 体調不良 | AJ2: 発熱 | AK2: 風邪 | AL2: 頭痛 | AM2: 腹痛 | AN2: 腰痛 | AO2: 通院 | AP2: 怪我 | AQ2: 家事都合 | AR2: 自己都合 | AT2: 、あり
A3: =IF(名簿!$A1="","",名簿!$A1) -> 1101 | B3: =IFERROR(VLOOKUP($A3,名簿!$A:$C,3,0),"") -> 田中太郎 | C3: 61 | D3: 0 | E3: 0 | F3: 0 | G3: 0 | H3: 0 | J3: =IF(AT3="",IF('1学期'!AA3="あり","特記事項なし","皆勤"),IF(AND('1学期'!AA3="",COUNTBLANK(AI3:AQ3)=COUNTA($AI$2:$AQ$2)),"皆勤、"&LEFT(AT3,LEN(AT3)-1),LEFT(AT3,LEN(AT3)-1))) -> 皆勤 | AD3: =IF(L3="","",L$2&L3&"、") ->  | AE3: =IF(M3="","",M$2&M3&"、") ->  | AT3: =CONCATENATE(AI3,AJ3,AK3,AL3,AM3,AN3,AO3,AP3,AQ3,AR3,AD3,AE3,AF3,AG3,AH3) -> 
A4: =IF(名簿!$A2="","",名簿!$A2) -> 1102 | B4: =IFERROR(VLOOKUP($A4,名簿!$A:$C,3,0),"") -> 小林治郎 | C4: 61 | D4: 0 | E4: 0 | F4: 0 | G4: 0 | H4: 0 | J4: =IF(AT4="",IF('1学期'!AA4="あり","特記事項なし","皆勤"),IF(AND('1学期'!AA4="",COUNTBLANK(AI4:AQ4)=COUNTA($AI$2:$AQ$2)),"皆勤、"&LEFT(AT4,LEN(AT4)-1),LEFT(AT4,LEN(AT4)-1))) -> 皆勤 | AD4: =IF(L4="","",L$2&L4&"、") ->  | AE4: =IF(M4="","",M$2&M4&"、") ->  | AF4: =IF(N4="","",N$2&N4&"、") ->  | AG4: =IF(O4="","",O$2&O4&"、") ->  | AH4: =IF(P4="","",P$2&P4&"、") ->  | AI4: =IF(Q4="","",Q$2&Q4&"、") ->  | AJ4: =IF(R4="","",R$2&R4&"、") ->  | AK4: =IF(S4="","",S$2&S4&"、") ->  | AL4: =IF(T4="","",T$2&T4&"、") ->  | AM4: =IF(U4="","",U$2&U4&"、") ->  | AN4: =IF(V4="","",V$2&V4&"、") ->  | AO4: =IF(W4="","",W$2&W4&"、") ->  | AP4: =IF(X4="","",X$2&X4&"、") ->  | AQ4: =IF(Y4="","",Y$2&Y4&"、") ->  | AR4: =IF(Z4="","",Z$2&Z4&"、") ->  | AT4: =CONCATENATE(AI4,AJ4,AK4,AL4,AM4,AN4,AO4,AP4,AQ4,AR4,AD4,AE4,AF4,AG4,AH4) -> 
A5: =IF(名簿!$A3="","",名簿!$A3) -> 1103 | B5: =IFERROR(VLOOKUP($A5,名簿!$A:$C,3,0),"") -> 佐藤三郎 | C5: 61 | D5: 0 | E5: 0 | F5: 0 | G5: 0 | H5: 0 | J5: =IF(AT5="",IF('1学期'!AA5="あり","特記事項なし","皆勤"),IF(AND('1学期'!AA5="",COUNTBLANK(AI5:AQ5)=COUNTA($AI$2:$AQ$2)),"皆勤、"&LEFT(AT5,LEN(AT5)-1),LEFT(AT5,LEN(AT5)-1))) -> 皆勤
A6: =IF(名簿!$A4="","",名簿!$A4) -> 1104 | B6: =IFERROR(VLOOKUP($A6,名簿!$A:$C,3,0),"") -> 山田花子 | C6: 61 | D6: 0 | E6: 0 | F6: 11 | G6: 0 | H6: 0 | J6: =IF(AT6="",IF('1学期'!AA6="あり","特記事項なし","皆勤"),IF(AND('1学期'!AA6="",COUNTBLANK(AI6:AQ6)=COUNTA($AI$2:$AQ$2)),"皆勤、"&LEFT(AT6,LEN(AT6)-1),LEFT(AT6,LEN(AT6)-1))) -> 体調不良8、頭痛3 | Q6: 8 | T6: 3 | AI6: 体調不良8、 | AL6: 頭痛3、 | AT6: 体調不良8、頭痛3、
A7: =IF(名簿!$A5="","",名簿!$A5) -> 1105 | B7: =IFERROR(VLOOKUP($A7,名簿!$A:$C,3,0),"") -> 山本とし子 | C7: 61 | D7: 0 | E7: 0 | F7: 1 | G7: 1 | H7: 0 | J7: =IF(AT7="",IF('1学期'!AA7="あり","特記事項なし","皆勤"),IF(AND('1学期'!AA7="",COUNTBLANK(AI7:AQ7)=COUNTA($AI$2:$AQ$2)),"皆勤、"&LEFT(AT7,LEN(AT7)-1),LEFT(AT7,LEN(AT7)-1))) -> 体調不良1 | Q7: 1 | AA7: あり | AI7: 体調不良1、 | AT7: 体調不良1、
A8: =IF(名簿!$A6="","",名簿!$A6) -> 1106 | B8: =IFERROR(VLOOKUP($A8,名簿!$A:$C,3,0),"") -> 0 | C8: 61 | D8: 0 | E8: 0 | F8: 2 | G8: 3 | H8: 0 | J8: =IF(AT8="",IF('1学期'!AA8="あり","特記事項なし","皆勤"),IF(AND('1学期'!AA8="",COUNTBLANK(AI8:AQ8)=COUNTA($AI$2:$AQ$2)),"皆勤、"&LEFT(AT8,LEN(AT8)-1),LEFT(AT8,LEN(AT8)-1))) -> 体調不良1、腹痛1 | Q8: 1 | U8: 1 | AA8: あり | AI8: 体調不良1、 | AM8: 腹痛1、 | AT8: 体調不良1、腹痛1、
A9: =IF(名簿!$A7="","",名簿!$A7) -> 1107 | B9: =IFERROR(VLOOKUP($A9,名簿!$A:$C,3,0),"") -> 0 | C9: 61 | D9: 0 | E9: 0 | F9: 0 | G9: 0 | H9: 0 | J9: =IF(AT9="",IF('1学期'!AA9="あり","特記事項なし","皆勤"),IF(AND('1学期'!AA9="",COUNTBLANK(AI9:AQ9)=COUNTA($AI$2:$AQ$2)),"皆勤、"&LEFT(AT9,LEN(AT9)-1),LEFT(AT9,LEN(AT9)-1))) -> 皆勤
A10: =IF(名簿!$A8="","",名簿!$A8) -> 1108 | B10: =IFERROR(VLOOKUP($A10,名簿!$A:$C,3,0),"") -> 0 | C10: 61 | D10: 1 | E10: 0 | F10: 16 | G10: 0 | H10: 2 | J10: =IF(AT10="",IF('1学期'!AA10="あり","特記事項なし","皆勤"),IF(AND('1学期'!AA10="",COUNTBLANK(AI10:AQ10)=COUNTA($AI$2:$AQ$2)),"皆勤、"&LEFT(AT10,LEN(AT10)-1),LEFT(AT10,LEN(AT10)-1))) -> 体調不良12、発熱4、感染症予防のため1 | L10: 1 | Q10: 12 | R10: 4 | AA10: あり | AD10: 感染症予防のため1、 | AI10: 体調不良12、 | AJ10: 発熱4、 | AT10: 体調不良12、発熱4、感染症予防のため1、
A11: =IF(名簿!$A9="","",名簿!$A9) -> 1109 | B11: =IFERROR(VLOOKUP($A11,名簿!$A:$C,3,0),"") -> 0 | C11: 61 | D11: 0 | E11: 0 | F11: 6 | G11: 0 | H11: 0 | J11: =IF(AT11="",IF('1学期'!AA11="あり","特記事項なし","皆勤"),IF(AND('1学期'!AA11="",COUNTBLANK(AI11:AQ11)=COUNTA($AI$2:$AQ$2)),"皆勤、"&LEFT(AT11,LEN(AT11)-1),LEFT(AT11,LEN(AT11)-1))) -> 体調不良5、発熱1 | Q11: 5 | R11: 1 | AI11: 体調不良5、 | AJ11: 発熱1、 | AT11: 体調不良5、発熱1、
A12: =IF(名簿!$A10="","",名簿!$A10) -> 1110 | B12: =IFERROR(VLOOKUP($A12,名簿!$A:$C,3,0),"") -> 0 | C12: 61 | D12: 1 | E12: 0 | F12: 0 | G12: 0 | H12: 0 | J12: =IF(AT12="",IF('1学期'!AA12="あり","特記事項なし","皆勤"),IF(AND('1学期'!AA12="",COUNTBLANK(AI12:AQ12)=COUNTA($AI$2:$AQ$2)),"皆勤、"&LEFT(AT12,LEN(AT12)-1),LEFT(AT12,LEN(AT12)-1))) -> 皆勤、感染症予防のため1 | L12: 1 | AD12: 感染症予防のため1、 | AT12: 感染症予防のため1、
A13: =IF(名簿!$A11="","",名簿!$A11) -> 1111 | B13: =IFERROR(VLOOKUP($A13,名簿!$A:$C,3,0),"") -> 0 | C13: 61 | D13: 0 | E13: 0 | F13: 0 | G13: 3 | H13: 0 | J13: =IF(AT13="",IF('1学期'!AA13="あり","特記事項なし","皆勤"),IF(AND('1学期'!AA13="",COUNTBLANK(AI13:AQ13)=COUNTA($AI$2:$AQ$2)),"皆勤、"&LEFT(AT13,LEN(AT13)-1),LEFT(AT13,LEN(AT13)-1))) -> 特記事項なし | AA13: あり
A14: =IF(名簿!$A12="","",名簿!$A12) -> 1112 | B14: =IFERROR(VLOOKUP($A14,名簿!$A:$C,3,0),"") -> 0 | C14: 61 | D14: 0 | E14: 0 | F14: 0 | G14: 0 | H14: 0 | J14: =IF(AT14="",IF('1学期'!AA14="あり","特記事項なし","皆勤"),IF(AND('1学期'!AA14="",COUNTBLANK(AI14:AQ14)=COUNTA($AI$2:$AQ$2)),"皆勤、"&LEFT(AT14,LEN(AT14)-1),LEFT(AT14,LEN(AT14)-1))) -> 皆勤
A15: =IF(名簿!$A13="","",名簿!$A13) -> 1113 | B15: =IFERROR(VLOOKUP($A15,名簿!$A:$C,3,0),"") -> 0 | C15: 61 | D15: 0 | E15: 0 | F15: 0 | G15: 0 | H15: 0 | J15: =IF(AT15="",IF('1学期'!AA15="あり","特記事項なし","皆勤"),IF(AND('1学期'!AA15="",COUNTBLANK(AI15:AQ15)=COUNTA($AI$2:$AQ$2)),"皆勤、"&LEFT(AT15,LEN(AT15)-1),LEFT(AT15,LEN(AT15)-1))) -> 皆勤
A16: =IF(名簿!$A14="","",名簿!$A14) -> 1114 | B16: =IFERROR(VLOOKUP($A16,名簿!$A:$C,3,0),"") -> 0 | C16: 61 | D16: 0 | E16: 0 | F16: 1 | G16: 0 | H16: 0 | J16: =IF(AT16="",IF('1学期'!AA16="あり","特記事項なし","皆勤"),IF(AND('1学期'!AA16="",COUNTBLANK(AI16:AQ16)=COUNTA($AI$2:$AQ$2)),"皆勤、"&LEFT(AT16,LEN(AT16)-1),LEFT(AT16,LEN(AT16)-1))) -> 体調不良1 | Q16: 1 | AI16: 体調不良1、 | AT16: 体調不良1、
A17: =IF(名簿!$A15="","",名簿!$A15) -> 1115 | B17: =IFERROR(VLOOKUP($A17,名簿!$A:$C,3,0),"") -> 0 | C17: 61 | D17: 0 | E17: 0 | F17: 0 | G17: 0 | H17: 0 | J17: =IF(AT17="",IF('1学期'!AA17="あり","特記事項なし","皆勤"),IF(AND('1学期'!AA17="",COUNTBLANK(AI17:AQ17)=COUNTA($AI$2:$AQ$2)),"皆勤、"&LEFT(AT17,LEN(AT17)-1),LEFT(AT17,LEN(AT17)-1))) -> 皆勤
A18: =IF(名簿!$A16="","",名簿!$A16) -> 1116 | B18: =IFERROR(VLOOKUP($A18,名簿!$A:$C,3,0),"") -> 0 | C18: 61 | D18: 0 | E18: 0 | F18: 0 | G18: 0 | H18: 0 | J18: =IF(AT18="",IF('1学期'!AA18="あり","特記事項なし","皆勤"),IF(AND('1学期'!AA18="",COUNTBLANK(AI18:AQ18)=COUNTA($AI$2:$AQ$2)),"皆勤、"&LEFT(AT18,LEN(AT18)-1),LEFT(AT18,LEN(AT18)-1))) -> 皆勤
A19: =IF(名簿!$A17="","",名簿!$A17) -> 1117 | B19: =IFERROR(VLOOKUP($A19,名簿!$A:$C,3,0),"") -> 0 | C19: 61 | D19: 0 | E19: 0 | F19: 1 | G19: 0 | H19: 0 | J19: =IF(AT19="",IF('1学期'!AA19="あり","特記事項なし","皆勤"),IF(AND('1学期'!AA19="",COUNTBLANK(AI19:AQ19)=COUNTA($AI$2:$AQ$2)),"皆勤、"&LEFT(AT19,LEN(AT19)-1),LEFT(AT19,LEN(AT19)-1))) -> 頭痛1 | T19: 1 | AL19: 頭痛1、 | AT19: 頭痛1、
A20: =IF(名簿!$A18="","",名簿!$A18) -> 1118 | B20: =IFERROR(VLOOKUP($A20,名簿!$A:$C,3,0),"") -> 0 | C20: 61 | D20: 0 | E20: 0 | F20: 0 | G20: 0 | H20: 0 | J20: =IF(AT20="",IF('1学期'!AA20="あり","特記事項なし","皆勤"),IF(AND('1学期'!AA20="",COUNTBLANK(AI20:AQ20)=COUNTA($AI$2:$AQ$2)),"皆勤、"&LEFT(AT20,LEN(AT20)-1),LEFT(AT20,LEN(AT20)-1))) -> 皆勤
A21: =IF(名簿!$A19="","",名簿!$A19) -> 1119 | B21: =IFERROR(VLOOKUP($A21,名簿!$A:$C,3,0),"") -> 0 | C21: 61 | D21: 0 | E21: 0 | F21: 0 | G21: 0 | H21: 0 | J21: =IF(AT21="",IF('1学期'!AA21="あり","特記事項なし","皆勤"),IF(AND('1学期'!AA21="",COUNTBLANK(AI21:AQ21)=COUNTA($AI$2:$AQ$2)),"皆勤、"&LEFT(AT21,LEN(AT21)-1),LEFT(AT21,LEN(AT21)-1))) -> 皆勤
A22: =IF(名簿!$A20="","",名簿!$A20) -> 1120 | B22: =IFERROR(VLOOKUP($A22,名簿!$A:$C,3,0),"") -> 0 | C22: 61 | D22: 0 | E22: 0 | F22: 22 | G22: 4 | H22: 1 | J22: =IF(AT22="",IF('1学期'!AA22="あり","特記事項なし","皆勤"),IF(AND('1学期'!AA22="",COUNTBLANK(AI22:AQ22)=COUNTA($AI$2:$AQ$2)),"皆勤、"&LEFT(AT22,LEN(AT22)-1),LEFT(AT22,LEN(AT22)-1))) -> 体調不良14、発熱4、頭痛2、腹痛2 | Q22: 14 | R22: 4 | T22: 2 | U22: 2 | AA22: あり | AI22: 体調不良14、 | AJ22: 発熱4、 | AL22: 頭痛2、 | AM22: 腹痛2、 | AT22: 体調不良14、発熱4、頭痛2、腹痛2、
A23: =IF(名簿!$A21="","",名簿!$A21) -> 1121 | B23: =IFERROR(VLOOKUP($A23,名簿!$A:$C,3,0),"") -> 0 | C23: 61 | D23: 0 | E23: 0 | F23: 2 | G23: 0 | H23: 0 | J23: =IF(AT23="",IF('1学期'!AA23="あり","特記事項なし","皆勤"),IF(AND('1学期'!AA23="",COUNTBLANK(AI23:AQ23)=COUNTA($AI$2:$AQ$2)),"皆勤、"&LEFT(AT23,LEN(AT23)-1),LEFT(AT23,LEN(AT23)-1))) -> 体調不良1、腹痛1 | Q23: 1 | U23: 1 | AI23: 体調不良1、 | AM23: 腹痛1、 | AT23: 体調不良1、腹痛1、
A24: =IF(名簿!$A22="","",名簿!$A22) -> 1122 | B24: =IFERROR(VLOOKUP($A24,名簿!$A:$C,3,0),"") -> 0 | C24: 61 | D24: 2 | E24: 0 | F24: 3 | G24: 6 | H24: 1 | J24: =IF(AT24="",IF('1学期'!AA24="あり","特記事項なし","皆勤"),IF(AND('1学期'!AA24="",COUNTBLANK(AI24:AQ24)=COUNTA($AI$2:$AQ$2)),"皆勤、"&LEFT(AT24,LEN(AT24)-1),LEFT(AT24,LEN(AT24)-1))) -> 体調不良2、発熱1、感染症予防のため2 | L24: 2 | Q24: 2 | R24: 1 | AA24: あり | AD24: 感染症予防のため2、 | AI24: 体調不良2、 | AJ24: 発熱1、 | AT24: 体調不良2、発熱1、感染症予防のため2、
A25: =IF(名簿!$A23="","",名簿!$A23) -> 1123 | B25: =IFERROR(VLOOKUP($A25,名簿!$A:$C,3,0),"") -> 0 | C25: 61 | D25: 0 | E25: 0 | F25: 0 | G25: 0 | H25: 0 | J25: =IF(AT25="",IF('1学期'!AA25="あり","特記事項なし","皆勤"),IF(AND('1学期'!AA25="",COUNTBLANK(AI25:AQ25)=COUNTA($AI$2:$AQ$2)),"皆勤、"&LEFT(AT25,LEN(AT25)-1),LEFT(AT25,LEN(AT25)-1))) -> 皆勤
A26: =IF(名簿!$A24="","",名簿!$A24) -> 1124 | B26: =IFERROR(VLOOKUP($A26,名簿!$A:$C,3,0),"") -> 0 | C26: 61 | D26: 0 | E26: 0 | F26: 0 | G26: 0 | H26: 0 | J26: =IF(AT26="",IF('1学期'!AA26="あり","特記事項なし","皆勤"),IF(AND('1学期'!AA26="",COUNTBLANK(AI26:AQ26)=COUNTA($AI$2:$AQ$2)),"皆勤、"&LEFT(AT26,LEN(AT26)-1),LEFT(AT26,LEN(AT26)-1))) -> 皆勤
A27: =IF(名簿!$A25="","",名簿!$A25) -> 1125 | B27: =IFERROR(VLOOKUP($A27,名簿!$A:$C,3,0),"") -> 0 | C27: 61 | D27: 0 | E27: 0 | F27: 1 | G27: 1 | H27: 0 | J27: =IF(AT27="",IF('1学期'!AA27="あり","特記事項なし","皆勤"),IF(AND('1学期'!AA27="",COUNTBLANK(AI27:AQ27)=COUNTA($AI$2:$AQ$2)),"皆勤、"&LEFT(AT27,LEN(AT27)-1),LEFT(AT27,LEN(AT27)-1))) -> 体調不良1 | Q27: 1 | AA27: あり | AI27: 体調不良1、 | AT27: 体調不良1、
A28: =IF(名簿!$A26="","",名簿!$A26) -> 1126 | B28: =IFERROR(VLOOKUP($A28,名簿!$A:$C,3,0),"") -> 0 | C28: 61 | D28: 0 | E28: 0 | F28: 32 | G28: 7 | H28: 0 | J28: =IF(AT28="",IF('1学期'!AA28="あり","特記事項なし","皆勤"),IF(AND('1学期'!AA28="",COUNTBLANK(AI28:AQ28)=COUNTA($AI$2:$AQ$2)),"皆勤、"&LEFT(AT28,LEN(AT28)-1),LEFT(AT28,LEN(AT28)-1))) -> 体調不良32 | Q28: 32 | AA28: あり | AI28: 体調不良32、 | AT28: 体調不良32、
A29: =IF(名簿!$A27="","",名簿!$A27) -> 1127 | B29: =IFERROR(VLOOKUP($A29,名簿!$A:$C,3,0),"") -> 0 | C29: 61 | D29: 0 | E29: 0 | F29: 8 | G29: 4 | H29: 0 | J29: =IF(AT29="",IF('1学期'!AA29="あり","特記事項なし","皆勤"),IF(AND('1学期'!AA29="",COUNTBLANK(AI29:AQ29)=COUNTA($AI$2:$AQ$2)),"皆勤、"&LEFT(AT29,LEN(AT29)-1),LEFT(AT29,LEN(AT29)-1))) -> 体調不良7、発熱1 | Q29: 7 | R29: 1 | AA29: あり | AI29: 体調不良7、 | AJ29: 発熱1、 | AT29: 体調不良7、発熱1、
A30: =IF(名簿!$A28="","",名簿!$A28) -> 1128 | B30: =IFERROR(VLOOKUP($A30,名簿!$A:$C,3,0),"") -> 0 | C30: 61 | D30: 0 | E30: 0 | F30: 2 | G30: 0 | H30: 0 | J30: =IF(AT30="",IF('1学期'!AA30="あり","特記事項なし","皆勤"),IF(AND('1学期'!AA30="",COUNTBLANK(AI30:AQ30)=COUNTA($AI$2:$AQ$2)),"皆勤、"&LEFT(AT30,LEN(AT30)-1),LEFT(AT30,LEN(AT30)-1))) -> 頭痛2 | T30: 2 | AL30: 頭痛2、 | AT30: 頭痛2、
A31: =IF(名簿!$A29="","",名簿!$A29) -> 1129 | B31: =IFERROR(VLOOKUP($A31,名簿!$A:$C,3,0),"") -> 0 | C31: 61 | D31: 0 | E31: 0 | F31: 0 | G31: 0 | H31: 0 | J31: =IF(AT31="",IF('1学期'!AA31="あり","特記事項なし","皆勤"),IF(AND('1学期'!AA31="",COUNTBLANK(AI31:AQ31)=COUNTA($AI$2:$AQ$2)),"皆勤、"&LEFT(AT31,LEN(AT31)-1),LEFT(AT31,LEN(AT31)-1))) -> 皆勤
A32: =IF(名簿!$A30="","",名簿!$A30) -> 1130 | B32: =IFERROR(VLOOKUP($A32,名簿!$A:$C,3,0),"") -> 0 | C32: 61 | D32: 0 | E32: 0 | F32: 0 | G32: 0 | H32: 0 | J32: =IF(AT32="",IF('1学期'!AA32="あり","特記事項なし","皆勤"),IF(AND('1学期'!AA32="",COUNTBLANK(AI32:AQ32)=COUNTA($AI$2:$AQ$2)),"皆勤、"&LEFT(AT32,LEN(AT32)-1),LEFT(AT32,LEN(AT32)-1))) -> 皆勤
A33: =IF(名簿!$A31="","",名簿!$A31) -> 1131 | B33: =IFERROR(VLOOKUP($A33,名簿!$A:$C,3,0),"") -> 0 | C33: 61 | D33: 2 | E33: 0 | F33: 0 | G33: 0 | H33: 0 | J33: =IF(AT33="",IF('1学期'!AA33="あり","特記事項なし","皆勤"),IF(AND('1学期'!AA33="",COUNTBLANK(AI33:AQ33)=COUNTA($AI$2:$AQ$2)),"皆勤、"&LEFT(AT33,LEN(AT33)-1),LEFT(AT33,LEN(AT33)-1))) -> 皆勤、感染症予防のため2 | L33: 2 | AD33: 感染症予防のため2、 | AT33: 感染症予防のため2、
A34: =IF(名簿!$A32="","",名簿!$A32) -> 1132 | B34: =IFERROR(VLOOKUP($A34,名簿!$A:$C,3,0),"") -> 0 | C34: 61 | D34: 0 | E34: 0 | F34: 0 | G34: 0 | H34: 0 | J34: =IF(AT34="",IF('1学期'!AA34="あり","特記事項なし","皆勤"),IF(AND('1学期'!AA34="",COUNTBLANK(AI34:AQ34)=COUNTA($AI$2:$AQ$2)),"皆勤、"&LEFT(AT34,LEN(AT34)-1),LEFT(AT34,LEN(AT34)-1))) -> 皆勤
A35: =IF(名簿!$A33="","",名簿!$A33) -> 1133 | B35: =IFERROR(VLOOKUP($A35,名簿!$A:$C,3,0),"") -> 0 | C35: 61 | D35: 7 | E35: 0 | F35: 0 | G35: 1 | H35: 0 | J35: =IF(AT35="",IF('1学期'!AA35="あり","特記事項なし","皆勤"),IF(AND('1学期'!AA35="",COUNTBLANK(AI35:AQ35)=COUNTA($AI$2:$AQ$2)),"皆勤、"&LEFT(AT35,LEN(AT35)-1),LEFT(AT35,LEN(AT35)-1))) -> 感染症予防のため7 | L35: 7 | AA35: あり | AD35: 感染症予防のため7、 | AT35: 感染症予防のため7、
A36: =IF(名簿!$A34="","",名簿!$A34) -> 1134 | B36: =IFERROR(VLOOKUP($A36,名簿!$A:$C,3,0),"") -> 0 | C36: 61 | D36: 0 | E36: 0 | F36: 0 | G36: 0 | H36: 0 | J36: =IF(AT36="",IF('1学期'!AA36="あり","特記事項なし","皆勤"),IF(AND('1学期'!AA36="",COUNTBLANK(AI36:AQ36)=COUNTA($AI$2:$AQ$2)),"皆勤、"&LEFT(AT36,LEN(AT36)-1),LEFT(AT36,LEN(AT36)-1))) -> 皆勤
A37: =IF(名簿!$A35="","",名簿!$A35) -> 1135 | B37: =IFERROR(VLOOKUP($A37,名簿!$A:$C,3,0),"") -> 0 | C37: 61 | D37: 0 | E37: 0 | F37: 1 | G37: 1 | H37: 0 | J37: =IF(AT37="",IF('1学期'!AA37="あり","特記事項なし","皆勤"),IF(AND('1学期'!AA37="",COUNTBLANK(AI37:AQ37)=COUNTA($AI$2:$AQ$2)),"皆勤、"&LEFT(AT37,LEN(AT37)-1),LEFT(AT37,LEN(AT37)-1))) -> 体調不良1 | Q37: 1 | AA37: あり | AI37: 体調不良1、 | AT37: 体調不良1、
A38: =IF(名簿!$A36="","",名簿!$A36) -> 1136 | B38: =IFERROR(VLOOKUP($A38,名簿!$A:$C,3,0),"") -> 0 | D38: 0 | E38: 0 | F38: 0 | G38: 0 | H38: 0 | J38: =IF(AT38="",IF('1学期'!AA38="あり","特記事項なし","皆勤"),IF(AND('1学期'!AA38="",COUNTBLANK(AI38:AQ38)=COUNTA($AI$2:$AQ$2)),"皆勤、"&LEFT(AT38,LEN(AT38)-1),LEFT(AT38,LEN(AT38)-1))) -> 皆勤
A39: =IF(名簿!$A37="","",名簿!$A37) -> 1137 | B39: =IFERROR(VLOOKUP($A39,名簿!$A:$C,3,0),"") -> 0 | D39: 0 | E39: 0 | F39: 0 | G39: 0 | H39: 0 | J39: =IF(AT39="",IF('1学期'!AA39="あり","特記事項なし","皆勤"),IF(AND('1学期'!AA39="",COUNTBLANK(AI39:AQ39)=COUNTA($AI$2:$AQ$2)),"皆勤、"&LEFT(AT39,LEN(AT39)-1),LEFT(AT39,LEN(AT39)-1))) -> 皆勤
A40: =IF(名簿!$A38="","",名簿!$A38) -> 1138 | B40: =IFERROR(VLOOKUP($A40,名簿!$A:$C,3,0),"") -> 0 | D40: 0 | E40: 0 | F40: 0 | G40: 0 | H40: 0 | J40: =IF(AT40="",IF('1学期'!AA40="あり","特記事項なし","皆勤"),IF(AND('1学期'!AA40="",COUNTBLANK(AI40:AQ40)=COUNTA($AI$2:$AQ$2)),"皆勤、"&LEFT(AT40,LEN(AT40)-1),LEFT(AT40,LEN(AT40)-1))) -> 皆勤
A41: =IF(名簿!$A39="","",名簿!$A39) -> 1139 | B41: =IFERROR(VLOOKUP($A41,名簿!$A:$C,3,0),"") -> 0 | D41: 0 | E41: 0 | F41: 0 | G41: 0 | H41: 0 | J41: =IF(AT41="",IF('1学期'!AA41="あり","特記事項なし","皆勤"),IF(AND('1学期'!AA41="",COUNTBLANK(AI41:AQ41)=COUNTA($AI$2:$AQ$2)),"皆勤、"&LEFT(AT41,LEN(AT41)-1),LEFT(AT41,LEN(AT41)-1))) -> 皆勤
A42: =IF(名簿!$A40="","",名簿!$A40) -> 1140 | B42: =IFERROR(VLOOKUP($A42,名簿!$A:$C,3,0),"") -> 0 | D42: 0 | E42: 0 | F42: 0 | G42: 0 | H42: 0 | J42: =IF(AT42="",IF('1学期'!AA42="あり","特記事項なし","皆勤"),IF(AND('1学期'!AA42="",COUNTBLANK(AI42:AQ42)=COUNTA($AI$2:$AQ$2)),"皆勤、"&LEFT(AT42,LEN(AT42)-1),LEFT(AT42,LEN(AT42)-1))) -> 皆勤
AB45: あり

Sheet 2学期
B1: 2 | C1: 3 | D1: 4 | E1: 5 | F1: 6 | G1: 7 | H1: 8 | I1: 9 | J1: 10
A2: 番号 | B2: 名前 | C2: 2学期の授業日数 | D2: 2学期の出停忌引 | E2: 2学期の留学日数 | F2: 2学期の欠席日数 | G2: 2学期の遅刻回数 | H2: 2学期の早退回数 | I2: 備考 | J2: 連絡 | L2: 感染症予防のため | M2: 感染症のため | N2: 祖母葬儀 | O2: 祖父葬儀 | P2: 入試 | Q2: 体調不良 | R2: 発熱 | S2: 風邪 | T2: 頭痛 | U2: 腹痛 | V2: 腰痛 | W2: 通院 | X2: 怪我 | Y2: 家事都合 | Z2: 自己都合 | AA2: 遅刻 早退 | AB2: 欠席合計 | AD2: 感染症予防のため | AE2: 感染症のため | AF2: 祖母葬儀 | AG2: 祖父葬儀 | AH2: 入試 | AI2: 体調不良 | AJ2: 発熱 | AK2: 風邪 | AL2: 頭痛 | AM2: 腹痛 | AN2: 腰痛 | AO2: 通院 | AP2: 怪我 | AQ2: 家事都合 | AR2: 自己都合 | AT2: 、あり
A3: =IF(名簿!$A1="","",名簿!$A1) -> 1101 | B3: =IFERROR(VLOOKUP($A3,名簿!$A:$C,3,0),"") -> 田中太郎 | C3: 72 | D3: 0 | E3: 0 | F3: 0 | G3: 0 | H3: 0 | J3: =IF(AT3="",IF(OR('1学期'!AA3="あり",'2学期'!AA3="あり"),"特記事項なし","皆勤"),IF(AND('1学期'!AA3="",'2学期'!AA3="",COUNTBLANK(AI3:AQ3)=COUNTA($AI$2:$AQ$2)),"皆勤、"&LEFT(AT3,LEN(AT3)-1),LEFT(AT3,LEN(AT3)-1))) -> 皆勤 | AD3: =IF(AND(L3="",'1学期'!L3=""),"",L$2&L3+'1学期'!L3&"、") ->  | AE3: =IF(AND(M3="",'1学期'!M3=""),"",M$2&M3+'1学期'!M3&"、") ->  | AF3: =IF(AND(N3="",'1学期'!N3=""),"",N$2&N3+'1学期'!N3&"、") ->  | AG3: =IF(AND(O3="",'1学期'!O3=""),"",O$2&O3+'1学期'!O3&"、") ->  | AH3: =IF(AND(P3="",'1学期'!P3=""),"",P$2&P3+'1学期'!P3&"、") ->  | AI3: =IF(AND(Q3="",'1学期'!Q3=""),"",Q$2&Q3+'1学期'!Q3&"、") ->  | AJ3: =IF(AND(R3="",'1学期'!R3=""),"",R$2&R3+'1学期'!R3&"、") ->  | AK3: =IF(AND(S3="",'1学期'!S3=""),"",S$2&S3+'1学期'!S3&"、") ->  | AL3: =IF(AND(T3="",'1学期'!T3=""),"",T$2&T3+'1学期'!T3&"、") ->  | AM3: =IF(AND(U3="",'1学期'!U3=""),"",U$2&U3+'1学期'!U3&"、") ->  | AN3: =IF(AND(V3="",'1学期'!V3=""),"",V$2&V3+'1学期'!V3&"、") ->  | AO3: =IF(AND(W3="",'1学期'!W3=""),"",W$2&W3+'1学期'!W3&"、") ->  | AP3: =IF(AND(X3="",'1学期'!X3=""),"",X$2&X3+'1学期'!X3&"、") ->  | AQ3: =IF(AND(Y3="",'1学期'!Y3=""),"",Y$2&Y3+'1学期'!Y3&"、") ->  | AR3: =IF(AND(Z3="",'1学期'!Z3=""),"",Z$2&Z3+'1学期'!Z3&"、") ->  | AT3: =CONCATENATE(AI3,AJ3,AK3,AL3,AM3,AN3,AO3,AP3,AQ3,AR3,AD3,AE3,AF3,AG3,AH3) -> 
A4: =IF(名簿!$A2="","",名簿!$A2) -> 1102 | B4: =IFERROR(VLOOKUP($A4,名簿!$A:$C,3,0),"") -> 小林治郎 | C4: 72 | D4: 0 | E4: 0 | F4: 0 | G4: 0 | H4: 0 | J4: =IF(AT4="",IF(OR('1学期'!AA4="あり",'2学期'!AA4="あり"),"特記事項なし","皆勤"),IF(AND('1学期'!AA4="",'2学期'!AA4="",COUNTBLANK(AI4:AQ4)=COUNTA($AI$2:$AQ$2)),"皆勤、"&LEFT(AT4,LEN(AT4)-1),LEFT(AT4,LEN(AT4)-1))) -> 皆勤 | AD4: =IF(AND(L4="",'1学期'!L4=""),"",L$2&L4+'1学期'!L4&"、") ->  | AE4: =IF(AND(M4="",'1学期'!M4=""),"",M$2&M4+'1学期'!M4&"、") ->  | AF4: =IF(AND(N4="",'1学期'!N4=""),"",N$2&N4+'1学期'!N4&"、") ->  | AG4: =IF(AND(O4="",'1学期'!O4=""),"",O$2&O4+'1学期'!O4&"、") ->  | AH4: =IF(AND(P4="",'1学期'!P4=""),"",P$2&P4+'1学期'!P4&"、") ->  | AI4: =IF(AND(Q4="",'1学期'!Q4=""),"",Q$2&Q4+'1学期'!Q4&"、") ->  | AJ4: =IF(AND(R4="",'1学期'!R4=""),"",R$2&R4+'1学期'!R4&"、") ->  | AK4: =IF(AND(S4="",'1学期'!S4=""),"",S$2&S4+'1学期'!S4&"、") ->  | AL4: =IF(AND(T4="",'1学期'!T4=""),"",T$2&T4+'1学期'!T4&"、") ->  | AM4: =IF(AND(U4="",'1学期'!U4=""),"",U$2&U4+'1学期'!U4&"、") ->  | AN4: =IF(AND(V4="",'1学期'!V4=""),"",V$2&V4+'1学期'!V4&"、") ->  | AO4: =IF(AND(W4="",'1学期'!W4=""),"",W$2&W4+'1学期'!W4&"、") ->  | AP4: =IF(AND(X4="",'1学期'!X4=""),"",X$2&X4+'1学期'!X4&"、") ->  | AQ4: =IF(AND(Y4="",'1学期'!Y4=""),"",Y$2&Y4+'1学期'!Y4&"、") ->  | AR4: =IF(AND(Z4="",'1学期'!Z4=""),"",Z$2&Z4+'1学期'!Z4&"、") ->  | AT4: =CONCATENATE(AI4,AJ4,AK4,AL4,AM4,AN4,AO4,AP4,AQ4,AR4,AD4,AE4,AF4,AG4,AH4) -> 
A5: =IF(名簿!$A3="","",名簿!$A3) -> 1103 | B5: =IFERROR(VLOOKUP($A5,名簿!$A:$C,3,0),"") -> 佐藤三郎 | C5: 72 | D5: 1 | E5: 0 | F5: 0 | G5: 0 | H5: 0 | J5: =IF(AT5="",IF(OR('1学期'!AA5="あり",'2学期'!AA5="あり"),"特記事項なし","皆勤"),IF(AND('1学期'!AA5="",'2学期'!AA5="",COUNTBLANK(AI5:AQ5)=COUNTA($AI$2:$AQ$2)),"皆勤、"&LEFT(AT5,LEN(AT5)-1),LEFT(AT5,LEN(AT5)-1))) -> 皆勤 | AD5: =IF(AND(L5="",'1学期'!L5=""),"",L$2&L5+'1学期'!L5&"、") ->  | AE5: =IF(AND(M5="",'1学期'!M5=""),"",M$2&M5+'1学期'!M5&"、") ->  | AF5: =IF(AND(N5="",'1学期'!N5=""),"",N$2&N5+'1学期'!N5&"、") ->  | AG5: =IF(AND(O5="",'1学期'!O5=""),"",O$2&O5+'1学期'!O5&"、") ->  | AH5: =IF(AND(P5="",'1学期'!P5=""),"",P$2&P5+'1学期'!P5&"、") ->  | AI5: =IF(AND(Q5="",'1学期'!Q5=""),"",Q$2&Q5+'1学期'!Q5&"、") ->  | AJ5: =IF(AND(R5="",'1学期'!R5=""),"",R$2&R5+'1学期'!R5&"、") ->  | AK5: =IF(AND(S5="",'1学期'!S5=""),"",S$2&S5+'1学期'!S5&"、") ->  | AL5: =IF(AND(T5="",'1学期'!T5=""),"",T$2&T5+'1学期'!T5&"、") ->  | AM5: =IF(AND(U5="",'1学期'!U5=""),"",U$2&U5+'1学期'!U5&"、") ->  | AN5: =IF(AND(V5="",'1学期'!V5=""),"",V$2&V5+'1学期'!V5&"、") ->  | AO5: =IF(AND(W5="",'1学期'!W5=""),"",W$2&W5+'1学期'!W5&"、") ->  | AP5: =IF(AND(X5="",'1学期'!X5=""),"",X$2&X5+'1学期'!X5&"、") ->  | AQ5: =IF(AND(Y5="",'1学期'!Y5=""),"",Y$2&Y5+'1学期'!Y5&"、") ->  | AR5: =IF(AND(Z5="",'1学期'!Z5=""),"",Z$2&Z5+'1学期'!Z5&"、") -> 
A6: =IF(名簿!$A4="","",名簿!$A4) -> 1104 | B6: =IFERROR(VLOOKUP($A6,名簿!$A:$C,3,0),"") -> 山田花子 | C6: 72 | D6: 3 | E6: 0 | F6: 1 | G6: 0 | H6: 0 | J6: =IF(AT6="",IF(OR('1学期'!AA6="あり",'2学期'!AA6="あり"),"特記事項なし","皆勤"),IF(AND('1学期'!AA6="",'2学期'!AA6="",COUNTBLANK(AI6:AQ6)=COUNTA($AI$2:$AQ$2)),"皆勤、"&LEFT(AT6,LEN(AT6)-1),LEFT(AT6,LEN(AT6)-1))) -> 体調不良9、頭痛3、感染症のため3 | M6: 3 | Q6: 1 | AD6: =IF(AND(L6="",'1学期'!L6=""),"",L$2&L6+'1学期'!L6&"、") ->  | AE6: =IF(AND(M6="",'1学期'!M6=""),"",M$2&M6+'1学期'!M6&"、") -> 感染症のため3、 | AF6: =IF(AND(N6="",'1学期'!N6=""),"",N$2&N6+'1学期'!N6&"、") ->  | AG6: =IF(AND(O6="",'1学期'!O6=""),"",O$2&O6+'1学期'!O6&"、") ->  | AH6: =IF(AND(P6="",'1学期'!P6=""),"",P$2&P6+'1学期'!P6&"、") ->  | AI6: =IF(AND(Q6="",'1学期'!Q6=""),"",Q$2&Q6+'1学期'!Q6&"、") -> 体調不良9、 | AJ6: =IF(AND(R6="",'1学期'!R6=""),"",R$2&R6+'1学期'!R6&"、") ->  | AK6: =IF(AND(S6="",'1学期'!S6=""),"",S$2&S6+'1学期'!S6&"、") ->  | AL6: =IF(AND(T6="",'1学期'!T6=""),"",T$2&T6+'1学期'!T6&"、") -> 頭痛3、 | AM6: =IF(AND(U6="",'1学期'!U6=""),"",U$2&U6+'1学期'!U6&"、") ->  | AN6: =IF(AND(V6="",'1学期'!V6=""),"",V$2&V6+'1学期'!V6&"、") ->  | AO6: =IF(AND(W6="",'1学期'!W6=""),"",W$2&W6+'1学期'!W6&"、") ->  | AP6: =IF(AND(X6="",'1学期'!X6=""),"",X$2&X6+'1学期'!X6&"、") ->  | AQ6: =IF(AND(Y6="",'1学期'!Y6=""),"",Y$2&Y6+'1学期'!Y6&"、") ->  | AR6: =IF(AND(Z6="",'1学期'!Z6=""),"",Z$2&Z6+'1学期'!Z6&"、") ->  | AT6: 体調不良9、頭痛3、感染症のため3、
A7: =IF(名簿!$A5="","",名簿!$A5) -> 1105 | B7: =IFERROR(VLOOKUP($A7,名簿!$A:$C,3,0),"") -> 山本とし子 | C7: 72 | D7: 2 | E7: 0 | F7: 1 | G7: 0 | H7: 0 | J7: =IF(AT7="",IF(OR('1学期'!AA7="あり",'2学期'!AA7="あり"),"特記事項なし","皆勤"),IF(AND('1学期'!AA7="",'2学期'!AA7="",COUNTBLANK(AI7:AQ7)=COUNTA($AI$2:$AQ$2)),"皆勤、"&LEFT(AT7,LEN(AT7)-1),LEFT(AT7,LEN(AT7)-1))) -> 体調不良2、感染症予防のため2 | L7: 2 | Q7: 1 | AD7: =IF(AND(L7="",'1学期'!L7=""),"",L$2&L7+'1学期'!L7&"、") -> 感染症予防のため2、 | AE7: =IF(AND(M7="",'1学期'!M7=""),"",M$2&M7+'1学期'!M7&"、") ->  | AF7: =IF(AND(N7="",'1学期'!N7=""),"",N$2&N7+'1学期'!N7&"、") ->  | AG7: =IF(AND(O7="",'1学期'!O7=""),"",O$2&O7+'1学期'!O7&"、") ->  | AH7: =IF(AND(P7="",'1学期'!P7=""),"",P$2&P7+'1学期'!P7&"、") ->  | AI7: =IF(AND(Q7="",'1学期'!Q7=""),"",Q$2&Q7+'1学期'!Q7&"、") -> 体調不良2、 | AJ7: =IF(AND(R7="",'1学期'!R7=""),"",R$2&R7+'1学期'!R7&"、") ->  | AK7: =IF(AND(S7="",'1学期'!S7=""),"",S$2&S7+'1学期'!S7&"、") ->  | AL7: =IF(AND(T7="",'1学期'!T7=""),"",T$2&T7+'1学期'!T7&"、") ->  | AM7: =IF(AND(U7="",'1学期'!U7=""),"",U$2&U7+'1学期'!U7&"、") ->  | AN7: =IF(AND(V7="",'1学期'!V7=""),"",V$2&V7+'1学期'!V7&"、") ->  | AO7: =IF(AND(W7="",'1学期'!W7=""),"",W$2&W7+'1学期'!W7&"、") ->  | AP7: =IF(AND(X7="",'1学期'!X7=""),"",X$2&X7+'1学期'!X7&"、") ->  | AQ7: =IF(AND(Y7="",'1学期'!Y7=""),"",Y$2&Y7+'1学期'!Y7&"、") ->  | AR7: =IF(AND(Z7="",'1学期'!Z7=""),"",Z$2&Z7+'1学期'!Z7&"、") ->  | AT7: 体調不良2、感染症予防のため2、
A8: =IF(名簿!$A6="","",名簿!$A6) -> 1106 | B8: =IFERROR(VLOOKUP($A8,名簿!$A:$C,3,0),"") -> 0 | C8: 72 | D8: 0 | E8: 0 | F8: 4 | G8: 1 | H8: 0 | J8: =IF(AT8="",IF(OR('1学期'!AA8="あり",'2学期'!AA8="あり"),"特記事項なし","皆勤"),IF(AND('1学期'!AA8="",'2学期'!AA8="",COUNTBLANK(AI8:AQ8)=COUNTA($AI$2:$AQ$2)),"皆勤、"&LEFT(AT8,LEN(AT8)-1),LEFT(AT8,LEN(AT8)-1))) -> 体調不良3、発熱2、腹痛1 | Q8: 2 | R8: 2 | AA8: あり | AD8: =IF(AND(L8="",'1学期'!L8=""),"",L$2&L8+'1学期'!L8&"、") ->  | AE8: =IF(AND(M8="",'1学期'!M8=""),"",M$2&M8+'1学期'!M8&"、") ->  | AF8: =IF(AND(N8="",'1学期'!N8=""),"",N$2&N8+'1学期'!N8&"、") ->  | AG8: =IF(AND(O8="",'1学期'!O8=""),"",O$2&O8+'1学期'!O8&"、") ->  | AH8: =IF(AND(P8="",'1学期'!P8=""),"",P$2&P8+'1学期'!P8&"、") ->  | AI8: =IF(AND(Q8="",'1学期'!Q8=""),"",Q$2&Q8+'1学期'!Q8&"、") -> 体調不良3、 | AJ8: =IF(AND(R8="",'1学期'!R8=""),"",R$2&R8+'1学期'!R8&"、") -> 発熱2、 | AK8: =IF(AND(S8="",'1学期'!S8=""),"",S$2&S8+'1学期'!S8&"、") ->  | AL8: =IF(AND(T8="",'1学期'!T8=""),"",T$2&T8+'1学期'!T8&"、") ->  | AM8: =IF(AND(U8="",'1学期'!U8=""),"",U$2&U8+'1学期'!U8&"、") -> 腹痛1、 | AN8: =IF(AND(V8="",'1学期'!V8=""),"",V$2&V8+'1学期'!V8&"、") ->  | AO8: =IF(AND(W8="",'1学期'!W8=""),"",W$2&W8+'1学期'!W8&"、") ->  | AP8: =IF(AND(X8="",'1学期'!X8=""),"",X$2&X8+'1学期'!X8&"、") ->  | AQ8: =IF(AND(Y8="",'1学期'!Y8=""),"",Y$2&Y8+'1学期'!Y8&"、") ->  | AR8: =IF(AND(Z8="",'1学期'!Z8=""),"",Z$2&Z8+'1学期'!Z8&"、") ->  | AT8: 体調不良3、発熱2、腹痛1、
A9: =IF(名簿!$A7="","",名簿!$A7) -> 1107 | B9: =IFERROR(VLOOKUP($A9,名簿!$A:$C,3,0),"") -> 0 | C9: 72 | D9: 0 | E9: 0 | F9: 0 | G9: 0 | H9: 0 | J9: =IF(AT9="",IF(OR('1学期'!AA9="あり",'2学期'!AA9="あり"),"特記事項なし","皆勤"),IF(AND('1学期'!AA9="",'2学期'!AA9="",COUNTBLANK(AI9:AQ9)=COUNTA($AI$2:$AQ$2)),"皆勤、"&LEFT(AT9,LEN(AT9)-1),LEFT(AT9,LEN(AT9)-1))) -> 皆勤 | AD9: =IF(AND(L9="",'1学期'!L9=""),"",L$2&L9+'1学期'!L9&"、") ->  | AE9: =IF(AND(M9="",'1学期'!M9=""),"",M$2&M9+'1学期'!M9&"、") ->  | AF9: =IF(AND(N9="",'1学期'!N9=""),"",N$2&N9+'1学期'!N9&"、") ->  | AG9: =IF(AND(O9="",'1学期'!O9=""),"",O$2&O9+'1学期'!O9&"、") ->  | AH9: =IF(AND(P9="",'1学期'!P9=""),"",P$2&P9+'1学期'!P9&"、") ->  | AI9: =IF(AND(Q9="",'1学期'!Q9=""),"",Q$2&Q9+'1学期'!Q9&"、") ->  | AJ9: =IF(AND(R9="",'1学期'!R9=""),"",R$2&R9+'1学期'!R9&"、") ->  | AK9: =IF(AND(S9="",'1学期'!S9=""),"",S$2&S9+'1学期'!S9&"、") ->  | AL9: =IF(AND(T9="",'1学期'!T9=""),"",T$2&T9+'1学期'!T9&"、") ->  | AM9: =IF(AND(U9="",'1学期'!U9=""),"",U$2&U9+'1学期'!U9&"、") ->  | AN9: =IF(AND(V9="",'1学期'!V9=""),"",V$2&V9+'1学期'!V9&"、") ->  | AO9: =IF(AND(W9="",'1学期'!W9=""),"",W$2&W9+'1学期'!W9&"、") ->  | AP9: =IF(AND(X9="",'1学期'!X9=""),"",X$2&X9+'1学期'!X9&"、") ->  | AQ9: =IF(AND(Y9="",'1学期'!Y9=""),"",Y$2&Y9+'1学期'!Y9&"、") ->  | AR9: =IF(AND(Z9="",'1学期'!Z9=""),"",Z$2&Z9+'1学期'!Z9&"、") -> 
A10: =IF(名簿!$A8="","",名簿!$A8) -> 1108 | B10: =IFERROR(VLOOKUP($A10,名簿!$A:$C,3,0),"") -> 0 | C10: 72 | D10: 0 | E10: 0 | F10: 19 | G10: 1 | H10: 1 | J10: =IF(AT10="",IF(OR('1学期'!AA10="あり",'2学期'!AA10="あり"),"特記事項なし","皆勤"),IF(AND('1学期'!AA10="",'2学期'!AA10="",COUNTBLANK(AI10:AQ10)=COUNTA($AI$2:$AQ$2)),"皆勤、"&LEFT(AT10,LEN(AT10)-1),LEFT(AT10,LEN(AT10)-1))) -> 体調不良28、発熱7、感染症予防のため1 | Q10: 16 | R10: 3 | AD10: =IF(AND(L10="",'1学期'!L10=""),"",L$2&L10+'1学期'!L10&"、") -> 感染症予防のため1、 | AE10: =IF(AND(M10="",'1学期'!M10=""),"",M$2&M10+'1学期'!M10&"、") ->  | AF10: =IF(AND(N10="",'1学期'!N10=""),"",N$2&N10+'1学期'!N10&"、") ->  | AG10: =IF(AND(O10="",'1学期'!O10=""),"",O$2&O10+'1学期'!O10&"、") ->  | AH10: =IF(AND(P10="",'1学期'!P10=""),"",P$2&P10+'1学期'!P10&"、") ->  | AI10: =IF(AND(Q10="",'1学期'!Q10=""),"",Q$2&Q10+'1学期'!Q10&"、") -> 体調不良28、 | AJ10: =IF(AND(R10="",'1学期'!R10=""),"",R$2&R10+'1学期'!R10&"、") -> 発熱7、 | AK10: =IF(AND(S10="",'1学期'!S10=""),"",S$2&S10+'1学期'!S10&"、") ->  | AL10: =IF(AND(T10="",'1学期'!T10=""),"",T$2&T10+'1学期'!T10&"、") ->  | AM10: =IF(AND(U10="",'1学期'!U10=""),"",U$2&U10+'1学期'!U10&"、") ->  | AN10: =IF(AND(V10="",'1学期'!V10=""),"",V$2&V10+'1学期'!V10&"、") ->  | AO10: =IF(AND(W10="",'1学期'!W10=""),"",W$2&W10+'1学期'!W10&"、") ->  | AP10: =IF(AND(X10="",'1学期'!X10=""),"",X$2&X10+'1学期'!X10&"、") ->  | AQ10: =IF(AND(Y10="",'1学期'!Y10=""),"",Y$2&Y10+'1学期'!Y10&"、") ->  | AR10: =IF(AND(Z10="",'1学期'!Z10=""),"",Z$2&Z10+'1学期'!Z10&"、") ->  | AT10: 体調不良28、発熱7、感染症予防のため1、
A11: =IF(名簿!$A9="","",名簿!$A9) -> 1109 | B11: =IFERROR(VLOOKUP($A11,名簿!$A:$C,3,0),"") -> 0 | C11: 72 | D11: 2 | E11: 0 | F11: 4 | G11: 0 | H11: 0 | J11: =IF(AT11="",IF(OR('1学期'!AA11="あり",'2学期'!AA11="あり"),"特記事項なし","皆勤"),IF(AND('1学期'!AA11="",'2学期'!AA11="",COUNTBLANK(AI11:AQ11)=COUNTA($AI$2:$AQ$2)),"皆勤、"&LEFT(AT11,LEN(AT11)-1),LEFT(AT11,LEN(AT11)-1))) -> 体調不良7、発熱1、頭痛1、腹痛1、感染症予防のため2 | L11: 2 | Q11: 2 | T11: 1 | U11: 1 | AD11: =IF(AND(L11="",'1学期'!L11=""),"",L$2&L11+'1学期'!L11&"、") -> 感染症予防のため2、 | AE11: =IF(AND(M11="",'1学期'!M11=""),"",M$2&M11+'1学期'!M11&"、") ->  | AF11: =IF(AND(N11="",'1学期'!N11=""),"",N$2&N11+'1学期'!N11&"、") ->  | AG11: =IF(AND(O11="",'1学期'!O11=""),"",O$2&O11+'1学期'!O11&"、") ->  | AH11: =IF(AND(P11="",'1学期'!P11=""),"",P$2&P11+'1学期'!P11&"、") ->  | AI11: =IF(AND(Q11="",'1学期'!Q11=""),"",Q$2&Q11+'1学期'!Q11&"、") -> 体調不良7、 | AJ11: =IF(AND(R11="",'1学期'!R11=""),"",R$2&R11+'1学期'!R11&"、") -> 発熱1、 | AK11: =IF(AND(S11="",'1学期'!S11=""),"",S$2&S11+'1学期'!S11&"、") ->  | AL11: =IF(AND(T11="",'1学期'!T11=""),"",T$2&T11+'1学期'!T11&"、") -> 頭痛1、 | AM11: =IF(AND(U11="",'1学期'!U11=""),"",U$2&U11+'1学期'!U11&"、") -> 腹痛1、 | AN11: =IF(AND(V11="",'1学期'!V11=""),"",V$2&V11+'1学期'!V11&"、") ->  | AO11: =IF(AND(W11="",'1学期'!W11=""),"",W$2&W11+'1学期'!W11&"、") ->  | AP11: =IF(AND(X11="",'1学期'!X11=""),"",X$2&X11+'1学期'!X11&"、") ->  | AQ11: =IF(AND(Y11="",'1学期'!Y11=""),"",Y$2&Y11+'1学期'!Y11&"、") ->  | AR11: =IF(AND(Z11="",'1学期'!Z11=""),"",Z$2&Z11+'1学期'!Z11&"、") ->  | AT11: 体調不良7、発熱1、頭痛1、腹痛1、感染症予防のため2、
A12: =IF(名簿!$A10="","",名簿!$A10) -> 1110 | B12: =IFERROR(VLOOKUP($A12,名簿!$A:$C,3,0),"") -> 0 | C12: 72 | D12: 0 | E12: 0 | F12: 0 | G12: 0 | H12: 0 | J12: =IF(AT12="",IF(OR('1学期'!AA12="あり",'2学期'!AA12="あり"),"特記事項なし","皆勤"),IF(AND('1学期'!AA12="",'2学期'!AA12="",COUNTBLANK(AI12:AQ12)=COUNTA($AI$2:$AQ$2)),"皆勤、"&LEFT(AT12,LEN(AT12)-1),LEFT(AT12,LEN(AT12)-1))) -> 皆勤、感染症予防のため1 | AD12: =IF(AND(L12="",'1学期'!L12=""),"",L$2&L12+'1学期'!L12&"、") -> 感染症予防のため1、 | AE12: =IF(AND(M12="",'1学期'!M12=""),"",M$2&M12+'1学期'!M12&"、") ->  | AF12: =IF(AND(N12="",'1学期'!N12=""),"",N$2&N12+'1学期'!N12&"、") ->  | AG12: =IF(AND(O12="",'1学期'!O12=""),"",O$2&O12+'1学期'!O12&"、") ->  | AH12: =IF(AND(P12="",'1学期'!P12=""),"",P$2&P12+'1学期'!P12&"、") ->  | AI12: =IF(AND(Q12="",'1学期'!Q12=""),"",Q$2&Q12+'1学期'!Q12&"、") ->  | AJ12: =IF(AND(R12="",'1学期'!R12=""),"",R$2&R12+'1学期'!R12&"、") ->  | AK12: =IF(AND(S12="",'1学期'!S12=""),"",S$2&S12+'1学期'!S12&"、") ->  | AL12: =IF(AND(T12="",'1学期'!T12=""),"",T$2&T12+'1学期'!T12&"、") ->  | AM12: =IF(AND(U12="",'1学期'!U12=""),"",U$2&U12+'1学期'!U12&"、") ->  | AN12: =IF(AND(V12="",'1学期'!V12=""),"",V$2&V12+'1学期'!V12&"、") ->  | AO12: =IF(AND(W12="",'1学期'!W12=""),"",W$2&W12+'1学期'!W12&"、") ->  | AP12: =IF(AND(X12="",'1学期'!X12=""),"",X$2&X12+'1学期'!X12&"、") ->  | AQ12: =IF(AND(Y12="",'1学期'!Y12=""),"",Y$2&Y12+'1学期'!Y12&"、") ->  | AR12: =IF(AND(Z12="",'1学期'!Z12=""),"",Z$2&Z12+'1学期'!Z12&"、") ->  | AT12: =CONCATENATE(AI12,AJ12,AK12,AL12,AM12,AN12,AO12,AP12,AQ12,AR12,AD12,AE12,AF12,AG12,AH12) -> 感染症予防のため1、
A13: =IF(名簿!$A11="","",名簿!$A11) -> 1111 | B13: =IFERROR(VLOOKUP($A13,名簿!$A:$C,3,0),"") -> 0 | C13: 72 | D13: 0 | E13: 0 | F13: 0 | G13: 8 | H13: 0 | J13: =IF(AT13="",IF(OR('1学期'!AA13="あり",'2学期'!AA13="あり"),"特記事項なし","皆勤"),IF(AND('1学期'!AA13="",'2学期'!AA13="",COUNTBLANK(AI13:AQ13)=COUNTA($AI$2:$AQ$2)),"皆勤、"&LEFT(AT13,LEN(AT13)-1),LEFT(AT13,LEN(AT13)-1))) -> 特記事項なし | AA13: あり | AD13: =IF(AND(L13="",'1学期'!L13=""),"",L$2&L13+'1学期'!L13&"、") ->  | AE13: =IF(AND(M13="",'1学期'!M13=""),"",M$2&M13+'1学期'!M13&"、") ->  | AF13: =IF(AND(N13="",'1学期'!N13=""),"",N$2&N13+'1学期'!N13&"、") ->  | AG13: =IF(AND(O13="",'1学期'!O13=""),"",O$2&O13+'1学期'!O13&"、") ->  | AH13: =IF(AND(P13="",'1学期'!P13=""),"",P$2&P13+'1学期'!P13&"、") ->  | AI13: =IF(AND(Q13="",'1学期'!Q13=""),"",Q$2&Q13+'1学期'!Q13&"、") ->  | AJ13: =IF(AND(R13="",'1学期'!R13=""),"",R$2&R13+'1学期'!R13&"、") ->  | AK13: =IF(AND(S13="",'1学期'!S13=""),"",S$2&S13+'1学期'!S13&"、") ->  | AL13: =IF(AND(T13="",'1学期'!T13=""),"",T$2&T13+'1学期'!T13&"、") ->  | AM13: =IF(AND(U13="",'1学期'!U13=""),"",U$2&U13+'1学期'!U13&"、") ->  | AN13: =IF(AND(V13="",'1学期'!V13=""),"",V$2&V13+'1学期'!V13&"、") ->  | AO13: =IF(AND(W13="",'1学期'!W13=""),"",W$2&W13+'1学期'!W13&"、") ->  | AP13: =IF(AND(X13="",'1学期'!X13=""),"",X$2&X13+'1学期'!X13&"、") ->  | AQ13: =IF(AND(Y13="",'1学期'!Y13=""),"",Y$2&Y13+'1学期'!Y13&"、") ->  | AR13: =IF(AND(Z13="",'1学期'!Z13=""),"",Z$2&Z13+'1学期'!Z13&"、") -> 
A14: =IF(名簿!$A12="","",名簿!$A12) -> 1112 | B14: =IFERROR(VLOOKUP($A14,名簿!$A:$C,3,0),"") -> 0 | C14: 72 | D14: 1 | E14: 0 | F14: 0 | G14: 0 | H14: 0 | J14: =IF(AT14="",IF(OR('1学期'!AA14="あり",'2学期'!AA14="あり"),"特記事項なし","皆勤"),IF(AND('1学期'!AA14="",'2学期'!AA14="",COUNTBLANK(AI14:AQ14)=COUNTA($AI$2:$AQ$2)),"皆勤、"&LEFT(AT14,LEN(AT14)-1),LEFT(AT14,LEN(AT14)-1))) -> 皆勤、祖母葬儀1 | N14: 1 | AD14: =IF(AND(L14="",'1学期'!L14=""),"",L$2&L14+'1学期'!L14&"、") ->  | AE14: =IF(AND(M14="",'1学期'!M14=""),"",M$2&M14+'1学期'!M14&"、") ->  | AF14: =IF(AND(N14="",'1学期'!N14=""),"",N$2&N14+'1学期'!N14&"、") -> 祖母葬儀1、 | AG14: =IF(AND(O14="",'1学期'!O14=""),"",O$2&O14+'1学期'!O14&"、") ->  | AH14: =IF(AND(P14="",'1学期'!P14=""),"",P$2&P14+'1学期'!P14&"、") ->  | AI14: =IF(AND(Q14="",'1学期'!Q14=""),"",Q$2&Q14+'1学期'!Q14&"、") ->  | AJ14: =IF(AND(R14="",'1学期'!R14=""),"",R$2&R14+'1学期'!R14&"、") ->  | AK14: =IF(AND(S14="",'1学期'!S14=""),"",S$2&S14+'1学期'!S14&"、") ->  | AL14: =IF(AND(T14="",'1学期'!T14=""),"",T$2&T14+'1学期'!T14&"、") ->  | AM14: =IF(AND(U14="",'1学期'!U14=""),"",U$2&U14+'1学期'!U14&"、") ->  | AN14: =IF(AND(V14="",'1学期'!V14=""),"",V$2&V14+'1学期'!V14&"、") ->  | AO14: =IF(AND(W14="",'1学期'!W14=""),"",W$2&W14+'1学期'!W14&"、") ->  | AP14: =IF(AND(X14="",'1学期'!X14=""),"",X$2&X14+'1学期'!X14&"、") ->  | AQ14: =IF(AND(Y14="",'1学期'!Y14=""),"",Y$2&Y14+'1学期'!Y14&"、") ->  | AR14: =IF(AND(Z14="",'1学期'!Z14=""),"",Z$2&Z14+'1学期'!Z14&"、") ->  | AT14: 祖母葬儀1、
A15: =IF(名簿!$A13="","",名簿!$A13) -> 1113 | B15: =IFERROR(VLOOKUP($A15,名簿!$A:$C,3,0),"") -> 0 | C15: 72 | D15: 0 | E15: 0 | F15: 0 | G15: 0 | H15: 0 | J15: =IF(AT15="",IF(OR('1学期'!AA15="あり",'2学期'!AA15="あり"),"特記事項なし","皆勤"),IF(AND('1学期'!AA15="",'2学期'!AA15="",COUNTBLANK(AI15:AQ15)=COUNTA($AI$2:$AQ$2)),"皆勤、"&LEFT(AT15,LEN(AT15)-1),LEFT(AT15,LEN(AT15)-1))) -> 皆勤 | AD15: =IF(AND(L15="",'1学期'!L15=""),"",L$2&L15+'1学期'!L15&"、") ->  | AE15: =IF(AND(M15="",'1学期'!M15=""),"",M$2&M15+'1学期'!M15&"、") ->  | AF15: =IF(AND(N15="",'1学期'!N15=""),"",N$2&N15+'1学期'!N15&"、") ->  | AG15: =IF(AND(O15="",'1学期'!O15=""),"",O$2&O15+'1学期'!O15&"、") ->  | AH15: =IF(AND(P15="",'1学期'!P15=""),"",P$2&P15+'1学期'!P15&"、") ->  | AI15: =IF(AND(Q15="",'1学期'!Q15=""),"",Q$2&Q15+'1学期'!Q15&"、") ->  | AJ15: =IF(AND(R15="",'1学期'!R15=""),"",R$2&R15+'1学期'!R15&"、") ->  | AK15: =IF(AND(S15="",'1学期'!S15=""),"",S$2&S15+'1学期'!S15&"、") ->  | AL15: =IF(AND(T15="",'1学期'!T15=""),"",T$2&T15+'1学期'!T15&"、") ->  | AM15: =IF(AND(U15="",'1学期'!U15=""),"",U$2&U15+'1学期'!U15&"、") ->  | AN15: =IF(AND(V15="",'1学期'!V15=""),"",V$2&V15+'1学期'!V15&"、") ->  | AO15: =IF(AND(W15="",'1学期'!W15=""),"",W$2&W15+'1学期'!W15&"、") ->  | AP15: =IF(AND(X15="",'1学期'!X15=""),"",X$2&X15+'1学期'!X15&"、") ->  | AQ15: =IF(AND(Y15="",'1学期'!Y15=""),"",Y$2&Y15+'1学期'!Y15&"、") ->  | AR15: =IF(AND(Z15="",'1学期'!Z15=""),"",Z$2&Z15+'1学期'!Z15&"、") -> 
A16: =IF(名簿!$A14="","",名簿!$A14) -> 1114 | B16: =IFERROR(VLOOKUP($A16,名簿!$A:$C,3,0),"") -> 0 | C16: 72 | D16: 0 | E16: 0 | F16: 0 | G16: 0 | H16: 0 | J16: =IF(AT16="",IF(OR('1学期'!AA16="あり",'2学期'!AA16="あり"),"特記事項なし","皆勤"),IF(AND('1学期'!AA16="",'2学期'!AA16="",COUNTBLANK(AI16:AQ16)=COUNTA($AI$2:$AQ$2)),"皆勤、"&LEFT(AT16,LEN(AT16)-1),LEFT(AT16,LEN(AT16)-1))) -> 体調不良1 | AD16: =IF(AND(L16="",'1学期'!L16=""),"",L$2&L16+'1学期'!L16&"、") ->  | AE16: =IF(AND(M16="",'1学期'!M16=""),"",M$2&M16+'1学期'!M16&"、") ->  | AF16: =IF(AND(N16="",'1学期'!N16=""),"",N$2&N16+'1学期'!N16&"、") ->  | AG16: =IF(AND(O16="",'1学期'!O16=""),"",O$2&O16+'1学期'!O16&"、") ->  | AH16: =IF(AND(P16="",'1学期'!P16=""),"",P$2&P16+'1学期'!P16&"、") ->  | AI16: =IF(AND(Q16="",'1学期'!Q16=""),"",Q$2&Q16+'1学期'!Q16&"、") -> 体調不良1、 | AJ16: =IF(AND(R16="",'1学期'!R16=""),"",R$2&R16+'1学期'!R16&"、") ->  | AK16: =IF(AND(S16="",'1学期'!S16=""),"",S$2&S16+'1学期'!S16&"、") ->  | AL16: =IF(AND(T16="",'1学期'!T16=""),"",T$2&T16+'1学期'!T16&"、") ->  | AM16: =IF(AND(U16="",'1学期'!U16=""),"",U$2&U16+'1学期'!U16&"、") ->  | AN16: =IF(AND(V16="",'1学期'!V16=""),"",V$2&V16+'1学期'!V16&"、") ->  | AO16: =IF(AND(W16="",'1学期'!W16=""),"",W$2&W16+'1学期'!W16&"、") ->  | AP16: =IF(AND(X16="",'1学期'!X16=""),"",X$2&X16+'1学期'!X16&"、") ->  | AQ16: =IF(AND(Y16="",'1学期'!Y16=""),"",Y$2&Y16+'1学期'!Y16&"、") ->  | AR16: =IF(AND(Z16="",'1学期'!Z16=""),"",Z$2&Z16+'1学期'!Z16&"、") ->  | AT16: 体調不良1、
A17: =IF(名簿!$A15="","",名簿!$A15) -> 1115 | B17: =IFERROR(VLOOKUP($A17,名簿!$A:$C,3,0),"") -> 0 | C17: 72 | D17: 1 | E17: 0 | F17: 0 | G17: 0 | H17: 0 | J17: =IF(AT17="",IF(OR('1学期'!AA17="あり",'2学期'!AA17="あり"),"特記事項なし","皆勤"),IF(AND('1学期'!AA17="",'2学期'!AA17="",COUNTBLANK(AI17:AQ17)=COUNTA($AI$2:$AQ$2)),"皆勤、"&LEFT(AT17,LEN(AT17)-1),LEFT(AT17,LEN(AT17)-1))) -> 皆勤 | AD17: =IF(AND(L17="",'1学期'!L17=""),"",L$2&L17+'1学期'!L17&"、") ->  | AE17: =IF(AND(M17="",'1学期'!M17=""),"",M$2&M17+'1学期'!M17&"、") ->  | AF17: =IF(AND(N17="",'1学期'!N17=""),"",N$2&N17+'1学期'!N17&"、") ->  | AG17: =IF(AND(O17="",'1学期'!O17=""),"",O$2&O17+'1学期'!O17&"、") ->  | AH17: =IF(AND(P17="",'1学期'!P17=""),"",P$2&P17+'1学期'!P17&"、") ->  | AI17: =IF(AND(Q17="",'1学期'!Q17=""),"",Q$2&Q17+'1学期'!Q17&"、") ->  | AJ17: =IF(AND(R17="",'1学期'!R17=""),"",R$2&R17+'1学期'!R17&"、") ->  | AK17: =IF(AND(S17="",'1学期'!S17=""),"",S$2&S17+'1学期'!S17&"、") ->  | AL17: =IF(AND(T17="",'1学期'!T17=""),"",T$2&T17+'1学期'!T17&"、") ->  | AM17: =IF(AND(U17="",'1学期'!U17=""),"",U$2&U17+'1学期'!U17&"、") ->  | AN17: =IF(AND(V17="",'1学期'!V17=""),"",V$2&V17+'1学期'!V17&"、") ->  | AO17: =IF(AND(W17="",'1学期'!W17=""),"",W$2&W17+'1学期'!W17&"、") ->  | AP17: =IF(AND(X17="",'1学期'!X17=""),"",X$2&X17+'1学期'!X17&"、") ->  | AQ17: =IF(AND(Y17="",'1学期'!Y17=""),"",Y$2&Y17+'1学期'!Y17&"、") ->  | AR17: =IF(AND(Z17="",'1学期'!Z17=""),"",Z$2&Z17+'1学期'!Z17&"、") -> 
A18: =IF(名簿!$A16="","",名簿!$A16) -> 1116 | B18: =IFERROR(VLOOKUP($A18,名簿!$A:$C,3,0),"") -> 0 | C18: 72 | D18: 0 | E18: 0 | F18: 0 | G18: 0 | H18: 0 | J18: =IF(AT18="",IF(OR('1学期'!AA18="あり",'2学期'!AA18="あり"),"特記事項なし","皆勤"),IF(AND('1学期'!AA18="",'2学期'!AA18="",COUNTBLANK(AI18:AQ18)=COUNTA($AI$2:$AQ$2)),"皆勤、"&LEFT(AT18,LEN(AT18)-1),LEFT(AT18,LEN(AT18)-1))) -> 皆勤 | AD18: =IF(AND(L18="",'1学期'!L18=""),"",L$2&L18+'1学期'!L18&"、") ->  | AE18: =IF(AND(M18="",'1学期'!M18=""),"",M$2&M18+'1学期'!M18&"、") ->  | AF18: =IF(AND(N18="",'1学期'!N18=""),"",N$2&N18+'1学期'!N18&"、") ->  | AG18: =IF(AND(O18="",'1学期'!O18=""),"",O$2&O18+'1学期'!O18&"、") ->  | AH18: =IF(AND(P18="",'1学期'!P18=""),"",P$2&P18+'1学期'!P18&"、") ->  | AI18: =IF(AND(Q18="",'1学期'!Q18=""),"",Q$2&Q18+'1学期'!Q18&"、") ->  | AJ18: =IF(AND(R18="",'1学期'!R18=""),"",R$2&R18+'1学期'!R18&"、") ->  | AK18: =IF(AND(S18="",'1学期'!S18=""),"",S$2&S18+'1学期'!S18&"、") ->  | AL18: =IF(AND(T18="",'1学期'!T18=""),"",T$2&T18+'1学期'!T18&"、") ->  | AM18: =IF(AND(U18="",'1学期'!U18=""),"",U$2&U18+'1学期'!U18&"、") ->  | AN18: =IF(AND(V18="",'1学期'!V18=""),"",V$2&V18+'1学期'!V18&"、") ->  | AO18: =IF(AND(W18="",'1学期'!W18=""),"",W$2&W18+'1学期'!W18&"、") ->  | AP18: =IF(AND(X18="",'1学期'!X18=""),"",X$2&X18+'1学期'!X18&"、") ->  | AQ18: =IF(AND(Y18="",'1学期'!Y18=""),"",Y$2&Y18+'1学期'!Y18&"、") ->  | AR18: =IF(AND(Z18="",'1学期'!Z18=""),"",Z$2&Z18+'1学期'!Z18&"、") -> 
A19: =IF(名簿!$A17="","",名簿!$A17) -> 1117 | B19: =IFERROR(VLOOKUP($A19,名簿!$A:$C,3,0),"") -> 0 | C19: 72 | D19: 1 | E19: 0 | F19: 0 | G19: 0 | H19: 0 | J19: =IF(AT19="",IF(OR('1学期'!AA19="あり",'2学期'!AA19="あり"),"特記事項なし","皆勤"),IF(AND('1学期'!AA19="",'2学期'!AA19="",COUNTBLANK(AI19:AQ19)=COUNTA($AI$2:$AQ$2)),"皆勤、"&LEFT(AT19,LEN(AT19)-1),LEFT(AT19,LEN(AT19)-1))) -> 頭痛1 | AD19: =IF(AND(L19="",'1学期'!L19=""),"",L$2&L19+'1学期'!L19&"、") ->  | AE19: =IF(AND(M19="",'1学期'!M19=""),"",M$2&M19+'1学期'!M19&"、") ->  | AF19: =IF(AND(N19="",'1学期'!N19=""),"",N$2&N19+'1学期'!N19&"、") ->  | AG19: =IF(AND(O19="",'1学期'!O19=""),"",O$2&O19+'1学期'!O19&"、") ->  | AH19: =IF(AND(P19="",'1学期'!P19=""),"",P$2&P19+'1学期'!P19&"、") ->  | AI19: =IF(AND(Q19="",'1学期'!Q19=""),"",Q$2&Q19+'1学期'!Q19&"、") ->  | AJ19: =IF(AND(R19="",'1学期'!R19=""),"",R$2&R19+'1学期'!R19&"、") ->  | AK19: =IF(AND(S19="",'1学期'!S19=""),"",S$2&S19+'1学期'!S19&"、") ->  | AL19: =IF(AND(T19="",'1学期'!T19=""),"",T$2&T19+'1学期'!T19&"、") -> 頭痛1、 | AM19: =IF(AND(U19="",'1学期'!U19=""),"",U$2&U19+'1学期'!U19&"、") ->  | AN19: =IF(AND(V19="",'1学期'!V19=""),"",V$2&V19+'1学期'!V19&"、") ->  | AO19: =IF(AND(W19="",'1学期'!W19=""),"",W$2&W19+'1学期'!W19&"、") ->  | AP19: =IF(AND(X19="",'1学期'!X19=""),"",X$2&X19+'1学期'!X19&"、") ->  | AQ19: =IF(AND(Y19="",'1学期'!Y19=""),"",Y$2&Y19+'1学期'!Y19&"、") ->  | AR19: =IF(AND(Z19="",'1学期'!Z19=""),"",Z$2&Z19+'1学期'!Z19&"、") ->  | AT19: 頭痛1、
A20: =IF(名簿!$A18="","",名簿!$A18) -> 1118 | B20: =IFERROR(VLOOKUP($A20,名簿!$A:$C,3,0),"") -> 0 | C20: 72 | D20: 0 | E20: 0 | F20: 0 | G20: 0 | H20: 0 | J20: =IF(AT20="",IF(OR('1学期'!AA20="あり",'2学期'!AA20="あり"),"特記事項なし","皆勤"),IF(AND('1学期'!AA20="",'2学期'!AA20="",COUNTBLANK(AI20:AQ20)=COUNTA($AI$2:$AQ$2)),"皆勤、"&LEFT(AT20,LEN(AT20)-1),LEFT(AT20,LEN(AT20)-1))) -> 皆勤 | AD20: =IF(AND(L20="",'1学期'!L20=""),"",L$2&L20+'1学期'!L20&"、") ->  | AE20: =IF(AND(M20="",'1学期'!M20=""),"",M$2&M20+'1学期'!M20&"、") ->  | AF20: =IF(AND(N20="",'1学期'!N20=""),"",N$2&N20+'1学期'!N20&"、") ->  | AG20: =IF(AND(O20="",'1学期'!O20=""),"",O$2&O20+'1学期'!O20&"、") ->  | AH20: =IF(AND(P20="",'1学期'!P20=""),"",P$2&P20+'1学期'!P20&"、") ->  | AI20: =IF(AND(Q20="",'1学期'!Q20=""),"",Q$2&Q20+'1学期'!Q20&"、") ->  | AJ20: =IF(AND(R20="",'1学期'!R20=""),"",R$2&R20+'1学期'!R20&"、") ->  | AK20: =IF(AND(S20="",'1学期'!S20=""),"",S$2&S20+'1学期'!S20&"、") ->  | AL20: =IF(AND(T20="",'1学期'!T20=""),"",T$2&T20+'1学期'!T20&"、") ->  | AM20: =IF(AND(U20="",'1学期'!U20=""),"",U$2&U20+'1学期'!U20&"、") ->  | AN20: =IF(AND(V20="",'1学期'!V20=""),"",V$2&V20+'1学期'!V20&"、") ->  | AO20: =IF(AND(W20="",'1学期'!W20=""),"",W$2&W20+'1学期'!W20&"、") ->  | AP20: =IF(AND(X20="",'1学期'!X20=""),"",X$2&X20+'1学期'!X20&"、") ->  | AQ20: =IF(AND(Y20="",'1学期'!Y20=""),"",Y$2&Y20+'1学期'!Y20&"、") ->  | AR20: =IF(AND(Z20="",'1学期'!Z20=""),"",Z$2&Z20+'1学期'!Z20&"、") -> 
A21: =IF(名簿!$A19="","",名簿!$A19) -> 1119 | B21: =IFERROR(VLOOKUP($A21,名簿!$A:$C,3,0),"") -> 0 | C21: 72 | D21: 8 | E21: 0 | F21: 1 | G21: 0 | H21: 0 | J21: =IF(AT21="",IF(OR('1学期'!AA21="あり",'2学期'!AA21="あり"),"特記事項なし","皆勤"),IF(AND('1学期'!AA21="",'2学期'!AA21="",COUNTBLANK(AI21:AQ21)=COUNTA($AI$2:$AQ$2)),"皆勤、"&LEFT(AT21,LEN(AT21)-1),LEFT(AT21,LEN(AT21)-1))) -> 発熱1、感染症のため8 | M21: 8 | R21: 1 | AD21: =IF(AND(L21="",'1学期'!L21=""),"",L$2&L21+'1学期'!L21&"、") ->  | AE21: =IF(AND(M21="",'1学期'!M21=""),"",M$2&M21+'1学期'!M21&"、") -> 感染症のため8、 | AF21: =IF(AND(N21="",'1学期'!N21=""),"",N$2&N21+'1学期'!N21&"、") ->  | AG21: =IF(AND(O21="",'1学期'!O21=""),"",O$2&O21+'1学期'!O21&"、") ->  | AH21: =IF(AND(P21="",'1学期'!P21=""),"",P$2&P21+'1学期'!P21&"、") ->  | AI21: =IF(AND(Q21="",'1学期'!Q21=""),"",Q$2&Q21+'1学期'!Q21&"、") ->  | AJ21: =IF(AND(R21="",'1学期'!R21=""),"",R$2&R21+'1学期'!R21&"、") -> 発熱1、 | AK21: =IF(AND(S21="",'1学期'!S21=""),"",S$2&S21+'1学期'!S21&"、") ->  | AL21: =IF(AND(T21="",'1学期'!T21=""),"",T$2&T21+'1学期'!T21&"、") ->  | AM21: =IF(AND(U21="",'1学期'!U21=""),"",U$2&U21+'1学期'!U21&"、") ->  | AN21: =IF(AND(V21="",'1学期'!V21=""),"",V$2&V21+'1学期'!V21&"、") ->  | AO21: =IF(AND(W21="",'1学期'!W21=""),"",W$2&W21+'1学期'!W21&"、") ->  | AP21: =IF(AND(X21="",'1学期'!X21=""),"",X$2&X21+'1学期'!X21&"、") ->  | AQ21: =IF(AND(Y21="",'1学期'!Y21=""),"",Y$2&Y21+'1学期'!Y21&"、") ->  | AR21: =IF(AND(Z21="",'1学期'!Z21=""),"",Z$2&Z21+'1学期'!Z21&"、") ->  | AT21: 発熱1、感染症のため8、
A22: =IF(名簿!$A20="","",名簿!$A20) -> 1120 | B22: =IFERROR(VLOOKUP($A22,名簿!$A:$C,3,0),"") -> 0 | C22: 72 | D22: 0 | E22: 0 | F22: 30 | G22: 4 | H22: 0 | J22: =IF(AT22="",IF(OR('1学期'!AA22="あり",'2学期'!AA22="あり"),"特記事項なし","皆勤"),IF(AND('1学期'!AA22="",'2学期'!AA22="",COUNTBLANK(AI22:AQ22)=COUNTA($AI$2:$AQ$2)),"皆勤、"&LEFT(AT22,LEN(AT22)-1),LEFT(AT22,LEN(AT22)-1))) -> 体調不良23、発熱9、頭痛2、腹痛2、自己都合16 | Q22: 9 | R22: 5 | Z22: 16 | AA22: あり | AD22: =IF(AND(L22="",'1学期'!L22=""),"",L$2&L22+'1学期'!L22&"、") ->  | AE22: =IF(AND(M22="",'1学期'!M22=""),"",M$2&M22+'1学期'!M22&"、") ->  | AF22: =IF(AND(N22="",'1学期'!N22=""),"",N$2&N22+'1学期'!N22&"、") ->  | AG22: =IF(AND(O22="",'1学期'!O22=""),"",O$2&O22+'1学期'!O22&"、") ->  | AH22: =IF(AND(P22="",'1学期'!P22=""),"",P$2&P22+'1学期'!P22&"、") ->  | AI22: =IF(AND(Q22="",'1学期'!Q22=""),"",Q$2&Q22+'1学期'!Q22&"、") -> 体調不良23、 | AJ22: =IF(AND(R22="",'1学期'!R22=""),"",R$2&R22+'1学期'!R22&"、") -> 発熱9、 | AK22: =IF(AND(S22="",'1学期'!S22=""),"",S$2&S22+'1学期'!S22&"、") ->  | AL22: =IF(AND(T22="",'1学期'!T22=""),"",T$2&T22+'1学期'!T22&"、") -> 頭痛2、 | AM22: =IF(AND(U22="",'1学期'!U22=""),"",U$2&U22+'1学期'!U22&"、") -> 腹痛2、 | AN22: =IF(AND(V22="",'1学期'!V22=""),"",V$2&V22+'1学期'!V22&"、") ->  | AO22: =IF(AND(W22="",'1学期'!W22=""),"",W$2&W22+'1学期'!W22&"、") ->  | AP22: =IF(AND(X22="",'1学期'!X22=""),"",X$2&X22+'1学期'!X22&"、") ->  | AQ22: =IF(AND(Y22="",'1学期'!Y22=""),"",Y$2&Y22+'1学期'!Y22&"、") ->  | AR22: =IF(AND(Z22="",'1学期'!Z22=""),"",Z$2&Z22+'1学期'!Z22&"、") -> 自己都合16、 | AT22: 体調不良23、発熱9、頭痛2、腹痛2、自己都合16、
A23: =IF(名簿!$A21="","",名簿!$A21) -> 1121 | B23: =IFERROR(VLOOKUP($A23,名簿!$A:$C,3,0),"") -> 0 | C23: 72 | D23: 0 | E23: 0 | F23: 12 | G23: 1 | H23: 0 | J23: =IF(AT23="",IF(OR('1学期'!AA23="あり",'2学期'!AA23="あり"),"特記事項なし","皆勤"),IF(AND('1学期'!AA23="",'2学期'!AA23="",COUNTBLANK(AI23:AQ23)=COUNTA($AI$2:$AQ$2)),"皆勤、"&LEFT(AT23,LEN(AT23)-1),LEFT(AT23,LEN(AT23)-1))) -> 体調不良13、腹痛1 | Q23: 12 | AA23: あり | AD23: =IF(AND(L23="",'1学期'!L23=""),"",L$2&L23+'1学期'!L23&"、") ->  | AE23: =IF(AND(M23="",'1学期'!M23=""),"",M$2&M23+'1学期'!M23&"、") ->  | AF23: =IF(AND(N23="",'1学期'!N23=""),"",N$2&N23+'1学期'!N23&"、") ->  | AG23: =IF(AND(O23="",'1学期'!O23=""),"",O$2&O23+'1学期'!O23&"、") ->  | AH23: =IF(AND(P23="",'1学期'!P23=""),"",P$2&P23+'1学期'!P23&"、") ->  | AI23: =IF(AND(Q23="",'1学期'!Q23=""),"",Q$2&Q23+'1学期'!Q23&"、") -> 体調不良13、 | AJ23: =IF(AND(R23="",'1学期'!R23=""),"",R$2&R23+'1学期'!R23&"、") ->  | AK23: =IF(AND(S23="",'1学期'!S23=""),"",S$2&S23+'1学期'!S23&"、") ->  | AL23: =IF(AND(T23="",'1学期'!T23=""),"",T$2&T23+'1学期'!T23&"、") ->  | AM23: =IF(AND(U23="",'1学期'!U23=""),"",U$2&U23+'1学期'!U23&"、") -> 腹痛1、 | AN23: =IF(AND(V23="",'1学期'!V23=""),"",V$2&V23+'1学期'!V23&"、") ->  | AO23: =IF(AND(W23="",'1学期'!W23=""),"",W$2&W23+'1学期'!W23&"、") ->  | AP23: =IF(AND(X23="",'1学期'!X23=""),"",X$2&X23+'1学期'!X23&"、") ->  | AQ23: =IF(AND(Y23="",'1学期'!Y23=""),"",Y$2&Y23+'1学期'!Y23&"、") ->  | AR23: =IF(AND(Z23="",'1学期'!Z23=""),"",Z$2&Z23+'1学期'!Z23&"、") ->  | AT23: 体調不良13、腹痛1、
A24: =IF(名簿!$A22="","",名簿!$A22) -> 1122 | B24: =IFERROR(VLOOKUP($A24,名簿!$A:$C,3,0),"") -> 0 | C24: 72 | D24: 0 | E24: 0 | F24: 9 | G24: 8 | H24: 0 | J24: =IF(AT24="",IF(OR('1学期'!AA24="あり",'2学期'!AA24="あり"),"特記事項なし","皆勤"),IF(AND('1学期'!AA24="",'2学期'!AA24="",COUNTBLANK(AI24:AQ24)=COUNTA($AI$2:$AQ$2)),"皆勤、"&LEFT(AT24,LEN(AT24)-1),LEFT(AT24,LEN(AT24)-1))) -> 体調不良9、発熱1、家事都合2、感染症予防のため2 | Q24: 7 | Y24: 2 | AA24: あり | AD24: =IF(AND(L24="",'1学期'!L24=""),"",L$2&L24+'1学期'!L24&"、") -> 感染症予防のため2、 | AE24: =IF(AND(M24="",'1学期'!M24=""),"",M$2&M24+'1学期'!M24&"、") ->  | AF24: =IF(AND(N24="",'1学期'!N24=""),"",N$2&N24+'1学期'!N24&"、") ->  | AG24: =IF(AND(O24="",'1学期'!O24=""),"",O$2&O24+'1学期'!O24&"、") ->  | AH24: =IF(AND(P24="",'1学期'!P24=""),"",P$2&P24+'1学期'!P24&"、") ->  | AI24: =IF(AND(Q24="",'1学期'!Q24=""),"",Q$2&Q24+'1学期'!Q24&"、") -> 体調不良9、 | AJ24: =IF(AND(R24="",'1学期'!R24=""),"",R$2&R24+'1学期'!R24&"、") -> 発熱1、 | AK24: =IF(AND(S24="",'1学期'!S24=""),"",S$2&S24+'1学期'!S24&"、") ->  | AL24: =IF(AND(T24="",'1学期'!T24=""),"",T$2&T24+'1学期'!T24&"、") ->  | AM24: =IF(AND(U24="",'1学期'!U24=""),"",U$2&U24+'1学期'!U24&"、") ->  | AN24: =IF(AND(V24="",'1学期'!V24=""),"",V$2&V24+'1学期'!V24&"、") ->  | AO24: =IF(AND(W24="",'1学期'!W24=""),"",W$2&W24+'1学期'!W24&"、") ->  | AP24: =IF(AND(X24="",'1学期'!X24=""),"",X$2&X24+'1学期'!X24&"、") ->  | AQ24: =IF(AND(Y24="",'1学期'!Y24=""),"",Y$2&Y24+'1学期'!Y24&"、") -> 家事都合2、 | AR24: =IF(AND(Z24="",'1学期'!Z24=""),"",Z$2&Z24+'1学期'!Z24&"、") ->  | AT24: 体調不良9、発熱1、家事都合2、感染症予防のため2、
A25: =IF(名簿!$A23="","",名簿!$A23) -> 1123 | B25: =IFERROR(VLOOKUP($A25,名簿!$A:$C,3,0),"") -> 0 | C25: 72 | D25: 0 | E25: 0 | F25: 0 | G25: 0 | H25: 0 | J25: =IF(AT25="",IF(OR('1学期'!AA25="あり",'2学期'!AA25="あり"),"特記事項なし","皆勤"),IF(AND('1学期'!AA25="",'2学期'!AA25="",COUNTBLANK(AI25:AQ25)=COUNTA($AI$2:$AQ$2)),"皆勤、"&LEFT(AT25,LEN(AT25)-1),LEFT(AT25,LEN(AT25)-1))) -> 皆勤 | AD25: =IF(AND(L25="",'1学期'!L25=""),"",L$2&L25+'1学期'!L25&"、") ->  | AE25: =IF(AND(M25="",'1学期'!M25=""),"",M$2&M25+'1学期'!M25&"、") ->  | AF25: =IF(AND(N25="",'1学期'!N25=""),"",N$2&N25+'1学期'!N25&"、") ->  | AG25: =IF(AND(O25="",'1学期'!O25=""),"",O$2&O25+'1学期'!O25&"、") ->  | AH25: =IF(AND(P25="",'1学期'!P25=""),"",P$2&P25+'1学期'!P25&"、") ->  | AI25: =IF(AND(Q25="",'1学期'!Q25=""),"",Q$2&Q25+'1学期'!Q25&"、") ->  | AJ25: =IF(AND(R25="",'1学期'!R25=""),"",R$2&R25+'1学期'!R25&"、") ->  | AK25: =IF(AND(S25="",'1学期'!S25=""),"",S$2&S25+'1学期'!S25&"、") ->  | AL25: =IF(AND(T25="",'1学期'!T25=""),"",T$2&T25+'1学期'!T25&"、") ->  | AM25: =IF(AND(U25="",'1学期'!U25=""),"",U$2&U25+'1学期'!U25&"、") ->  | AN25: =IF(AND(V25="",'1学期'!V25=""),"",V$2&V25+'1学期'!V25&"、") ->  | AO25: =IF(AND(W25="",'1学期'!W25=""),"",W$2&W25+'1学期'!W25&"、") ->  | AP25: =IF(AND(X25="",'1学期'!X25=""),"",X$2&X25+'1学期'!X25&"、") ->  | AQ25: =IF(AND(Y25="",'1学期'!Y25=""),"",Y$2&Y25+'1学期'!Y25&"、") ->  | AR25: =IF(AND(Z25="",'1学期'!Z25=""),"",Z$2&Z25+'1学期'!Z25&"、") -> 
A26: =IF(名簿!$A24="","",名簿!$A24) -> 1124 | B26: =IFERROR(VLOOKUP($A26,名簿!$A:$C,3,0),"") -> 0 | C26: 72 | D26: 0 | E26: 0 | F26: 0 | G26: 0 | H26: 0 | J26: =IF(AT26="",IF(OR('1学期'!AA26="あり",'2学期'!AA26="あり"),"特記事項なし","皆勤"),IF(AND('1学期'!AA26="",'2学期'!AA26="",COUNTBLANK(AI26:AQ26)=COUNTA($AI$2:$AQ$2)),"皆勤、"&LEFT(AT26,LEN(AT26)-1),LEFT(AT26,LEN(AT26)-1))) -> 皆勤 | AD26: =IF(AND(L26="",'1学期'!L26=""),"",L$2&L26+'1学期'!L26&"、") ->  | AE26: =IF(AND(M26="",'1学期'!M26=""),"",M$2&M26+'1学期'!M26&"、") ->  | AF26: =IF(AND(N26="",'1学期'!N26=""),"",N$2&N26+'1学期'!N26&"、") ->  | AG26: =IF(AND(O26="",'1学期'!O26=""),"",O$2&O26+'1学期'!O26&"、") ->  | AH26: =IF(AND(P26="",'1学期'!P26=""),"",P$2&P26+'1学期'!P26&"、") ->  | AI26: =IF(AND(Q26="",'1学期'!Q26=""),"",Q$2&Q26+'1学期'!Q26&"、") ->  | AJ26: =IF(AND(R26="",'1学期'!R26=""),"",R$2&R26+'1学期'!R26&"、") ->  | AK26: =IF(AND(S26="",'1学期'!S26=""),"",S$2&S26+'1学期'!S26&"、") ->  | AL26: =IF(AND(T26="",'1学期'!T26=""),"",T$2&T26+'1学期'!T26&"、") ->  | AM26: =IF(AND(U26="",'1学期'!U26=""),"",U$2&U26+'1学期'!U26&"、") ->  | AN26: =IF(AND(V26="",'1学期'!V26=""),"",V$2&V26+'1学期'!V26&"、") ->  | AO26: =IF(AND(W26="",'1学期'!W26=""),"",W$2&W26+'1学期'!W26&"、") ->  | AP26: =IF(AND(X26="",'1学期'!X26=""),"",X$2&X26+'1学期'!X26&"、") ->  | AQ26: =IF(AND(Y26="",'1学期'!Y26=""),"",Y$2&Y26+'1学期'!Y26&"、") ->  | AR26: =IF(AND(Z26="",'1学期'!Z26=""),"",Z$2&Z26+'1学期'!Z26&"、") -> 
A27: =IF(名簿!$A25="","",名簿!$A25) -> 1125 | B27: =IFERROR(VLOOKUP($A27,名簿!$A:$C,3,0),"") -> 0 | C27: 72 | D27: 0 | E27: 0 | F27: 2 | G27: 3 | H27: 0 | J27: =IF(AT27="",IF(OR('1学期'!AA27="あり",'2学期'!AA27="あり"),"特記事項なし","皆勤"),IF(AND('1学期'!AA27="",'2学期'!AA27="",COUNTBLANK(AI27:AQ27)=COUNTA($AI$2:$AQ$2)),"皆勤、"&LEFT(AT27,LEN(AT27)-1),LEFT(AT27,LEN(AT27)-1))) -> 体調不良2、感染症予防のため1 | L27: 1 | Q27: 1 | AA27: あり | AD27: =IF(AND(L27="",'1学期'!L27=""),"",L$2&L27+'1学期'!L27&"、") -> 感染症予防のため1、 | AE27: =IF(AND(M27="",'1学期'!M27=""),"",M$2&M27+'1学期'!M27&"、") ->  | AF27: =IF(AND(N27="",'1学期'!N27=""),"",N$2&N27+'1学期'!N27&"、") ->  | AG27: =IF(AND(O27="",'1学期'!O27=""),"",O$2&O27+'1学期'!O27&"、") ->  | AH27: =IF(AND(P27="",'1学期'!P27=""),"",P$2&P27+'1学期'!P27&"、") ->  | AI27: =IF(AND(Q27="",'1学期'!Q27=""),"",Q$2&Q27+'1学期'!Q27&"、") -> 体調不良2、 | AJ27: =IF(AND(R27="",'1学期'!R27=""),"",R$2&R27+'1学期'!R27&"、") ->  | AK27: =IF(AND(S27="",'1学期'!S27=""),"",S$2&S27+'1学期'!S27&"、") ->  | AL27: =IF(AND(T27="",'1学期'!T27=""),"",T$2&T27+'1学期'!T27&"、") ->  | AM27: =IF(AND(U27="",'1学期'!U27=""),"",U$2&U27+'1学期'!U27&"、") ->  | AN27: =IF(AND(V27="",'1学期'!V27=""),"",V$2&V27+'1学期'!V27&"、") ->  | AO27: =IF(AND(W27="",'1学期'!W27=""),"",W$2&W27+'1学期'!W27&"、") ->  | AP27: =IF(AND(X27="",'1学期'!X27=""),"",X$2&X27+'1学期'!X27&"、") ->  | AQ27: =IF(AND(Y27="",'1学期'!Y27=""),"",Y$2&Y27+'1学期'!Y27&"、") ->  | AR27: =IF(AND(Z27="",'1学期'!Z27=""),"",Z$2&Z27+'1学期'!Z27&"、") ->  | AT27: 体調不良2、感染症予防のため1、
A28: =IF(名簿!$A26="","",名簿!$A26) -> 1126 | B28: =IFERROR(VLOOKUP($A28,名簿!$A:$C,3,0),"") -> 0 | C28: 72 | D28: 0 | E28: 0 | F28: 0 | G28: 0 | H28: 0 | J28: =IF(AT28="",IF(OR('1学期'!AA28="あり",'2学期'!AA28="あり"),"特記事項なし","皆勤"),IF(AND('1学期'!AA28="",'2学期'!AA28="",COUNTBLANK(AI28:AQ28)=COUNTA($AI$2:$AQ$2)),"皆勤、"&LEFT(AT28,LEN(AT28)-1),LEFT(AT28,LEN(AT28)-1))) -> 体調不良43 | Q28: 11 | AD28: =IF(AND(L28="",'1学期'!L28=""),"",L$2&L28+'1学期'!L28&"、") ->  | AE28: =IF(AND(M28="",'1学期'!M28=""),"",M$2&M28+'1学期'!M28&"、") ->  | AF28: =IF(AND(N28="",'1学期'!N28=""),"",N$2&N28+'1学期'!N28&"、") ->  | AG28: =IF(AND(O28="",'1学期'!O28=""),"",O$2&O28+'1学期'!O28&"、") ->  | AH28: =IF(AND(P28="",'1学期'!P28=""),"",P$2&P28+'1学期'!P28&"、") ->  | AI28: =IF(AND(Q28="",'1学期'!Q28=""),"",Q$2&Q28+'1学期'!Q28&"、") -> 体調不良43、 | AJ28: =IF(AND(R28="",'1学期'!R28=""),"",R$2&R28+'1学期'!R28&"、") ->  | AK28: =IF(AND(S28="",'1学期'!S28=""),"",S$2&S28+'1学期'!S28&"、") ->  | AL28: =IF(AND(T28="",'1学期'!T28=""),"",T$2&T28+'1学期'!T28&"、") ->  | AM28: =IF(AND(U28="",'1学期'!U28=""),"",U$2&U28+'1学期'!U28&"、") ->  | AN28: =IF(AND(V28="",'1学期'!V28=""),"",V$2&V28+'1学期'!V28&"、") ->  | AO28: =IF(AND(W28="",'1学期'!W28=""),"",W$2&W28+'1学期'!W28&"、") ->  | AP28: =IF(AND(X28="",'1学期'!X28=""),"",X$2&X28+'1学期'!X28&"、") ->  | AQ28: =IF(AND(Y28="",'1学期'!Y28=""),"",Y$2&Y28+'1学期'!Y28&"、") ->  | AR28: =IF(AND(Z28="",'1学期'!Z28=""),"",Z$2&Z28+'1学期'!Z28&"、") ->  | AT28: 体調不良43、
A29: =IF(名簿!$A27="","",名簿!$A27) -> 1127 | B29: =IFERROR(VLOOKUP($A29,名簿!$A:$C,3,0),"") -> 0 | C29: 72 | D29: 0 | E29: 0 | F29: 17 | G29: 4 | H29: 0 | J29: =IF(AT29="",IF(OR('1学期'!AA29="あり",'2学期'!AA29="あり"),"特記事項なし","皆勤"),IF(AND('1学期'!AA29="",'2学期'!AA29="",COUNTBLANK(AI29:AQ29)=COUNTA($AI$2:$AQ$2)),"皆勤、"&LEFT(AT29,LEN(AT29)-1),LEFT(AT29,LEN(AT29)-1))) -> 体調不良24、発熱1 | Q29: 17 | AA29: あり | AD29: =IF(AND(L29="",'1学期'!L29=""),"",L$2&L29+'1学期'!L29&"、") ->  | AE29: =IF(AND(M29="",'1学期'!M29=""),"",M$2&M29+'1学期'!M29&"、") ->  | AF29: =IF(AND(N29="",'1学期'!N29=""),"",N$2&N29+'1学期'!N29&"、") ->  | AG29: =IF(AND(O29="",'1学期'!O29=""),"",O$2&O29+'1学期'!O29&"、") ->  | AH29: =IF(AND(P29="",'1学期'!P29=""),"",P$2&P29+'1学期'!P29&"、") ->  | AI29: =IF(AND(Q29="",'1学期'!Q29=""),"",Q$2&Q29+'1学期'!Q29&"、") -> 体調不良24、 | AJ29: =IF(AND(R29="",'1学期'!R29=""),"",R$2&R29+'1学期'!R29&"、") -> 発熱1、 | AK29: =IF(AND(S29="",'1学期'!S29=""),"",S$2&S29+'1学期'!S29&"、") ->  | AL29: =IF(AND(T29="",'1学期'!T29=""),"",T$2&T29+'1学期'!T29&"、") ->  | AM29: =IF(AND(U29="",'1学期'!U29=""),"",U$2&U29+'1学期'!U29&"、") ->  | AN29: =IF(AND(V29="",'1学期'!V29=""),"",V$2&V29+'1学期'!V29&"、") ->  | AO29: =IF(AND(W29="",'1学期'!W29=""),"",W$2&W29+'1学期'!W29&"、") ->  | AP29: =IF(AND(X29="",'1学期'!X29=""),"",X$2&X29+'1学期'!X29&"、") ->  | AQ29: =IF(AND(Y29="",'1学期'!Y29=""),"",Y$2&Y29+'1学期'!Y29&"、") ->  | AR29: =IF(AND(Z29="",'1学期'!Z29=""),"",Z$2&Z29+'1学期'!Z29&"、") ->  | AT29: 体調不良24、発熱1、
A30: =IF(名簿!$A28="","",名簿!$A28) -> 1128 | B30: =IFERROR(VLOOKUP($A30,名簿!$A:$C,3,0),"") -> 0 | C30: 72 | D30: 0 | E30: 0 | F30: 0 | G30: 0 | H30: 0 | J30: =IF(AT30="",IF(OR('1学期'!AA30="あり",'2学期'!AA30="あり"),"特記事項なし","皆勤"),IF(AND('1学期'!AA30="",'2学期'!AA30="",COUNTBLANK(AI30:AQ30)=COUNTA($AI$2:$AQ$2)),"皆勤、"&LEFT(AT30,LEN(AT30)-1),LEFT(AT30,LEN(AT30)-1))) -> 頭痛2 | AD30: =IF(AND(L30="",'1学期'!L30=""),"",L$2&L30+'1学期'!L30&"、") ->  | AE30: =IF(AND(M30="",'1学期'!M30=""),"",M$2&M30+'1学期'!M30&"、") ->  | AF30: =IF(AND(N30="",'1学期'!N30=""),"",N$2&N30+'1学期'!N30&"、") ->  | AG30: =IF(AND(O30="",'1学期'!O30=""),"",O$2&O30+'1学期'!O30&"、") ->  | AH30: =IF(AND(P30="",'1学期'!P30=""),"",P$2&P30+'1学期'!P30&"、") ->  | AI30: =IF(AND(Q30="",'1学期'!Q30=""),"",Q$2&Q30+'1学期'!Q30&"、") ->  | AJ30: =IF(AND(R30="",'1学期'!R30=""),"",R$2&R30+'1学期'!R30&"、") ->  | AK30: =IF(AND(S30="",'1学期'!S30=""),"",S$2&S30+'1学期'!S30&"、") ->  | AL30: =IF(AND(T30="",'1学期'!T30=""),"",T$2&T30+'1学期'!T30&"、") -> 頭痛2、 | AM30: =IF(AND(U30="",'1学期'!U30=""),"",U$2&U30+'1学期'!U30&"、") ->  | AN30: =IF(AND(V30="",'1学期'!V30=""),"",V$2&V30+'1学期'!V30&"、") ->  | AO30: =IF(AND(W30="",'1学期'!W30=""),"",W$2&W30+'1学期'!W30&"、") ->  | AP30: =IF(AND(X30="",'1学期'!X30=""),"",X$2&X30+'1学期'!X30&"、") ->  | AQ30: =IF(AND(Y30="",'1学期'!Y30=""),"",Y$2&Y30+'1学期'!Y30&"、") ->  | AR30: =IF(AND(Z30="",'1学期'!Z30=""),"",Z$2&Z30+'1学期'!Z30&"、") ->  | AT30: 頭痛2、
A31: =IF(名簿!$A29="","",名簿!$A29) -> 1129 | B31: =IFERROR(VLOOKUP($A31,名簿!$A:$C,3,0),"") -> 0 | C31: 72 | D31: 0 | E31: 0 | F31: 1 | G31: 0 | H31: 0 | J31: =IF(AT31="",IF(OR('1学期'!AA31="あり",'2学期'!AA31="あり"),"特記事項なし","皆勤"),IF(AND('1学期'!AA31="",'2学期'!AA31="",COUNTBLANK(AI31:AQ31)=COUNTA($AI$2:$AQ$2)),"皆勤、"&LEFT(AT31,LEN(AT31)-1),LEFT(AT31,LEN(AT31)-1))) -> 頭痛1 | T31: 1 | AD31: =IF(AND(L31="",'1学期'!L31=""),"",L$2&L31+'1学期'!L31&"、") ->  | AE31: =IF(AND(M31="",'1学期'!M31=""),"",M$2&M31+'1学期'!M31&"、") ->  | AF31: =IF(AND(N31="",'1学期'!N31=""),"",N$2&N31+'1学期'!N31&"、") ->  | AG31: =IF(AND(O31="",'1学期'!O31=""),"",O$2&O31+'1学期'!O31&"、") ->  | AH31: =IF(AND(P31="",'1学期'!P31=""),"",P$2&P31+'1学期'!P31&"、") ->  | AI31: =IF(AND(Q31="",'1学期'!Q31=""),"",Q$2&Q31+'1学期'!Q31&"、") ->  | AJ31: =IF(AND(R31="",'1学期'!R31=""),"",R$2&R31+'1学期'!R31&"、") ->  | AK31: =IF(AND(S31="",'1学期'!S31=""),"",S$2&S31+'1学期'!S31&"、") ->  | AL31: =IF(AND(T31="",'1学期'!T31=""),"",T$2&T31+'1学期'!T31&"、") -> 頭痛1、 | AM31: =IF(AND(U31="",'1学期'!U31=""),"",U$2&U31+'1学期'!U31&"、") ->  | AN31: =IF(AND(V31="",'1学期'!V31=""),"",V$2&V31+'1学期'!V31&"、") ->  | AO31: =IF(AND(W31="",'1学期'!W31=""),"",W$2&W31+'1学期'!W31&"、") ->  | AP31: =IF(AND(X31="",'1学期'!X31=""),"",X$2&X31+'1学期'!X31&"、") ->  | AQ31: =IF(AND(Y31="",'1学期'!Y31=""),"",Y$2&Y31+'1学期'!Y31&"、") ->  | AR31: =IF(AND(Z31="",'1学期'!Z31=""),"",Z$2&Z31+'1学期'!Z31&"、") ->  | AT31: 頭痛1、
A32: =IF(名簿!$A30="","",名簿!$A30) -> 1130 | B32: =IFERROR(VLOOKUP($A32,名簿!$A:$C,3,0),"") -> 0 | C32: 72 | D32: 0 | E32: 0 | F32: 0 | G32: 0 | H32: 0 | J32: =IF(AT32="",IF(OR('1学期'!AA32="あり",'2学期'!AA32="あり"),"特記事項なし","皆勤"),IF(AND('1学期'!AA32="",'2学期'!AA32="",COUNTBLANK(AI32:AQ32)=COUNTA($AI$2:$AQ$2)),"皆勤、"&LEFT(AT32,LEN(AT32)-1),LEFT(AT32,LEN(AT32)-1))) -> 皆勤 | AD32: =IF(AND(L32="",'1学期'!L32=""),"",L$2&L32+'1学期'!L32&"、") ->  | AE32: =IF(AND(M32="",'1学期'!M32=""),"",M$2&M32+'1学期'!M32&"、") ->  | AF32: =IF(AND(N32="",'1学期'!N32=""),"",N$2&N32+'1学期'!N32&"、") ->  | AG32: =IF(AND(O32="",'1学期'!O32=""),"",O$2&O32+'1学期'!O32&"、") ->  | AH32: =IF(AND(P32="",'1学期'!P32=""),"",P$2&P32+'1学期'!P32&"、") ->  | AI32: =IF(AND(Q32="",'1学期'!Q32=""),"",Q$2&Q32+'1学期'!Q32&"、") ->  | AJ32: =IF(AND(R32="",'1学期'!R32=""),"",R$2&R32+'1学期'!R32&"、") ->  | AK32: =IF(AND(S32="",'1学期'!S32=""),"",S$2&S32+'1学期'!S32&"、") ->  | AL32: =IF(AND(T32="",'1学期'!T32=""),"",T$2&T32+'1学期'!T32&"、") ->  | AM32: =IF(AND(U32="",'1学期'!U32=""),"",U$2&U32+'1学期'!U32&"、") ->  | AN32: =IF(AND(V32="",'1学期'!V32=""),"",V$2&V32+'1学期'!V32&"、") ->  | AO32: =IF(AND(W32="",'1学期'!W32=""),"",W$2&W32+'1学期'!W32&"、") ->  | AP32: =IF(AND(X32="",'1学期'!X32=""),"",X$2&X32+'1学期'!X32&"、") ->  | AQ32: =IF(AND(Y32="",'1学期'!Y32=""),"",Y$2&Y32+'1学期'!Y32&"、") ->  | AR32: =IF(AND(Z32="",'1学期'!Z32=""),"",Z$2&Z32+'1学期'!Z32&"、") -> 
A33: =IF(名簿!$A31="","",名簿!$A31) -> 1131 | B33: =IFERROR(VLOOKUP($A33,名簿!$A:$C,3,0),"") -> 0 | C33: 72 | D33: 0 | E33: 0 | F33: 1 | G33: 4 | H33: 0 | J33: =IF(AT33="",IF(OR('1学期'!AA33="あり",'2学期'!AA33="あり"),"特記事項なし","皆勤"),IF(AND('1学期'!AA33="",'2学期'!AA33="",COUNTBLANK(AI33:AQ33)=COUNTA($AI$2:$AQ$2)),"皆勤、"&LEFT(AT33,LEN(AT33)-1),LEFT(AT33,LEN(AT33)-1))) -> 頭痛1、感染症予防のため2 | T33: 1 | AA33: あり | AD33: =IF(AND(L33="",'1学期'!L33=""),"",L$2&L33+'1学期'!L33&"、") -> 感染症予防のため2、 | AE33: =IF(AND(M33="",'1学期'!M33=""),"",M$2&M33+'1学期'!M33&"、") ->  | AF33: =IF(AND(N33="",'1学期'!N33=""),"",N$2&N33+'1学期'!N33&"、") ->  | AG33: =IF(AND(O33="",'1学期'!O33=""),"",O$2&O33+'1学期'!O33&"、") ->  | AH33: =IF(AND(P33="",'1学期'!P33=""),"",P$2&P33+'1学期'!P33&"、") ->  | AI33: =IF(AND(Q33="",'1学期'!Q33=""),"",Q$2&Q33+'1学期'!Q33&"、") ->  | AJ33: =IF(AND(R33="",'1学期'!R33=""),"",R$2&R33+'1学期'!R33&"、") ->  | AK33: =IF(AND(S33="",'1学期'!S33=""),"",S$2&S33+'1学期'!S33&"、") ->  | AL33: =IF(AND(T33="",'1学期'!T33=""),"",T$2&T33+'1学期'!T33&"、") -> 頭痛1、 | AM33: =IF(AND(U33="",'1学期'!U33=""),"",U$2&U33+'1学期'!U33&"、") ->  | AN33: =IF(AND(V33="",'1学期'!V33=""),"",V$2&V33+'1学期'!V33&"、") ->  | AO33: =IF(AND(W33="",'1学期'!W33=""),"",W$2&W33+'1学期'!W33&"、") ->  | AP33: =IF(AND(X33="",'1学期'!X33=""),"",X$2&X33+'1学期'!X33&"、") ->  | AQ33: =IF(AND(Y33="",'1学期'!Y33=""),"",Y$2&Y33+'1学期'!Y33&"、") ->  | AR33: =IF(AND(Z33="",'1学期'!Z33=""),"",Z$2&Z33+'1学期'!Z33&"、") ->  | AT33: 頭痛1、感染症予防のため2、
A34: =IF(名簿!$A32="","",名簿!$A32) -> 1132 | B34: =IFERROR(VLOOKUP($A34,名簿!$A:$C,3,0),"") -> 0 | C34: 72 | D34: 2 | E34: 0 | F34: 0 | G34: 0 | H34: 0 | J34: =IF(AT34="",IF(OR('1学期'!AA34="あり",'2学期'!AA34="あり"),"特記事項なし","皆勤"),IF(AND('1学期'!AA34="",'2学期'!AA34="",COUNTBLANK(AI34:AQ34)=COUNTA($AI$2:$AQ$2)),"皆勤、"&LEFT(AT34,LEN(AT34)-1),LEFT(AT34,LEN(AT34)-1))) -> 皆勤、感染症予防のため1、入試1 | L34: 1 | P34: 1 | AD34: =IF(AND(L34="",'1学期'!L34=""),"",L$2&L34+'1学期'!L34&"、") -> 感染症予防のため1、 | AE34: =IF(AND(M34="",'1学期'!M34=""),"",M$2&M34+'1学期'!M34&"、") ->  | AF34: =IF(AND(N34="",'1学期'!N34=""),"",N$2&N34+'1学期'!N34&"、") ->  | AG34: =IF(AND(O34="",'1学期'!O34=""),"",O$2&O34+'1学期'!O34&"、") ->  | AH34: =IF(AND(P34="",'1学期'!P34=""),"",P$2&P34+'1学期'!P34&"、") -> 入試1、 | AI34: =IF(AND(Q34="",'1学期'!Q34=""),"",Q$2&Q34+'1学期'!Q34&"、") ->  | AJ34: =IF(AND(R34="",'1学期'!R34=""),"",R$2&R34+'1学期'!R34&"、") ->  | AK34: =IF(AND(S34="",'1学期'!S34=""),"",S$2&S34+'1学期'!S34&"、") ->  | AL34: =IF(AND(T34="",'1学期'!T34=""),"",T$2&T34+'1学期'!T34&"、") ->  | AM34: =IF(AND(U34="",'1学期'!U34=""),"",U$2&U34+'1学期'!U34&"、") ->  | AN34: =IF(AND(V34="",'1学期'!V34=""),"",V$2&V34+'1学期'!V34&"、") ->  | AO34: =IF(AND(W34="",'1学期'!W34=""),"",W$2&W34+'1学期'!W34&"、") ->  | AP34: =IF(AND(X34="",'1学期'!X34=""),"",X$2&X34+'1学期'!X34&"、") ->  | AQ34: =IF(AND(Y34="",'1学期'!Y34=""),"",Y$2&Y34+'1学期'!Y34&"、") ->  | AR34: =IF(AND(Z34="",'1学期'!Z34=""),"",Z$2&Z34+'1学期'!Z34&"、") ->  | AT34: 感染症予防のため1、入試1、
A35: =IF(名簿!$A33="","",名簿!$A33) -> 1133 | B35: =IFERROR(VLOOKUP($A35,名簿!$A:$C,3,0),"") -> 0 | C35: 72 | D35: 0 | E35: 0 | F35: 0 | G35: 1 | H35: 0 | J35: =IF(AT35="",IF(OR('1学期'!AA35="あり",'2学期'!AA35="あり"),"特記事項なし","皆勤"),IF(AND('1学期'!AA35="",'2学期'!AA35="",COUNTBLANK(AI35:AQ35)=COUNTA($AI$2:$AQ$2)),"皆勤、"&LEFT(AT35,LEN(AT35)-1),LEFT(AT35,LEN(AT35)-1))) -> 感染症予防のため7 | AA35: あり | AD35: =IF(AND(L35="",'1学期'!L35=""),"",L$2&L35+'1学期'!L35&"、") -> 感染症予防のため7、 | AE35: =IF(AND(M35="",'1学期'!M35=""),"",M$2&M35+'1学期'!M35&"、") ->  | AF35: =IF(AND(N35="",'1学期'!N35=""),"",N$2&N35+'1学期'!N35&"、") ->  | AG35: =IF(AND(O35="",'1学期'!O35=""),"",O$2&O35+'1学期'!O35&"、") ->  | AH35: =IF(AND(P35="",'1学期'!P35=""),"",P$2&P35+'1学期'!P35&"、") ->  | AI35: =IF(AND(Q35="",'1学期'!Q35=""),"",Q$2&Q35+'1学期'!Q35&"、") ->  | AJ35: =IF(AND(R35="",'1学期'!R35=""),"",R$2&R35+'1学期'!R35&"、") ->  | AK35: =IF(AND(S35="",'1学期'!S35=""),"",S$2&S35+'1学期'!S35&"、") ->  | AL35: =IF(AND(T35="",'1学期'!T35=""),"",T$2&T35+'1学期'!T35&"、") ->  | AM35: =IF(AND(U35="",'1学期'!U35=""),"",U$2&U35+'1学期'!U35&"、") ->  | AN35: =IF(AND(V35="",'1学期'!V35=""),"",V$2&V35+'1学期'!V35&"、") ->  | AO35: =IF(AND(W35="",'1学期'!W35=""),"",W$2&W35+'1学期'!W35&"、") ->  | AP35: =IF(AND(X35="",'1学期'!X35=""),"",X$2&X35+'1学期'!X35&"、") ->  | AQ35: =IF(AND(Y35="",'1学期'!Y35=""),"",Y$2&Y35+'1学期'!Y35&"、") ->  | AR35: =IF(AND(Z35="",'1学期'!Z35=""),"",Z$2&Z35+'1学期'!Z35&"、") ->  | AT35: 感染症予防のため7、
A36: =IF(名簿!$A34="","",名簿!$A34) -> 1134 | B36: =IFERROR(VLOOKUP($A36,名簿!$A:$C,3,0),"") -> 0 | C36: 72 | D36: 0 | E36: 0 | F36: 0 | G36: 0 | H36: 0 | J36: =IF(AT36="",IF(OR('1学期'!AA36="あり",'2学期'!AA36="あり"),"特記事項なし","皆勤"),IF(AND('1学期'!AA36="",'2学期'!AA36="",COUNTBLANK(AI36:AQ36)=COUNTA($AI$2:$AQ$2)),"皆勤、"&LEFT(AT36,LEN(AT36)-1),LEFT(AT36,LEN(AT36)-1))) -> 皆勤 | AD36: =IF(AND(L36="",'1学期'!L36=""),"",L$2&L36+'1学期'!L36&"、") ->  | AE36: =IF(AND(M36="",'1学期'!M36=""),"",M$2&M36+'1学期'!M36&"、") ->  | AF36: =IF(AND(N36="",'1学期'!N36=""),"",N$2&N36+'1学期'!N36&"、") ->  | AG36: =IF(AND(O36="",'1学期'!O36=""),"",O$2&O36+'1学期'!O36&"、") ->  | AH36: =IF(AND(P36="",'1学期'!P36=""),"",P$2&P36+'1学期'!P36&"、") ->  | AI36: =IF(AND(Q36="",'1学期'!Q36=""),"",Q$2&Q36+'1学期'!Q36&"、") ->  | AJ36: =IF(AND(R36="",'1学期'!R36=""),"",R$2&R36+'1学期'!R36&"、") ->  | AK36: =IF(AND(S36="",'1学期'!S36=""),"",S$2&S36+'1学期'!S36&"、") ->  | AL36: =IF(AND(T36="",'1学期'!T36=""),"",T$2&T36+'1学期'!T36&"、") ->  | AM36: =IF(AND(U36="",'1学期'!U36=""),"",U$2&U36+'1学期'!U36&"、") ->  | AN36: =IF(AND(V36="",'1学期'!V36=""),"",V$2&V36+'1学期'!V36&"、") ->  | AO36: =IF(AND(W36="",'1学期'!W36=""),"",W$2&W36+'1学期'!W36&"、") ->  | AP36: =IF(AND(X36="",'1学期'!X36=""),"",X$2&X36+'1学期'!X36&"、") ->  | AQ36: =IF(AND(Y36="",'1学期'!Y36=""),"",Y$2&Y36+'1学期'!Y36&"、") ->  | AR36: =IF(AND(Z36="",'1学期'!Z36=""),"",Z$2&Z36+'1学期'!Z36&"、") -> 
A37: =IF(名簿!$A35="","",名簿!$A35) -> 1135 | B37: =IFERROR(VLOOKUP($A37,名簿!$A:$C,3,0),"") -> 0 | C37: 72 | D37: 0 | E37: 0 | F37: 3 | G37: 0 | H37: 0 | J37: =IF(AT37="",IF(OR('1学期'!AA37="あり",'2学期'!AA37="あり"),"特記事項なし","皆勤"),IF(AND('1学期'!AA37="",'2学期'!AA37="",COUNTBLANK(AI37:AQ37)=COUNTA($AI$2:$AQ$2)),"皆勤、"&LEFT(AT37,LEN(AT37)-1),LEFT(AT37,LEN(AT37)-1))) -> 体調不良3、腹痛1 | Q37: 2 | U37: 1 | AD37: =IF(AND(L37="",'1学期'!L37=""),"",L$2&L37+'1学期'!L37&"、") ->  | AE37: =IF(AND(M37="",'1学期'!M37=""),"",M$2&M37+'1学期'!M37&"、") ->  | AF37: =IF(AND(N37="",'1学期'!N37=""),"",N$2&N37+'1学期'!N37&"、") ->  | AG37: =IF(AND(O37="",'1学期'!O37=""),"",O$2&O37+'1学期'!O37&"、") ->  | AH37: =IF(AND(P37="",'1学期'!P37=""),"",P$2&P37+'1学期'!P37&"、") ->  | AI37: =IF(AND(Q37="",'1学期'!Q37=""),"",Q$2&Q37+'1学期'!Q37&"、") -> 体調不良3、 | AJ37: =IF(AND(R37="",'1学期'!R37=""),"",R$2&R37+'1学期'!R37&"、") ->  | AK37: =IF(AND(S37="",'1学期'!S37=""),"",S$2&S37+'1学期'!S37&"、") ->  | AL37: =IF(AND(T37="",'1学期'!T37=""),"",T$2&T37+'1学期'!T37&"、") ->  | AM37: =IF(AND(U37="",'1学期'!U37=""),"",U$2&U37+'1学期'!U37&"、") -> 腹痛1、 | AN37: =IF(AND(V37="",'1学期'!V37=""),"",V$2&V37+'1学期'!V37&"、") ->  | AO37: =IF(AND(W37="",'1学期'!W37=""),"",W$2&W37+'1学期'!W37&"、") ->  | AP37: =IF(AND(X37="",'1学期'!X37=""),"",X$2&X37+'1学期'!X37&"、") ->  | AQ37: =IF(AND(Y37="",'1学期'!Y37=""),"",Y$2&Y37+'1学期'!Y37&"、") ->  | AR37: =IF(AND(Z37="",'1学期'!Z37=""),"",Z$2&Z37+'1学期'!Z37&"、") ->  | AT37: 体調不良3、腹痛1、
A38: =IF(名簿!$A36="","",名簿!$A36) -> 1136 | B38: =IFERROR(VLOOKUP($A38,名簿!$A:$C,3,0),"") -> 0 | C38: 72 | D38: 0 | E38: 0 | F38: 0 | G38: 0 | H38: 0 | J38: =IF(AT38="",IF(OR('1学期'!AA38="あり",'2学期'!AA38="あり"),"特記事項なし","皆勤"),IF(AND('1学期'!AA38="",'2学期'!AA38="",COUNTBLANK(AI38:AQ38)=COUNTA($AI$2:$AQ$2)),"皆勤、"&LEFT(AT38,LEN(AT38)-1),LEFT(AT38,LEN(AT38)-1))) -> 皆勤 | AD38: =IF(AND(L38="",'1学期'!L38=""),"",L$2&L38+'1学期'!L38&"、") ->  | AE38: =IF(AND(M38="",'1学期'!M38=""),"",M$2&M38+'1学期'!M38&"、") ->  | AF38: =IF(AND(N38="",'1学期'!N38=""),"",N$2&N38+'1学期'!N38&"、") ->  | AG38: =IF(AND(O38="",'1学期'!O38=""),"",O$2&O38+'1学期'!O38&"、") ->  | AH38: =IF(AND(P38="",'1学期'!P38=""),"",P$2&P38+'1学期'!P38&"、") ->  | AI38: =IF(AND(Q38="",'1学期'!Q38=""),"",Q$2&Q38+'1学期'!Q38&"、") ->  | AJ38: =IF(AND(R38="",'1学期'!R38=""),"",R$2&R38+'1学期'!R38&"、") ->  | AK38: =IF(AND(S38="",'1学期'!S38=""),"",S$2&S38+'1学期'!S38&"、") ->  | AL38: =IF(AND(T38="",'1学期'!T38=""),"",T$2&T38+'1学期'!T38&"、") ->  | AM38: =IF(AND(U38="",'1学期'!U38=""),"",U$2&U38+'1学期'!U38&"、") ->  | AN38: =IF(AND(V38="",'1学期'!V38=""),"",V$2&V38+'1学期'!V38&"、") ->  | AO38: =IF(AND(W38="",'1学期'!W38=""),"",W$2&W38+'1学期'!W38&"、") ->  | AP38: =IF(AND(X38="",'1学期'!X38=""),"",X$2&X38+'1学期'!X38&"、") ->  | AQ38: =IF(AND(Y38="",'1学期'!Y38=""),"",Y$2&Y38+'1学期'!Y38&"、") ->  | AR38: =IF(AND(Z38="",'1学期'!Z38=""),"",Z$2&Z38+'1学期'!Z38&"、") -> 
A39: =IF(名簿!$A37="","",名簿!$A37) -> 1137 | B39: =IFERROR(VLOOKUP($A39,名簿!$A:$C,3,0),"") -> 0 | C39: 72 | D39: 0 | E39: 0 | F39: 0 | G39: 0 | H39: 0 | J39: =IF(AT39="",IF(OR('1学期'!AA39="あり",'2学期'!AA39="あり"),"特記事項なし","皆勤"),IF(AND('1学期'!AA39="",'2学期'!AA39="",COUNTBLANK(AI39:AQ39)=COUNTA($AI$2:$AQ$2)),"皆勤、"&LEFT(AT39,LEN(AT39)-1),LEFT(AT39,LEN(AT39)-1))) -> 皆勤 | AD39: =IF(AND(L39="",'1学期'!L39=""),"",L$2&L39+'1学期'!L39&"、") ->  | AE39: =IF(AND(M39="",'1学期'!M39=""),"",M$2&M39+'1学期'!M39&"、") ->  | AF39: =IF(AND(N39="",'1学期'!N39=""),"",N$2&N39+'1学期'!N39&"、") ->  | AG39: =IF(AND(O39="",'1学期'!O39=""),"",O$2&O39+'1学期'!O39&"、") ->  | AH39: =IF(AND(P39="",'1学期'!P39=""),"",P$2&P39+'1学期'!P39&"、") ->  | AI39: =IF(AND(Q39="",'1学期'!Q39=""),"",Q$2&Q39+'1学期'!Q39&"、") ->  | AJ39: =IF(AND(R39="",'1学期'!R39=""),"",R$2&R39+'1学期'!R39&"、") ->  | AK39: =IF(AND(S39="",'1学期'!S39=""),"",S$2&S39+'1学期'!S39&"、") ->  | AL39: =IF(AND(T39="",'1学期'!T39=""),"",T$2&T39+'1学期'!T39&"、") ->  | AM39: =IF(AND(U39="",'1学期'!U39=""),"",U$2&U39+'1学期'!U39&"、") ->  | AN39: =IF(AND(V39="",'1学期'!V39=""),"",V$2&V39+'1学期'!V39&"、") ->  | AO39: =IF(AND(W39="",'1学期'!W39=""),"",W$2&W39+'1学期'!W39&"、") ->  | AP39: =IF(AND(X39="",'1学期'!X39=""),"",X$2&X39+'1学期'!X39&"、") ->  | AQ39: =IF(AND(Y39="",'1学期'!Y39=""),"",Y$2&Y39+'1学期'!Y39&"、") ->  | AR39: =IF(AND(Z39="",'1学期'!Z39=""),"",Z$2&Z39+'1学期'!Z39&"、") -> 
A40: =IF(名簿!$A38="","",名簿!$A38) -> 1138 | B40: =IFERROR(VLOOKUP($A40,名簿!$A:$C,3,0),"") -> 0 | C40: 72 | D40: 0 | E40: 0 | F40: 0 | G40: 0 | H40: 0 | J40: =IF(AT40="",IF(OR('1学期'!AA40="あり",'2学期'!AA40="あり"),"特記事項なし","皆勤"),IF(AND('1学期'!AA40="",'2学期'!AA40="",COUNTBLANK(AI40:AQ40)=COUNTA($AI$2:$AQ$2)),"皆勤、"&LEFT(AT40,LEN(AT40)-1),LEFT(AT40,LEN(AT40)-1))) -> 皆勤 | AD40: =IF(AND(L40="",'1学期'!L40=""),"",L$2&L40+'1学期'!L40&"、") ->  | AE40: =IF(AND(M40="",'1学期'!M40=""),"",M$2&M40+'1学期'!M40&"、") ->  | AF40: =IF(AND(N40="",'1学期'!N40=""),"",N$2&N40+'1学期'!N40&"、") ->  | AG40: =IF(AND(O40="",'1学期'!O40=""),"",O$2&O40+'1学期'!O40&"、") ->  | AH40: =IF(AND(P40="",'1学期'!P40=""),"",P$2&P40+'1学期'!P40&"、") ->  | AI40: =IF(AND(Q40="",'1学期'!Q40=""),"",Q$2&Q40+'1学期'!Q40&"、") ->  | AJ40: =IF(AND(R40="",'1学期'!R40=""),"",R$2&R40+'1学期'!R40&"、") ->  | AK40: =IF(AND(S40="",'1学期'!S40=""),"",S$2&S40+'1学期'!S40&"、") ->  | AL40: =IF(AND(T40="",'1学期'!T40=""),"",T$2&T40+'1学期'!T40&"、") ->  | AM40: =IF(AND(U40="",'1学期'!U40=""),"",U$2&U40+'1学期'!U40&"、") ->  | AN40: =IF(AND(V40="",'1学期'!V40=""),"",V$2&V40+'1学期'!V40&"、") ->  | AO40: =IF(AND(W40="",'1学期'!W40=""),"",W$2&W40+'1学期'!W40&"、") ->  | AP40: =IF(AND(X40="",'1学期'!X40=""),"",X$2&X40+'1学期'!X40&"、") ->  | AQ40: =IF(AND(Y40="",'1学期'!Y40=""),"",Y$2&Y40+'1学期'!Y40&"、") ->  | AR40: =IF(AND(Z40="",'1学期'!Z40=""),"",Z$2&Z40+'1学期'!Z40&"、") -> 
A41: =IF(名簿!$A39="","",名簿!$A39) -> 1139 | B41: =IFERROR(VLOOKUP($A41,名簿!$A:$C,3,0),"") -> 0 | C41: 72 | D41: 0 | E41: 0 | F41: 0 | G41: 0 | H41: 0 | J41: =IF(AT41="",IF(OR('1学期'!AA41="あり",'2学期'!AA41="あり"),"特記事項なし","皆勤"),IF(AND('1学期'!AA41="",'2学期'!AA41="",COUNTBLANK(AI41:AQ41)=COUNTA($AI$2:$AQ$2)),"皆勤、"&LEFT(AT41,LEN(AT41)-1),LEFT(AT41,LEN(AT41)-1))) -> 皆勤 | AD41: =IF(AND(L41="",'1学期'!L41=""),"",L$2&L41+'1学期'!L41&"、") ->  | AE41: =IF(AND(M41="",'1学期'!M41=""),"",M$2&M41+'1学期'!M41&"、") ->  | AF41: =IF(AND(N41="",'1学期'!N41=""),"",N$2&N41+'1学期'!N41&"、") ->  | AG41: =IF(AND(O41="",'1学期'!O41=""),"",O$2&O41+'1学期'!O41&"、") ->  | AH41: =IF(AND(P41="",'1学期'!P41=""),"",P$2&P41+'1学期'!P41&"、") ->  | AI41: =IF(AND(Q41="",'1学期'!Q41=""),"",Q$2&Q41+'1学期'!Q41&"、") ->  | AJ41: =IF(AND(R41="",'1学期'!R41=""),"",R$2&R41+'1学期'!R41&"、") ->  | AK41: =IF(AND(S41="",'1学期'!S41=""),"",S$2&S41+'1学期'!S41&"、") ->  | AL41: =IF(AND(T41="",'1学期'!T41=""),"",T$2&T41+'1学期'!T41&"、") ->  | AM41: =IF(AND(U41="",'1学期'!U41=""),"",U$2&U41+'1学期'!U41&"、") ->  | AN41: =IF(AND(V41="",'1学期'!V41=""),"",V$2&V41+'1学期'!V41&"、") ->  | AO41: =IF(AND(W41="",'1学期'!W41=""),"",W$2&W41+'1学期'!W41&"、") ->  | AP41: =IF(AND(X41="",'1学期'!X41=""),"",X$2&X41+'1学期'!X41&"、") ->  | AQ41: =IF(AND(Y41="",'1学期'!Y41=""),"",Y$2&Y41+'1学期'!Y41&"、") ->  | AR41: =IF(AND(Z41="",'1学期'!Z41=""),"",Z$2&Z41+'1学期'!Z41&"、") -> 
A42: =IF(名簿!$A40="","",名簿!$A40) -> 1140 | B42: =IFERROR(VLOOKUP($A42,名簿!$A:$C,3,0),"") -> 0 | C42: 72 | D42: 0 | E42: 0 | F42: 0 | G42: 0 | H42: 0 | J42: =IF(AT42="",IF(OR('1学期'!AA42="あり",'2学期'!AA42="あり"),"特記事項なし","皆勤"),IF(AND('1学期'!AA42="",'2学期'!AA42="",COUNTBLANK(AI42:AQ42)=COUNTA($AI$2:$AQ$2)),"皆勤、"&LEFT(AT42,LEN(AT42)-1),LEFT(AT42,LEN(AT42)-1))) -> 皆勤 | AD42: =IF(AND(L42="",'1学期'!L42=""),"",L$2&L42+'1学期'!L42&"、") ->  | AE42: =IF(AND(M42="",'1学期'!M42=""),"",M$2&M42+'1学期'!M42&"、") ->  | AF42: =IF(AND(N42="",'1学期'!N42=""),"",N$2&N42+'1学期'!N42&"、") ->  | AG42: =IF(AND(O42="",'1学期'!O42=""),"",O$2&O42+'1学期'!O42&"、") ->  | AH42: =IF(AND(P42="",'1学期'!P42=""),"",P$2&P42+'1学期'!P42&"、") ->  | AI42: =IF(AND(Q42="",'1学期'!Q42=""),"",Q$2&Q42+'1学期'!Q42&"、") ->  | AJ42: =IF(AND(R42="",'1学期'!R42=""),"",R$2&R42+'1学期'!R42&"、") ->  | AK42: =IF(AND(S42="",'1学期'!S42=""),"",S$2&S42+'1学期'!S42&"、") ->  | AL42: =IF(AND(T42="",'1学期'!T42=""),"",T$2&T42+'1学期'!T42&"、") ->  | AM42: =IF(AND(U42="",'1学期'!U42=""),"",U$2&U42+'1学期'!U42&"、") ->  | AN42: =IF(AND(V42="",'1学期'!V42=""),"",V$2&V42+'1学期'!V42&"、") ->  | AO42: =IF(AND(W42="",'1学期'!W42=""),"",W$2&W42+'1学期'!W42&"、") ->  | AP42: =IF(AND(X42="",'1学期'!X42=""),"",X$2&X42+'1学期'!X42&"、") ->  | AQ42: =IF(AND(Y42="",'1学期'!Y42=""),"",Y$2&Y42+'1学期'!Y42&"、") ->  | AR42: =IF(AND(Z42="",'1学期'!Z42=""),"",Z$2&Z42+'1学期'!Z42&"、") -> 
AB45: あり

Sheet 3学期
A1: 1 | B1: 2 | C1: 3 | D1: 4 | E1: 5 | F1: 6 | G1: 7 | H1: 8 | I1: 9 | J1: 10
A2: 番号 | B2: 名前 | C2: 3学期の授業日数 | D2: 3学期の出停忌引 | E2: 3学期の留学日数 | F2: 3学期の欠席日数 | G2: 3学期の遅刻回数 | H2: 3学期の早退回数 | I2: 備考 | J2: 連絡 | L2: 感染症予防のため | M2: 感染症のため | N2: 祖母葬儀 | O2: 祖父葬儀 | P2: 入試 | Q2: 体調不良 | R2: 発熱 | S2: 風邪 | T2: 頭痛 | U2: 腹痛 | V2: 腰痛 | W2: 通院 | X2: 怪我 | Y2: 家事都合 | Z2: 自己都合 | AA2: 遅刻 早退 | AB2: 欠席合計 | AD2: 感染症予防のため | AE2: 感染症のため | AF2: 祖母葬儀 | AG2: 祖父葬儀 | AH2: 入試 | AI2: 体調不良 | AJ2: 発熱 | AK2: 風邪 | AL2: 頭痛 | AM2: 腹痛 | AN2: 腰痛 | AO2: 通院 | AP2: 怪我 | AQ2: 家事都合 | AR2: 自己都合 | AT2: 、あり
A3: =IF(名簿!$A1="","",名簿!$A1) -> 1101 | B3: =IFERROR(VLOOKUP($A3,名簿!$A:$C,3,0),"") -> 田中太郎 | C3: 56 | D3: 0 | E3: 0 | F3: 0 | G3: 0 | H3: 0 | J3: =IF(AT3="",IF(OR('1学期'!AA3="あり",'2学期'!AA3="あり",AA3="あり"),"特記事項なし","皆勤"),IF(AND('1学期'!AA3="",'2学期'!AA3="",AA3="",COUNTBLANK(AI3:AQ3)=COUNTA($AI$2:$AQ$2)),"皆勤、"&LEFT(AT3,LEN(AT3)-1),LEFT(AT3,LEN(AT3)-1))) -> 皆勤 | AD3: =IF(AND(L3="",'1学期'!L3="",'2学期'!L3=""),"",L$2&L3+'1学期'!L3+'2学期'!L3&"、") ->  | AE3: =IF(AND(M3="",'1学期'!M3="",'2学期'!M3=""),"",M$2&M3+'1学期'!M3+'2学期'!M3&"、") ->  | AF3: =IF(AND(N3="",'1学期'!N3="",'2学期'!N3=""),"",N$2&N3+'1学期'!N3+'2学期'!N3&"、") ->  | AG3: =IF(AND(O3="",'1学期'!O3="",'2学期'!O3=""),"",O$2&O3+'1学期'!O3+'2学期'!O3&"、") ->  | AH3: =IF(AND(P3="",'1学期'!P3="",'2学期'!P3=""),"",P$2&P3+'1学期'!P3+'2学期'!P3&"、") ->  | AI3: =IF(AND(Q3="",'1学期'!Q3="",'2学期'!Q3=""),"",Q$2&Q3+'1学期'!Q3+'2学期'!Q3&"、") ->  | AJ3: =IF(AND(R3="",'1学期'!R3="",'2学期'!R3=""),"",R$2&R3+'1学期'!R3+'2学期'!R3&"、") ->  | AK3: =IF(AND(S3="",'1学期'!S3="",'2学期'!S3=""),"",S$2&S3+'1学期'!S3+'2学期'!S3&"、") ->  | AL3: =IF(AND(T3="",'1学期'!T3="",'2学期'!T3=""),"",T$2&T3+'1学期'!T3+'2学期'!T3&"、") ->  | AM3: =IF(AND(U3="",'1学期'!U3="",'2学期'!U3=""),"",U$2&U3+'1学期'!U3+'2学期'!U3&"、") ->  | AN3: =IF(AND(V3="",'1学期'!V3="",'2学期'!V3=""),"",V$2&V3+'1学期'!V3+'2学期'!V3&"、") ->  | AO3: =IF(AND(W3="",'1学期'!W3="",'2学期'!W3=""),"",W$2&W3+'1学期'!W3+'2学期'!W3&"、") ->  | AP3: =IF(AND(X3="",'1学期'!X3="",'2学期'!X3=""),"",X$2&X3+'1学期'!X3+'2学期'!X3&"、") ->  | AQ3: =IF(AND(Y3="",'1学期'!Y3="",'2学期'!Y3=""),"",Y$2&Y3+'1学期'!Y3+'2学期'!Y3&"、") ->  | AR3: =IF(AND(Z3="",'1学期'!Z3="",'2学期'!Z3=""),"",Z$2&Z3+'1学期'!Z3+'2学期'!Z3&"、") ->  | AT3: =CONCATENATE(AI3,AJ3,AK3,AL3,AM3,AN3,AO3,AP3,AQ3,AR3,AD3,AE3,AF3,AG3,AH3) ->  | AV3: "=IF(AI3="",IF(OR('1学期'!V3="あり",'2学期'!V3="あり",V3="あり"),"特記事項なし","皆勤"),IF(AND('1学期'!V3="",'2学期'!V3="",V3="",COUNTBLANK(AA3:AG3)=COUNTA($AA$2:$AG$2)),"皆勤、"&LEFT(AI3,LEN(AI3)-1),LEFT(AI3,LEN(AI3)-1)))
A4: =IF(名簿!$A2="","",名簿!$A2) -> 1102 | B4: =IFERROR(VLOOKUP($A4,名簿!$A:$C,3,0),"") -> 小林治郎 | C4: 56 | D4: 0 | E4: 0 | F4: 0 | G4: 0 | H4: 0 | J4: =IF(AT4="",IF(OR('1学期'!AA4="あり",'2学期'!AA4="あり",AA4="あり"),"特記事項なし","皆勤"),IF(AND('1学期'!AA4="",'2学期'!AA4="",AA4="",COUNTBLANK(AI4:AQ4)=COUNTA($AI$2:$AQ$2)),"皆勤、"&LEFT(AT4,LEN(AT4)-1),LEFT(AT4,LEN(AT4)-1))) -> 皆勤、感染症予防のため7 | L4: 7 | AD4: =IF(AND(L4="",'1学期'!L4="",'2学期'!L4=""),"",L$2&L4+'1学期'!L4+'2学期'!L4&"、") -> 感染症予防のため7、 | AE4: =IF(AND(M4="",'1学期'!M4="",'2学期'!M4=""),"",M$2&M4+'1学期'!M4+'2学期'!M4&"、") ->  | AF4: =IF(AND(N4="",'1学期'!N4="",'2学期'!N4=""),"",N$2&N4+'1学期'!N4+'2学期'!N4&"、") ->  | AG4: =IF(AND(O4="",'1学期'!O4="",'2学期'!O4=""),"",O$2&O4+'1学期'!O4+'2学期'!O4&"、") ->  | AH4: =IF(AND(P4="",'1学期'!P4="",'2学期'!P4=""),"",P$2&P4+'1学期'!P4+'2学期'!P4&"、") ->  | AI4: =IF(AND(Q4="",'1学期'!Q4="",'2学期'!Q4=""),"",Q$2&Q4+'1学期'!Q4+'2学期'!Q4&"、") ->  | AJ4: =IF(AND(R4="",'1学期'!R4="",'2学期'!R4=""),"",R$2&R4+'1学期'!R4+'2学期'!R4&"、") ->  | AK4: =IF(AND(S4="",'1学期'!S4="",'2学期'!S4=""),"",S$2&S4+'1学期'!S4+'2学期'!S4&"、") ->  | AL4: =IF(AND(T4="",'1学期'!T4="",'2学期'!T4=""),"",T$2&T4+'1学期'!T4+'2学期'!T4&"、") ->  | AM4: =IF(AND(U4="",'1学期'!U4="",'2学期'!U4=""),"",U$2&U4+'1学期'!U4+'2学期'!U4&"、") ->  | AN4: =IF(AND(V4="",'1学期'!V4="",'2学期'!V4=""),"",V$2&V4+'1学期'!V4+'2学期'!V4&"、") ->  | AO4: =IF(AND(W4="",'1学期'!W4="",'2学期'!W4=""),"",W$2&W4+'1学期'!W4+'2学期'!W4&"、") ->  | AP4: =IF(AND(X4="",'1学期'!X4="",'2学期'!X4=""),"",X$2&X4+'1学期'!X4+'2学期'!X4&"、") ->  | AQ4: =IF(AND(Y4="",'1学期'!Y4="",'2学期'!Y4=""),"",Y$2&Y4+'1学期'!Y4+'2学期'!Y4&"、") ->  | AR4: =IF(AND(Z4="",'1学期'!Z4="",'2学期'!Z4=""),"",Z$2&Z4+'1学期'!Z4+'2学期'!Z4&"、") ->  | AT4: =CONCATENATE(AI4,AJ4,AK4,AL4,AM4,AN4,AO4,AP4,AQ4,AR4,AD4,AE4,AF4,AG4,AH4) -> 感染症予防のため7、 | AV4: もしまとめたものが空白だったら、休んでいないいうことなので、１～３学期の遅刻早退があるか確認する。あれば特記事項なし、なければ皆勤。
A5: =IF(名簿!$A3="","",名簿!$A3) -> 1103 | B5: =IFERROR(VLOOKUP($A5,名簿!$A:$C,3,0),"") -> 佐藤三郎 | C5: 56 | D5: 0 | E5: 0 | F5: 0 | G5: 0 | H5: 0 | J5: =IF(AT5="",IF(OR('1学期'!AA5="あり",'2学期'!AA5="あり",AA5="あり"),"特記事項なし","皆勤"),IF(AND('1学期'!AA5="",'2学期'!AA5="",AA5="",COUNTBLANK(AI5:AQ5)=COUNTA($AI$2:$AQ$2)),"皆勤、"&LEFT(AT5,LEN(AT5)-1),LEFT(AT5,LEN(AT5)-1))) -> 皆勤、感染症予防のため1 | L5: 1 | AD5: =IF(AND(L5="",'1学期'!L5="",'2学期'!L5=""),"",L$2&L5+'1学期'!L5+'2学期'!L5&"、") -> 感染症予防のため1、 | AE5: =IF(AND(M5="",'1学期'!M5="",'2学期'!M5=""),"",M$2&M5+'1学期'!M5+'2学期'!M5&"、") ->  | AF5: =IF(AND(N5="",'1学期'!N5="",'2学期'!N5=""),"",N$2&N5+'1学期'!N5+'2学期'!N5&"、") ->  | AG5: =IF(AND(O5="",'1学期'!O5="",'2学期'!O5=""),"",O$2&O5+'1学期'!O5+'2学期'!O5&"、") ->  | AH5: =IF(AND(P5="",'1学期'!P5="",'2学期'!P5=""),"",P$2&P5+'1学期'!P5+'2学期'!P5&"、") ->  | AI5: =IF(AND(Q5="",'1学期'!Q5="",'2学期'!Q5=""),"",Q$2&Q5+'1学期'!Q5+'2学期'!Q5&"、") ->  | AJ5: =IF(AND(R5="",'1学期'!R5="",'2学期'!R5=""),"",R$2&R5+'1学期'!R5+'2学期'!R5&"、") ->  | AK5: =IF(AND(S5="",'1学期'!S5="",'2学期'!S5=""),"",S$2&S5+'1学期'!S5+'2学期'!S5&"、") ->  | AL5: =IF(AND(T5="",'1学期'!T5="",'2学期'!T5=""),"",T$2&T5+'1学期'!T5+'2学期'!T5&"、") ->  | AM5: =IF(AND(U5="",'1学期'!U5="",'2学期'!U5=""),"",U$2&U5+'1学期'!U5+'2学期'!U5&"、") ->  | AN5: =IF(AND(V5="",'1学期'!V5="",'2学期'!V5=""),"",V$2&V5+'1学期'!V5+'2学期'!V5&"、") ->  | AO5: =IF(AND(W5="",'1学期'!W5="",'2学期'!W5=""),"",W$2&W5+'1学期'!W5+'2学期'!W5&"、") ->  | AP5: =IF(AND(X5="",'1学期'!X5="",'2学期'!X5=""),"",X$2&X5+'1学期'!X5+'2学期'!X5&"、") ->  | AQ5: =IF(AND(Y5="",'1学期'!Y5="",'2学期'!Y5=""),"",Y$2&Y5+'1学期'!Y5+'2学期'!Y5&"、") ->  | AR5: =IF(AND(Z5="",'1学期'!Z5="",'2学期'!Z5=""),"",Z$2&Z5+'1学期'!Z5+'2学期'!Z5&"、") ->  | AT5: 感染症予防のため1、 | AV5: 空白でなければ、休んだということだが、出席停止＆忌引きを確認する必要がある。１～３学期に遅刻がなく、体調不良などの欠席がなければ、「皆勤、祖父葬儀1」などと書かれるようにする。
A6: =IF(名簿!$A4="","",名簿!$A4) -> 1104 | B6: =IFERROR(VLOOKUP($A6,名簿!$A:$C,3,0),"") -> 山田花子 | C6: 56 | D6: 0 | E6: 0 | F6: 0 | G6: 0 | H6: 0 | J6: =IF(AT6="",IF(OR('1学期'!AA6="あり",'2学期'!AA6="あり",AA6="あり"),"特記事項なし","皆勤"),IF(AND('1学期'!AA6="",'2学期'!AA6="",AA6="",COUNTBLANK(AI6:AQ6)=COUNTA($AI$2:$AQ$2)),"皆勤、"&LEFT(AT6,LEN(AT6)-1),LEFT(AT6,LEN(AT6)-1))) -> 体調不良9、頭痛3、感染症のため3 | AD6: =IF(AND(L6="",'1学期'!L6="",'2学期'!L6=""),"",L$2&L6+'1学期'!L6+'2学期'!L6&"、") ->  | AE6: =IF(AND(M6="",'1学期'!M6="",'2学期'!M6=""),"",M$2&M6+'1学期'!M6+'2学期'!M6&"、") -> 感染症のため3、 | AF6: =IF(AND(N6="",'1学期'!N6="",'2学期'!N6=""),"",N$2&N6+'1学期'!N6+'2学期'!N6&"、") ->  | AG6: =IF(AND(O6="",'1学期'!O6="",'2学期'!O6=""),"",O$2&O6+'1学期'!O6+'2学期'!O6&"、") ->  | AH6: =IF(AND(P6="",'1学期'!P6="",'2学期'!P6=""),"",P$2&P6+'1学期'!P6+'2学期'!P6&"、") ->  | AI6: =IF(AND(Q6="",'1学期'!Q6="",'2学期'!Q6=""),"",Q$2&Q6+'1学期'!Q6+'2学期'!Q6&"、") -> 体調不良9、 | AJ6: =IF(AND(R6="",'1学期'!R6="",'2学期'!R6=""),"",R$2&R6+'1学期'!R6+'2学期'!R6&"、") ->  | AK6: =IF(AND(S6="",'1学期'!S6="",'2学期'!S6=""),"",S$2&S6+'1学期'!S6+'2学期'!S6&"、") ->  | AL6: =IF(AND(T6="",'1学期'!T6="",'2学期'!T6=""),"",T$2&T6+'1学期'!T6+'2学期'!T6&"、") -> 頭痛3、 | AM6: =IF(AND(U6="",'1学期'!U6="",'2学期'!U6=""),"",U$2&U6+'1学期'!U6+'2学期'!U6&"、") ->  | AN6: =IF(AND(V6="",'1学期'!V6="",'2学期'!V6=""),"",V$2&V6+'1学期'!V6+'2学期'!V6&"、") ->  | AO6: =IF(AND(W6="",'1学期'!W6="",'2学期'!W6=""),"",W$2&W6+'1学期'!W6+'2学期'!W6&"、") ->  | AP6: =IF(AND(X6="",'1学期'!X6="",'2学期'!X6=""),"",X$2&X6+'1学期'!X6+'2学期'!X6&"、") ->  | AQ6: =IF(AND(Y6="",'1学期'!Y6="",'2学期'!Y6=""),"",Y$2&Y6+'1学期'!Y6+'2学期'!Y6&"、") ->  | AR6: =IF(AND(Z6="",'1学期'!Z6="",'2学期'!Z6=""),"",Z$2&Z6+'1学期'!Z6+'2学期'!Z6&"、") ->  | AT6: 体調不良9、頭痛3、感染症のため3、 | AV6: 空白でなく、体調不良などの欠席があれば、そのまま入力するが、最後の「、」は消す。
A7: =IF(名簿!$A5="","",名簿!$A5) -> 1105 | B7: =IFERROR(VLOOKUP($A7,名簿!$A:$C,3,0),"") -> 山本とし子 | C7: 56 | D7: 0 | E7: 0 | F7: 0 | G7: 0 | H7: 0 | J7: =IF(AT7="",IF(OR('1学期'!AA7="あり",'2学期'!AA7="あり",AA7="あり"),"特記事項なし","皆勤"),IF(AND('1学期'!AA7="",'2学期'!AA7="",AA7="",COUNTBLANK(AI7:AQ7)=COUNTA($AI$2:$AQ$2)),"皆勤、"&LEFT(AT7,LEN(AT7)-1),LEFT(AT7,LEN(AT7)-1))) -> 体調不良2、感染症予防のため2 | AD7: =IF(AND(L7="",'1学期'!L7="",'2学期'!L7=""),"",L$2&L7+'1学期'!L7+'2学期'!L7&"、") -> 感染症予防のため2、 | AE7: =IF(AND(M7="",'1学期'!M7="",'2学期'!M7=""),"",M$2&M7+'1学期'!M7+'2学期'!M7&"、") ->  | AF7: =IF(AND(N7="",'1学期'!N7="",'2学期'!N7=""),"",N$2&N7+'1学期'!N7+'2学期'!N7&"、") ->  | AG7: =IF(AND(O7="",'1学期'!O7="",'2学期'!O7=""),"",O$2&O7+'1学期'!O7+'2学期'!O7&"、") ->  | AH7: =IF(AND(P7="",'1学期'!P7="",'2学期'!P7=""),"",P$2&P7+'1学期'!P7+'2学期'!P7&"、") ->  | AI7: =IF(AND(Q7="",'1学期'!Q7="",'2学期'!Q7=""),"",Q$2&Q7+'1学期'!Q7+'2学期'!Q7&"、") -> 体調不良2、 | AJ7: =IF(AND(R7="",'1学期'!R7="",'2学期'!R7=""),"",R$2&R7+'1学期'!R7+'2学期'!R7&"、") ->  | AK7: =IF(AND(S7="",'1学期'!S7="",'2学期'!S7=""),"",S$2&S7+'1学期'!S7+'2学期'!S7&"、") ->  | AL7: =IF(AND(T7="",'1学期'!T7="",'2学期'!T7=""),"",T$2&T7+'1学期'!T7+'2学期'!T7&"、") ->  | AM7: =IF(AND(U7="",'1学期'!U7="",'2学期'!U7=""),"",U$2&U7+'1学期'!U7+'2学期'!U7&"、") ->  | AN7: =IF(AND(V7="",'1学期'!V7="",'2学期'!V7=""),"",V$2&V7+'1学期'!V7+'2学期'!V7&"、") ->  | AO7: =IF(AND(W7="",'1学期'!W7="",'2学期'!W7=""),"",W$2&W7+'1学期'!W7+'2学期'!W7&"、") ->  | AP7: =IF(AND(X7="",'1学期'!X7="",'2学期'!X7=""),"",X$2&X7+'1学期'!X7+'2学期'!X7&"、") ->  | AQ7: =IF(AND(Y7="",'1学期'!Y7="",'2学期'!Y7=""),"",Y$2&Y7+'1学期'!Y7+'2学期'!Y7&"、") ->  | AR7: =IF(AND(Z7="",'1学期'!Z7="",'2学期'!Z7=""),"",Z$2&Z7+'1学期'!Z7+'2学期'!Z7&"、") ->  | AT7: 体調不良2、感染症予防のため2、
A8: =IF(名簿!$A6="","",名簿!$A6) -> 1106 | B8: =IFERROR(VLOOKUP($A8,名簿!$A:$C,3,0),"") -> 0 | C8: 56 | D8: 0 | E8: 0 | F8: 0 | G8: 0 | H8: 0 | J8: =IF(AT8="",IF(OR('1学期'!AA8="あり",'2学期'!AA8="あり",AA8="あり"),"特記事項なし","皆勤"),IF(AND('1学期'!AA8="",'2学期'!AA8="",AA8="",COUNTBLANK(AI8:AQ8)=COUNTA($AI$2:$AQ$2)),"皆勤、"&LEFT(AT8,LEN(AT8)-1),LEFT(AT8,LEN(AT8)-1))) -> 体調不良3、発熱2、腹痛1、入試1 | P8: 1 | AD8: =IF(AND(L8="",'1学期'!L8="",'2学期'!L8=""),"",L$2&L8+'1学期'!L8+'2学期'!L8&"、") ->  | AE8: =IF(AND(M8="",'1学期'!M8="",'2学期'!M8=""),"",M$2&M8+'1学期'!M8+'2学期'!M8&"、") ->  | AF8: =IF(AND(N8="",'1学期'!N8="",'2学期'!N8=""),"",N$2&N8+'1学期'!N8+'2学期'!N8&"、") ->  | AG8: =IF(AND(O8="",'1学期'!O8="",'2学期'!O8=""),"",O$2&O8+'1学期'!O8+'2学期'!O8&"、") ->  | AH8: =IF(AND(P8="",'1学期'!P8="",'2学期'!P8=""),"",P$2&P8+'1学期'!P8+'2学期'!P8&"、") -> 入試1、 | AI8: =IF(AND(Q8="",'1学期'!Q8="",'2学期'!Q8=""),"",Q$2&Q8+'1学期'!Q8+'2学期'!Q8&"、") -> 体調不良3、 | AJ8: =IF(AND(R8="",'1学期'!R8="",'2学期'!R8=""),"",R$2&R8+'1学期'!R8+'2学期'!R8&"、") -> 発熱2、 | AK8: =IF(AND(S8="",'1学期'!S8="",'2学期'!S8=""),"",S$2&S8+'1学期'!S8+'2学期'!S8&"、") ->  | AL8: =IF(AND(T8="",'1学期'!T8="",'2学期'!T8=""),"",T$2&T8+'1学期'!T8+'2学期'!T8&"、") ->  | AM8: =IF(AND(U8="",'1学期'!U8="",'2学期'!U8=""),"",U$2&U8+'1学期'!U8+'2学期'!U8&"、") -> 腹痛1、 | AN8: =IF(AND(V8="",'1学期'!V8="",'2学期'!V8=""),"",V$2&V8+'1学期'!V8+'2学期'!V8&"、") ->  | AO8: =IF(AND(W8="",'1学期'!W8="",'2学期'!W8=""),"",W$2&W8+'1学期'!W8+'2学期'!W8&"、") ->  | AP8: =IF(AND(X8="",'1学期'!X8="",'2学期'!X8=""),"",X$2&X8+'1学期'!X8+'2学期'!X8&"、") ->  | AQ8: =IF(AND(Y8="",'1学期'!Y8="",'2学期'!Y8=""),"",Y$2&Y8+'1学期'!Y8+'2学期'!Y8&"、") ->  | AR8: =IF(AND(Z8="",'1学期'!Z8="",'2学期'!Z8=""),"",Z$2&Z8+'1学期'!Z8+'2学期'!Z8&"、") ->  | AT8: 体調不良3、発熱2、腹痛1、入試1、
A9: =IF(名簿!$A7="","",名簿!$A7) -> 1107 | B9: =IFERROR(VLOOKUP($A9,名簿!$A:$C,3,0),"") -> 0 | C9: 56 | D9: 0 | E9: 0 | F9: 0 | G9: 0 | H9: 0 | J9: =IF(AT9="",IF(OR('1学期'!AA9="あり",'2学期'!AA9="あり",AA9="あり"),"特記事項なし","皆勤"),IF(AND('1学期'!AA9="",'2学期'!AA9="",AA9="",COUNTBLANK(AI9:AQ9)=COUNTA($AI$2:$AQ$2)),"皆勤、"&LEFT(AT9,LEN(AT9)-1),LEFT(AT9,LEN(AT9)-1))) -> 皆勤 | AD9: =IF(AND(L9="",'1学期'!L9="",'2学期'!L9=""),"",L$2&L9+'1学期'!L9+'2学期'!L9&"、") ->  | AE9: =IF(AND(M9="",'1学期'!M9="",'2学期'!M9=""),"",M$2&M9+'1学期'!M9+'2学期'!M9&"、") ->  | AF9: =IF(AND(N9="",'1学期'!N9="",'2学期'!N9=""),"",N$2&N9+'1学期'!N9+'2学期'!N9&"、") ->  | AG9: =IF(AND(O9="",'1学期'!O9="",'2学期'!O9=""),"",O$2&O9+'1学期'!O9+'2学期'!O9&"、") ->  | AH9: =IF(AND(P9="",'1学期'!P9="",'2学期'!P9=""),"",P$2&P9+'1学期'!P9+'2学期'!P9&"、") ->  | AI9: =IF(AND(Q9="",'1学期'!Q9="",'2学期'!Q9=""),"",Q$2&Q9+'1学期'!Q9+'2学期'!Q9&"、") ->  | AJ9: =IF(AND(R9="",'1学期'!R9="",'2学期'!R9=""),"",R$2&R9+'1学期'!R9+'2学期'!R9&"、") ->  | AK9: =IF(AND(S9="",'1学期'!S9="",'2学期'!S9=""),"",S$2&S9+'1学期'!S9+'2学期'!S9&"、") ->  | AL9: =IF(AND(T9="",'1学期'!T9="",'2学期'!T9=""),"",T$2&T9+'1学期'!T9+'2学期'!T9&"、") ->  | AM9: =IF(AND(U9="",'1学期'!U9="",'2学期'!U9=""),"",U$2&U9+'1学期'!U9+'2学期'!U9&"、") ->  | AN9: =IF(AND(V9="",'1学期'!V9="",'2学期'!V9=""),"",V$2&V9+'1学期'!V9+'2学期'!V9&"、") ->  | AO9: =IF(AND(W9="",'1学期'!W9="",'2学期'!W9=""),"",W$2&W9+'1学期'!W9+'2学期'!W9&"、") ->  | AP9: =IF(AND(X9="",'1学期'!X9="",'2学期'!X9=""),"",X$2&X9+'1学期'!X9+'2学期'!X9&"、") ->  | AQ9: =IF(AND(Y9="",'1学期'!Y9="",'2学期'!Y9=""),"",Y$2&Y9+'1学期'!Y9+'2学期'!Y9&"、") ->  | AR9: =IF(AND(Z9="",'1学期'!Z9="",'2学期'!Z9=""),"",Z$2&Z9+'1学期'!Z9+'2学期'!Z9&"、") -> 
A10: =IF(名簿!$A8="","",名簿!$A8) -> 1108 | B10: =IFERROR(VLOOKUP($A10,名簿!$A:$C,3,0),"") -> 0 | C10: 56 | D10: 0 | E10: 0 | F10: 0 | G10: 0 | H10: 0 | J10: =IF(AT10="",IF(OR('1学期'!AA10="あり",'2学期'!AA10="あり",AA10="あり"),"特記事項なし","皆勤"),IF(AND('1学期'!AA10="",'2学期'!AA10="",AA10="",COUNTBLANK(AI10:AQ10)=COUNTA($AI$2:$AQ$2)),"皆勤、"&LEFT(AT10,LEN(AT10)-1),LEFT(AT10,LEN(AT10)-1))) -> 体調不良28、発熱7、感染症予防のため1、祖父葬儀1 | O10: 1 | AD10: =IF(AND(L10="",'1学期'!L10="",'2学期'!L10=""),"",L$2&L10+'1学期'!L10+'2学期'!L10&"、") -> 感染症予防のため1、 | AE10: =IF(AND(M10="",'1学期'!M10="",'2学期'!M10=""),"",M$2&M10+'1学期'!M10+'2学期'!M10&"、") ->  | AF10: =IF(AND(N10="",'1学期'!N10="",'2学期'!N10=""),"",N$2&N10+'1学期'!N10+'2学期'!N10&"、") ->  | AG10: =IF(AND(O10="",'1学期'!O10="",'2学期'!O10=""),"",O$2&O10+'1学期'!O10+'2学期'!O10&"、") -> 祖父葬儀1、 | AH10: =IF(AND(P10="",'1学期'!P10="",'2学期'!P10=""),"",P$2&P10+'1学期'!P10+'2学期'!P10&"、") ->  | AI10: =IF(AND(Q10="",'1学期'!Q10="",'2学期'!Q10=""),"",Q$2&Q10+'1学期'!Q10+'2学期'!Q10&"、") -> 体調不良28、 | AJ10: =IF(AND(R10="",'1学期'!R10="",'2学期'!R10=""),"",R$2&R10+'1学期'!R10+'2学期'!R10&"、") -> 発熱7、 | AK10: =IF(AND(S10="",'1学期'!S10="",'2学期'!S10=""),"",S$2&S10+'1学期'!S10+'2学期'!S10&"、") ->  | AL10: =IF(AND(T10="",'1学期'!T10="",'2学期'!T10=""),"",T$2&T10+'1学期'!T10+'2学期'!T10&"、") ->  | AM10: =IF(AND(U10="",'1学期'!U10="",'2学期'!U10=""),"",U$2&U10+'1学期'!U10+'2学期'!U10&"、") ->  | AN10: =IF(AND(V10="",'1学期'!V10="",'2学期'!V10=""),"",V$2&V10+'1学期'!V10+'2学期'!V10&"、") ->  | AO10: =IF(AND(W10="",'1学期'!W10="",'2学期'!W10=""),"",W$2&W10+'1学期'!W10+'2学期'!W10&"、") ->  | AP10: =IF(AND(X10="",'1学期'!X10="",'2学期'!X10=""),"",X$2&X10+'1学期'!X10+'2学期'!X10&"、") ->  | AQ10: =IF(AND(Y10="",'1学期'!Y10="",'2学期'!Y10=""),"",Y$2&Y10+'1学期'!Y10+'2学期'!Y10&"、") ->  | AR10: =IF(AND(Z10="",'1学期'!Z10="",'2学期'!Z10=""),"",Z$2&Z10+'1学期'!Z10+'2学期'!Z10&"、") ->  | AT10: 体調不良28、発熱7、感染症予防のため1、祖父葬儀1、
A11: =IF(名簿!$A9="","",名簿!$A9) -> 1109 | B11: =IFERROR(VLOOKUP($A11,名簿!$A:$C,3,0),"") -> 0 | C11: 56 | D11: 0 | E11: 0 | F11: 0 | G11: 0 | H11: 0 | J11: =IF(AT11="",IF(OR('1学期'!AA11="あり",'2学期'!AA11="あり",AA11="あり"),"特記事項なし","皆勤"),IF(AND('1学期'!AA11="",'2学期'!AA11="",AA11="",COUNTBLANK(AI11:AQ11)=COUNTA($AI$2:$AQ$2)),"皆勤、"&LEFT(AT11,LEN(AT11)-1),LEFT(AT11,LEN(AT11)-1))) -> 体調不良7、発熱1、頭痛1、腹痛1、感染症予防のため2 | AD11: =IF(AND(L11="",'1学期'!L11="",'2学期'!L11=""),"",L$2&L11+'1学期'!L11+'2学期'!L11&"、") -> 感染症予防のため2、 | AE11: =IF(AND(M11="",'1学期'!M11="",'2学期'!M11=""),"",M$2&M11+'1学期'!M11+'2学期'!M11&"、") ->  | AF11: =IF(AND(N11="",'1学期'!N11="",'2学期'!N11=""),"",N$2&N11+'1学期'!N11+'2学期'!N11&"、") ->  | AG11: =IF(AND(O11="",'1学期'!O11="",'2学期'!O11=""),"",O$2&O11+'1学期'!O11+'2学期'!O11&"、") ->  | AH11: =IF(AND(P11="",'1学期'!P11="",'2学期'!P11=""),"",P$2&P11+'1学期'!P11+'2学期'!P11&"、") ->  | AI11: =IF(AND(Q11="",'1学期'!Q11="",'2学期'!Q11=""),"",Q$2&Q11+'1学期'!Q11+'2学期'!Q11&"、") -> 体調不良7、 | AJ11: =IF(AND(R11="",'1学期'!R11="",'2学期'!R11=""),"",R$2&R11+'1学期'!R11+'2学期'!R11&"、") -> 発熱1、 | AK11: =IF(AND(S11="",'1学期'!S11="",'2学期'!S11=""),"",S$2&S11+'1学期'!S11+'2学期'!S11&"、") ->  | AL11: =IF(AND(T11="",'1学期'!T11="",'2学期'!T11=""),"",T$2&T11+'1学期'!T11+'2学期'!T11&"、") -> 頭痛1、 | AM11: =IF(AND(U11="",'1学期'!U11="",'2学期'!U11=""),"",U$2&U11+'1学期'!U11+'2学期'!U11&"、") -> 腹痛1、 | AN11: =IF(AND(V11="",'1学期'!V11="",'2学期'!V11=""),"",V$2&V11+'1学期'!V11+'2学期'!V11&"、") ->  | AO11: =IF(AND(W11="",'1学期'!W11="",'2学期'!W11=""),"",W$2&W11+'1学期'!W11+'2学期'!W11&"、") ->  | AP11: =IF(AND(X11="",'1学期'!X11="",'2学期'!X11=""),"",X$2&X11+'1学期'!X11+'2学期'!X11&"、") ->  | AQ11: =IF(AND(Y11="",'1学期'!Y11="",'2学期'!Y11=""),"",Y$2&Y11+'1学期'!Y11+'2学期'!Y11&"、") ->  | AR11: =IF(AND(Z11="",'1学期'!Z11="",'2学期'!Z11=""),"",Z$2&Z11+'1学期'!Z11+'2学期'!Z11&"、") ->  | AT11: 体調不良7、発熱1、頭痛1、腹痛1、感染症予防のため2、
A12: =IF(名簿!$A10="","",名簿!$A10) -> 1110 | B12: =IFERROR(VLOOKUP($A12,名簿!$A:$C,3,0),"") -> 0 | C12: 56 | D12: 0 | E12: 0 | F12: 0 | G12: 0 | H12: 0 | J12: =IF(AT12="",IF(OR('1学期'!AA12="あり",'2学期'!AA12="あり",AA12="あり"),"特記事項なし","皆勤"),IF(AND('1学期'!AA12="",'2学期'!AA12="",AA12="",COUNTBLANK(AI12:AQ12)=COUNTA($AI$2:$AQ$2)),"皆勤、"&LEFT(AT12,LEN(AT12)-1),LEFT(AT12,LEN(AT12)-1))) -> 皆勤、感染症予防のため1 | AD12: =IF(AND(L12="",'1学期'!L12="",'2学期'!L12=""),"",L$2&L12+'1学期'!L12+'2学期'!L12&"、") -> 感染症予防のため1、 | AE12: =IF(AND(M12="",'1学期'!M12="",'2学期'!M12=""),"",M$2&M12+'1学期'!M12+'2学期'!M12&"、") ->  | AF12: =IF(AND(N12="",'1学期'!N12="",'2学期'!N12=""),"",N$2&N12+'1学期'!N12+'2学期'!N12&"、") ->  | AG12: =IF(AND(O12="",'1学期'!O12="",'2学期'!O12=""),"",O$2&O12+'1学期'!O12+'2学期'!O12&"、") ->  | AH12: =IF(AND(P12="",'1学期'!P12="",'2学期'!P12=""),"",P$2&P12+'1学期'!P12+'2学期'!P12&"、") ->  | AI12: =IF(AND(Q12="",'1学期'!Q12="",'2学期'!Q12=""),"",Q$2&Q12+'1学期'!Q12+'2学期'!Q12&"、") ->  | AJ12: =IF(AND(R12="",'1学期'!R12="",'2学期'!R12=""),"",R$2&R12+'1学期'!R12+'2学期'!R12&"、") ->  | AK12: =IF(AND(S12="",'1学期'!S12="",'2学期'!S12=""),"",S$2&S12+'1学期'!S12+'2学期'!S12&"、") ->  | AL12: =IF(AND(T12="",'1学期'!T12="",'2学期'!T12=""),"",T$2&T12+'1学期'!T12+'2学期'!T12&"、") ->  | AM12: =IF(AND(U12="",'1学期'!U12="",'2学期'!U12=""),"",U$2&U12+'1学期'!U12+'2学期'!U12&"、") ->  | AN12: =IF(AND(V12="",'1学期'!V12="",'2学期'!V12=""),"",V$2&V12+'1学期'!V12+'2学期'!V12&"、") ->  | AO12: =IF(AND(W12="",'1学期'!W12="",'2学期'!W12=""),"",W$2&W12+'1学期'!W12+'2学期'!W12&"、") ->  | AP12: =IF(AND(X12="",'1学期'!X12="",'2学期'!X12=""),"",X$2&X12+'1学期'!X12+'2学期'!X12&"、") ->  | AQ12: =IF(AND(Y12="",'1学期'!Y12="",'2学期'!Y12=""),"",Y$2&Y12+'1学期'!Y12+'2学期'!Y12&"、") ->  | AR12: =IF(AND(Z12="",'1学期'!Z12="",'2学期'!Z12=""),"",Z$2&Z12+'1学期'!Z12+'2学期'!Z12&"、") ->  | AT12: 感染症予防のため1、
A13: =IF(名簿!$A11="","",名簿!$A11) -> 1111 | B13: =IFERROR(VLOOKUP($A13,名簿!$A:$C,3,0),"") -> 0 | C13: 56 | D13: 0 | E13: 0 | F13: 0 | G13: 0 | H13: 0 | J13: =IF(AT13="",IF(OR('1学期'!AA13="あり",'2学期'!AA13="あり",AA13="あり"),"特記事項なし","皆勤"),IF(AND('1学期'!AA13="",'2学期'!AA13="",AA13="",COUNTBLANK(AI13:AQ13)=COUNTA($AI$2:$AQ$2)),"皆勤、"&LEFT(AT13,LEN(AT13)-1),LEFT(AT13,LEN(AT13)-1))) -> 発熱1、祖父葬儀4 | O13: 4 | R13: 1 | AD13: =IF(AND(L13="",'1学期'!L13="",'2学期'!L13=""),"",L$2&L13+'1学期'!L13+'2学期'!L13&"、") ->  | AE13: =IF(AND(M13="",'1学期'!M13="",'2学期'!M13=""),"",M$2&M13+'1学期'!M13+'2学期'!M13&"、") ->  | AF13: =IF(AND(N13="",'1学期'!N13="",'2学期'!N13=""),"",N$2&N13+'1学期'!N13+'2学期'!N13&"、") ->  | AG13: =IF(AND(O13="",'1学期'!O13="",'2学期'!O13=""),"",O$2&O13+'1学期'!O13+'2学期'!O13&"、") -> 祖父葬儀4、 | AH13: =IF(AND(P13="",'1学期'!P13="",'2学期'!P13=""),"",P$2&P13+'1学期'!P13+'2学期'!P13&"、") ->  | AI13: =IF(AND(Q13="",'1学期'!Q13="",'2学期'!Q13=""),"",Q$2&Q13+'1学期'!Q13+'2学期'!Q13&"、") ->  | AJ13: =IF(AND(R13="",'1学期'!R13="",'2学期'!R13=""),"",R$2&R13+'1学期'!R13+'2学期'!R13&"、") -> 発熱1、 | AK13: =IF(AND(S13="",'1学期'!S13="",'2学期'!S13=""),"",S$2&S13+'1学期'!S13+'2学期'!S13&"、") ->  | AL13: =IF(AND(T13="",'1学期'!T13="",'2学期'!T13=""),"",T$2&T13+'1学期'!T13+'2学期'!T13&"、") ->  | AM13: =IF(AND(U13="",'1学期'!U13="",'2学期'!U13=""),"",U$2&U13+'1学期'!U13+'2学期'!U13&"、") ->  | AN13: =IF(AND(V13="",'1学期'!V13="",'2学期'!V13=""),"",V$2&V13+'1学期'!V13+'2学期'!V13&"、") ->  | AO13: =IF(AND(W13="",'1学期'!W13="",'2学期'!W13=""),"",W$2&W13+'1学期'!W13+'2学期'!W13&"、") ->  | AP13: =IF(AND(X13="",'1学期'!X13="",'2学期'!X13=""),"",X$2&X13+'1学期'!X13+'2学期'!X13&"、") ->  | AQ13: =IF(AND(Y13="",'1学期'!Y13="",'2学期'!Y13=""),"",Y$2&Y13+'1学期'!Y13+'2学期'!Y13&"、") ->  | AR13: =IF(AND(Z13="",'1学期'!Z13="",'2学期'!Z13=""),"",Z$2&Z13+'1学期'!Z13+'2学期'!Z13&"、") ->  | AT13: 発熱1、祖父葬儀4、
A14: =IF(名簿!$A12="","",名簿!$A12) -> 1112 | B14: =IFERROR(VLOOKUP($A14,名簿!$A:$C,3,0),"") -> 0 | C14: 56 | D14: 0 | E14: 0 | F14: 0 | G14: 0 | H14: 0 | J14: =IF(AT14="",IF(OR('1学期'!AA14="あり",'2学期'!AA14="あり",AA14="あり"),"特記事項なし","皆勤"),IF(AND('1学期'!AA14="",'2学期'!AA14="",AA14="",COUNTBLANK(AI14:AQ14)=COUNTA($AI$2:$AQ$2)),"皆勤、"&LEFT(AT14,LEN(AT14)-1),LEFT(AT14,LEN(AT14)-1))) -> 皆勤、祖母葬儀1 | AD14: =IF(AND(L14="",'1学期'!L14="",'2学期'!L14=""),"",L$2&L14+'1学期'!L14+'2学期'!L14&"、") ->  | AE14: =IF(AND(M14="",'1学期'!M14="",'2学期'!M14=""),"",M$2&M14+'1学期'!M14+'2学期'!M14&"、") ->  | AF14: =IF(AND(N14="",'1学期'!N14="",'2学期'!N14=""),"",N$2&N14+'1学期'!N14+'2学期'!N14&"、") -> 祖母葬儀1、 | AG14: =IF(AND(O14="",'1学期'!O14="",'2学期'!O14=""),"",O$2&O14+'1学期'!O14+'2学期'!O14&"、") ->  | AH14: =IF(AND(P14="",'1学期'!P14="",'2学期'!P14=""),"",P$2&P14+'1学期'!P14+'2学期'!P14&"、") ->  | AI14: =IF(AND(Q14="",'1学期'!Q14="",'2学期'!Q14=""),"",Q$2&Q14+'1学期'!Q14+'2学期'!Q14&"、") ->  | AJ14: =IF(AND(R14="",'1学期'!R14="",'2学期'!R14=""),"",R$2&R14+'1学期'!R14+'2学期'!R14&"、") ->  | AK14: =IF(AND(S14="",'1学期'!S14="",'2学期'!S14=""),"",S$2&S14+'1学期'!S14+'2学期'!S14&"、") ->  | AL14: =IF(AND(T14="",'1学期'!T14="",'2学期'!T14=""),"",T$2&T14+'1学期'!T14+'2学期'!T14&"、") ->  | AM14: =IF(AND(U14="",'1学期'!U14="",'2学期'!U14=""),"",U$2&U14+'1学期'!U14+'2学期'!U14&"、") ->  | AN14: =IF(AND(V14="",'1学期'!V14="",'2学期'!V14=""),"",V$2&V14+'1学期'!V14+'2学期'!V14&"、") ->  | AO14: =IF(AND(W14="",'1学期'!W14="",'2学期'!W14=""),"",W$2&W14+'1学期'!W14+'2学期'!W14&"、") ->  | AP14: =IF(AND(X14="",'1学期'!X14="",'2学期'!X14=""),"",X$2&X14+'1学期'!X14+'2学期'!X14&"、") ->  | AQ14: =IF(AND(Y14="",'1学期'!Y14="",'2学期'!Y14=""),"",Y$2&Y14+'1学期'!Y14+'2学期'!Y14&"、") ->  | AR14: =IF(AND(Z14="",'1学期'!Z14="",'2学期'!Z14=""),"",Z$2&Z14+'1学期'!Z14+'2学期'!Z14&"、") ->  | AT14: 祖母葬儀1、
A15: =IF(名簿!$A13="","",名簿!$A13) -> 1113 | B15: =IFERROR(VLOOKUP($A15,名簿!$A:$C,3,0),"") -> 0 | C15: 56 | D15: 0 | E15: 0 | F15: 0 | G15: 0 | H15: 0 | J15: =IF(AT15="",IF(OR('1学期'!AA15="あり",'2学期'!AA15="あり",AA15="あり"),"特記事項なし","皆勤"),IF(AND('1学期'!AA15="",'2学期'!AA15="",AA15="",COUNTBLANK(AI15:AQ15)=COUNTA($AI$2:$AQ$2)),"皆勤、"&LEFT(AT15,LEN(AT15)-1),LEFT(AT15,LEN(AT15)-1))) -> 皆勤 | AD15: =IF(AND(L15="",'1学期'!L15="",'2学期'!L15=""),"",L$2&L15+'1学期'!L15+'2学期'!L15&"、") ->  | AE15: =IF(AND(M15="",'1学期'!M15="",'2学期'!M15=""),"",M$2&M15+'1学期'!M15+'2学期'!M15&"、") ->  | AF15: =IF(AND(N15="",'1学期'!N15="",'2学期'!N15=""),"",N$2&N15+'1学期'!N15+'2学期'!N15&"、") ->  | AG15: =IF(AND(O15="",'1学期'!O15="",'2学期'!O15=""),"",O$2&O15+'1学期'!O15+'2学期'!O15&"、") ->  | AH15: =IF(AND(P15="",'1学期'!P15="",'2学期'!P15=""),"",P$2&P15+'1学期'!P15+'2学期'!P15&"、") ->  | AI15: =IF(AND(Q15="",'1学期'!Q15="",'2学期'!Q15=""),"",Q$2&Q15+'1学期'!Q15+'2学期'!Q15&"、") ->  | AJ15: =IF(AND(R15="",'1学期'!R15="",'2学期'!R15=""),"",R$2&R15+'1学期'!R15+'2学期'!R15&"、") ->  | AK15: =IF(AND(S15="",'1学期'!S15="",'2学期'!S15=""),"",S$2&S15+'1学期'!S15+'2学期'!S15&"、") ->  | AL15: =IF(AND(T15="",'1学期'!T15="",'2学期'!T15=""),"",T$2&T15+'1学期'!T15+'2学期'!T15&"、") ->  | AM15: =IF(AND(U15="",'1学期'!U15="",'2学期'!U15=""),"",U$2&U15+'1学期'!U15+'2学期'!U15&"、") ->  | AN15: =IF(AND(V15="",'1学期'!V15="",'2学期'!V15=""),"",V$2&V15+'1学期'!V15+'2学期'!V15&"、") ->  | AO15: =IF(AND(W15="",'1学期'!W15="",'2学期'!W15=""),"",W$2&W15+'1学期'!W15+'2学期'!W15&"、") ->  | AP15: =IF(AND(X15="",'1学期'!X15="",'2学期'!X15=""),"",X$2&X15+'1学期'!X15+'2学期'!X15&"、") ->  | AQ15: =IF(AND(Y15="",'1学期'!Y15="",'2学期'!Y15=""),"",Y$2&Y15+'1学期'!Y15+'2学期'!Y15&"、") ->  | AR15: =IF(AND(Z15="",'1学期'!Z15="",'2学期'!Z15=""),"",Z$2&Z15+'1学期'!Z15+'2学期'!Z15&"、") -> 
A16: =IF(名簿!$A14="","",名簿!$A14) -> 1114 | B16: =IFERROR(VLOOKUP($A16,名簿!$A:$C,3,0),"") -> 0 | C16: 56 | D16: 0 | E16: 0 | F16: 0 | G16: 0 | H16: 0 | J16: =IF(AT16="",IF(OR('1学期'!AA16="あり",'2学期'!AA16="あり",AA16="あり"),"特記事項なし","皆勤"),IF(AND('1学期'!AA16="",'2学期'!AA16="",AA16="",COUNTBLANK(AI16:AQ16)=COUNTA($AI$2:$AQ$2)),"皆勤、"&LEFT(AT16,LEN(AT16)-1),LEFT(AT16,LEN(AT16)-1))) -> 体調不良1、感染症予防のため2 | L16: 2 | AD16: =IF(AND(L16="",'1学期'!L16="",'2学期'!L16=""),"",L$2&L16+'1学期'!L16+'2学期'!L16&"、") -> 感染症予防のため2、 | AE16: =IF(AND(M16="",'1学期'!M16="",'2学期'!M16=""),"",M$2&M16+'1学期'!M16+'2学期'!M16&"、") ->  | AF16: =IF(AND(N16="",'1学期'!N16="",'2学期'!N16=""),"",N$2&N16+'1学期'!N16+'2学期'!N16&"、") ->  | AG16: =IF(AND(O16="",'1学期'!O16="",'2学期'!O16=""),"",O$2&O16+'1学期'!O16+'2学期'!O16&"、") ->  | AH16: =IF(AND(P16="",'1学期'!P16="",'2学期'!P16=""),"",P$2&P16+'1学期'!P16+'2学期'!P16&"、") ->  | AI16: =IF(AND(Q16="",'1学期'!Q16="",'2学期'!Q16=""),"",Q$2&Q16+'1学期'!Q16+'2学期'!Q16&"、") -> 体調不良1、 | AJ16: =IF(AND(R16="",'1学期'!R16="",'2学期'!R16=""),"",R$2&R16+'1学期'!R16+'2学期'!R16&"、") ->  | AK16: =IF(AND(S16="",'1学期'!S16="",'2学期'!S16=""),"",S$2&S16+'1学期'!S16+'2学期'!S16&"、") ->  | AL16: =IF(AND(T16="",'1学期'!T16="",'2学期'!T16=""),"",T$2&T16+'1学期'!T16+'2学期'!T16&"、") ->  | AM16: =IF(AND(U16="",'1学期'!U16="",'2学期'!U16=""),"",U$2&U16+'1学期'!U16+'2学期'!U16&"、") ->  | AN16: =IF(AND(V16="",'1学期'!V16="",'2学期'!V16=""),"",V$2&V16+'1学期'!V16+'2学期'!V16&"、") ->  | AO16: =IF(AND(W16="",'1学期'!W16="",'2学期'!W16=""),"",W$2&W16+'1学期'!W16+'2学期'!W16&"、") ->  | AP16: =IF(AND(X16="",'1学期'!X16="",'2学期'!X16=""),"",X$2&X16+'1学期'!X16+'2学期'!X16&"、") ->  | AQ16: =IF(AND(Y16="",'1学期'!Y16="",'2学期'!Y16=""),"",Y$2&Y16+'1学期'!Y16+'2学期'!Y16&"、") ->  | AR16: =IF(AND(Z16="",'1学期'!Z16="",'2学期'!Z16=""),"",Z$2&Z16+'1学期'!Z16+'2学期'!Z16&"、") ->  | AT16: 体調不良1、感染症予防のため2、
A17: =IF(名簿!$A15="","",名簿!$A15) -> 1115 | B17: =IFERROR(VLOOKUP($A17,名簿!$A:$C,3,0),"") -> 0 | C17: 56 | D17: 0 | E17: 0 | F17: 0 | G17: 0 | H17: 0 | J17: =IF(AT17="",IF(OR('1学期'!AA17="あり",'2学期'!AA17="あり",AA17="あり"),"特記事項なし","皆勤"),IF(AND('1学期'!AA17="",'2学期'!AA17="",AA17="",COUNTBLANK(AI17:AQ17)=COUNTA($AI$2:$AQ$2)),"皆勤、"&LEFT(AT17,LEN(AT17)-1),LEFT(AT17,LEN(AT17)-1))) -> 皆勤 | AD17: =IF(AND(L17="",'1学期'!L17="",'2学期'!L17=""),"",L$2&L17+'1学期'!L17+'2学期'!L17&"、") ->  | AE17: =IF(AND(M17="",'1学期'!M17="",'2学期'!M17=""),"",M$2&M17+'1学期'!M17+'2学期'!M17&"、") ->  | AF17: =IF(AND(N17="",'1学期'!N17="",'2学期'!N17=""),"",N$2&N17+'1学期'!N17+'2学期'!N17&"、") ->  | AG17: =IF(AND(O17="",'1学期'!O17="",'2学期'!O17=""),"",O$2&O17+'1学期'!O17+'2学期'!O17&"、") ->  | AH17: =IF(AND(P17="",'1学期'!P17="",'2学期'!P17=""),"",P$2&P17+'1学期'!P17+'2学期'!P17&"、") ->  | AI17: =IF(AND(Q17="",'1学期'!Q17="",'2学期'!Q17=""),"",Q$2&Q17+'1学期'!Q17+'2学期'!Q17&"、") ->  | AJ17: =IF(AND(R17="",'1学期'!R17="",'2学期'!R17=""),"",R$2&R17+'1学期'!R17+'2学期'!R17&"、") ->  | AK17: =IF(AND(S17="",'1学期'!S17="",'2学期'!S17=""),"",S$2&S17+'1学期'!S17+'2学期'!S17&"、") ->  | AL17: =IF(AND(T17="",'1学期'!T17="",'2学期'!T17=""),"",T$2&T17+'1学期'!T17+'2学期'!T17&"、") ->  | AM17: =IF(AND(U17="",'1学期'!U17="",'2学期'!U17=""),"",U$2&U17+'1学期'!U17+'2学期'!U17&"、") ->  | AN17: =IF(AND(V17="",'1学期'!V17="",'2学期'!V17=""),"",V$2&V17+'1学期'!V17+'2学期'!V17&"、") ->  | AO17: =IF(AND(W17="",'1学期'!W17="",'2学期'!W17=""),"",W$2&W17+'1学期'!W17+'2学期'!W17&"、") ->  | AP17: =IF(AND(X17="",'1学期'!X17="",'2学期'!X17=""),"",X$2&X17+'1学期'!X17+'2学期'!X17&"、") ->  | AQ17: =IF(AND(Y17="",'1学期'!Y17="",'2学期'!Y17=""),"",Y$2&Y17+'1学期'!Y17+'2学期'!Y17&"、") ->  | AR17: =IF(AND(Z17="",'1学期'!Z17="",'2学期'!Z17=""),"",Z$2&Z17+'1学期'!Z17+'2学期'!Z17&"、") -> 
A18: =IF(名簿!$A16="","",名簿!$A16) -> 1116 | B18: =IFERROR(VLOOKUP($A18,名簿!$A:$C,3,0),"") -> 0 | C18: 56 | D18: 0 | E18: 0 | F18: 0 | G18: 0 | H18: 0 | J18: =IF(AT18="",IF(OR('1学期'!AA18="あり",'2学期'!AA18="あり",AA18="あり"),"特記事項なし","皆勤"),IF(AND('1学期'!AA18="",'2学期'!AA18="",AA18="",COUNTBLANK(AI18:AQ18)=COUNTA($AI$2:$AQ$2)),"皆勤、"&LEFT(AT18,LEN(AT18)-1),LEFT(AT18,LEN(AT18)-1))) -> 皆勤 | AD18: =IF(AND(L18="",'1学期'!L18="",'2学期'!L18=""),"",L$2&L18+'1学期'!L18+'2学期'!L18&"、") ->  | AE18: =IF(AND(M18="",'1学期'!M18="",'2学期'!M18=""),"",M$2&M18+'1学期'!M18+'2学期'!M18&"、") ->  | AF18: =IF(AND(N18="",'1学期'!N18="",'2学期'!N18=""),"",N$2&N18+'1学期'!N18+'2学期'!N18&"、") ->  | AG18: =IF(AND(O18="",'1学期'!O18="",'2学期'!O18=""),"",O$2&O18+'1学期'!O18+'2学期'!O18&"、") ->  | AH18: =IF(AND(P18="",'1学期'!P18="",'2学期'!P18=""),"",P$2&P18+'1学期'!P18+'2学期'!P18&"、") ->  | AI18: =IF(AND(Q18="",'1学期'!Q18="",'2学期'!Q18=""),"",Q$2&Q18+'1学期'!Q18+'2学期'!Q18&"、") ->  | AJ18: =IF(AND(R18="",'1学期'!R18="",'2学期'!R18=""),"",R$2&R18+'1学期'!R18+'2学期'!R18&"、") ->  | AK18: =IF(AND(S18="",'1学期'!S18="",'2学期'!S18=""),"",S$2&S18+'1学期'!S18+'2学期'!S18&"、") ->  | AL18: =IF(AND(T18="",'1学期'!T18="",'2学期'!T18=""),"",T$2&T18+'1学期'!T18+'2学期'!T18&"、") ->  | AM18: =IF(AND(U18="",'1学期'!U18="",'2学期'!U18=""),"",U$2&U18+'1学期'!U18+'2学期'!U18&"、") ->  | AN18: =IF(AND(V18="",'1学期'!V18="",'2学期'!V18=""),"",V$2&V18+'1学期'!V18+'2学期'!V18&"、") ->  | AO18: =IF(AND(W18="",'1学期'!W18="",'2学期'!W18=""),"",W$2&W18+'1学期'!W18+'2学期'!W18&"、") ->  | AP18: =IF(AND(X18="",'1学期'!X18="",'2学期'!X18=""),"",X$2&X18+'1学期'!X18+'2学期'!X18&"、") ->  | AQ18: =IF(AND(Y18="",'1学期'!Y18="",'2学期'!Y18=""),"",Y$2&Y18+'1学期'!Y18+'2学期'!Y18&"、") ->  | AR18: =IF(AND(Z18="",'1学期'!Z18="",'2学期'!Z18=""),"",Z$2&Z18+'1学期'!Z18+'2学期'!Z18&"、") -> 
A19: =IF(名簿!$A17="","",名簿!$A17) -> 1117 | B19: =IFERROR(VLOOKUP($A19,名簿!$A:$C,3,0),"") -> 0 | C19: 56 | D19: 0 | E19: 0 | F19: 0 | G19: 0 | H19: 0 | J19: =IF(AT19="",IF(OR('1学期'!AA19="あり",'2学期'!AA19="あり",AA19="あり"),"特記事項なし","皆勤"),IF(AND('1学期'!AA19="",'2学期'!AA19="",AA19="",COUNTBLANK(AI19:AQ19)=COUNTA($AI$2:$AQ$2)),"皆勤、"&LEFT(AT19,LEN(AT19)-1),LEFT(AT19,LEN(AT19)-1))) -> 頭痛1、感染症予防のため6 | L19: 6 | AD19: =IF(AND(L19="",'1学期'!L19="",'2学期'!L19=""),"",L$2&L19+'1学期'!L19+'2学期'!L19&"、") -> 感染症予防のため6、 | AE19: =IF(AND(M19="",'1学期'!M19="",'2学期'!M19=""),"",M$2&M19+'1学期'!M19+'2学期'!M19&"、") ->  | AF19: =IF(AND(N19="",'1学期'!N19="",'2学期'!N19=""),"",N$2&N19+'1学期'!N19+'2学期'!N19&"、") ->  | AG19: =IF(AND(O19="",'1学期'!O19="",'2学期'!O19=""),"",O$2&O19+'1学期'!O19+'2学期'!O19&"、") ->  | AH19: =IF(AND(P19="",'1学期'!P19="",'2学期'!P19=""),"",P$2&P19+'1学期'!P19+'2学期'!P19&"、") ->  | AI19: =IF(AND(Q19="",'1学期'!Q19="",'2学期'!Q19=""),"",Q$2&Q19+'1学期'!Q19+'2学期'!Q19&"、") ->  | AJ19: =IF(AND(R19="",'1学期'!R19="",'2学期'!R19=""),"",R$2&R19+'1学期'!R19+'2学期'!R19&"、") ->  | AK19: =IF(AND(S19="",'1学期'!S19="",'2学期'!S19=""),"",S$2&S19+'1学期'!S19+'2学期'!S19&"、") ->  | AL19: =IF(AND(T19="",'1学期'!T19="",'2学期'!T19=""),"",T$2&T19+'1学期'!T19+'2学期'!T19&"、") -> 頭痛1、 | AM19: =IF(AND(U19="",'1学期'!U19="",'2学期'!U19=""),"",U$2&U19+'1学期'!U19+'2学期'!U19&"、") ->  | AN19: =IF(AND(V19="",'1学期'!V19="",'2学期'!V19=""),"",V$2&V19+'1学期'!V19+'2学期'!V19&"、") ->  | AO19: =IF(AND(W19="",'1学期'!W19="",'2学期'!W19=""),"",W$2&W19+'1学期'!W19+'2学期'!W19&"、") ->  | AP19: =IF(AND(X19="",'1学期'!X19="",'2学期'!X19=""),"",X$2&X19+'1学期'!X19+'2学期'!X19&"、") ->  | AQ19: =IF(AND(Y19="",'1学期'!Y19="",'2学期'!Y19=""),"",Y$2&Y19+'1学期'!Y19+'2学期'!Y19&"、") ->  | AR19: =IF(AND(Z19="",'1学期'!Z19="",'2学期'!Z19=""),"",Z$2&Z19+'1学期'!Z19+'2学期'!Z19&"、") ->  | AT19: 頭痛1、感染症予防のため6、
A20: =IF(名簿!$A18="","",名簿!$A18) -> 1118 | B20: =IFERROR(VLOOKUP($A20,名簿!$A:$C,3,0),"") -> 0 | C20: 56 | D20: 0 | E20: 0 | F20: 0 | G20: 0 | H20: 0 | J20: =IF(AT20="",IF(OR('1学期'!AA20="あり",'2学期'!AA20="あり",AA20="あり"),"特記事項なし","皆勤"),IF(AND('1学期'!AA20="",'2学期'!AA20="",AA20="",COUNTBLANK(AI20:AQ20)=COUNTA($AI$2:$AQ$2)),"皆勤、"&LEFT(AT20,LEN(AT20)-1),LEFT(AT20,LEN(AT20)-1))) -> 皆勤 | AD20: =IF(AND(L20="",'1学期'!L20="",'2学期'!L20=""),"",L$2&L20+'1学期'!L20+'2学期'!L20&"、") ->  | AE20: =IF(AND(M20="",'1学期'!M20="",'2学期'!M20=""),"",M$2&M20+'1学期'!M20+'2学期'!M20&"、") ->  | AF20: =IF(AND(N20="",'1学期'!N20="",'2学期'!N20=""),"",N$2&N20+'1学期'!N20+'2学期'!N20&"、") ->  | AG20: =IF(AND(O20="",'1学期'!O20="",'2学期'!O20=""),"",O$2&O20+'1学期'!O20+'2学期'!O20&"、") ->  | AH20: =IF(AND(P20="",'1学期'!P20="",'2学期'!P20=""),"",P$2&P20+'1学期'!P20+'2学期'!P20&"、") ->  | AI20: =IF(AND(Q20="",'1学期'!Q20="",'2学期'!Q20=""),"",Q$2&Q20+'1学期'!Q20+'2学期'!Q20&"、") ->  | AJ20: =IF(AND(R20="",'1学期'!R20="",'2学期'!R20=""),"",R$2&R20+'1学期'!R20+'2学期'!R20&"、") ->  | AK20: =IF(AND(S20="",'1学期'!S20="",'2学期'!S20=""),"",S$2&S20+'1学期'!S20+'2学期'!S20&"、") ->  | AL20: =IF(AND(T20="",'1学期'!T20="",'2学期'!T20=""),"",T$2&T20+'1学期'!T20+'2学期'!T20&"、") ->  | AM20: =IF(AND(U20="",'1学期'!U20="",'2学期'!U20=""),"",U$2&U20+'1学期'!U20+'2学期'!U20&"、") ->  | AN20: =IF(AND(V20="",'1学期'!V20="",'2学期'!V20=""),"",V$2&V20+'1学期'!V20+'2学期'!V20&"、") ->  | AO20: =IF(AND(W20="",'1学期'!W20="",'2学期'!W20=""),"",W$2&W20+'1学期'!W20+'2学期'!W20&"、") ->  | AP20: =IF(AND(X20="",'1学期'!X20="",'2学期'!X20=""),"",X$2&X20+'1学期'!X20+'2学期'!X20&"、") ->  | AQ20: =IF(AND(Y20="",'1学期'!Y20="",'2学期'!Y20=""),"",Y$2&Y20+'1学期'!Y20+'2学期'!Y20&"、") ->  | AR20: =IF(AND(Z20="",'1学期'!Z20="",'2学期'!Z20=""),"",Z$2&Z20+'1学期'!Z20+'2学期'!Z20&"、") -> 
A21: =IF(名簿!$A19="","",名簿!$A19) -> 1119 | B21: =IFERROR(VLOOKUP($A21,名簿!$A:$C,3,0),"") -> 0 | C21: 56 | D21: 0 | E21: 0 | F21: 0 | G21: 0 | H21: 0 | J21: =IF(AT21="",IF(OR('1学期'!AA21="あり",'2学期'!AA21="あり",AA21="あり"),"特記事項なし","皆勤"),IF(AND('1学期'!AA21="",'2学期'!AA21="",AA21="",COUNTBLANK(AI21:AQ21)=COUNTA($AI$2:$AQ$2)),"皆勤、"&LEFT(AT21,LEN(AT21)-1),LEFT(AT21,LEN(AT21)-1))) -> 発熱1、感染症のため8 | AD21: =IF(AND(L21="",'1学期'!L21="",'2学期'!L21=""),"",L$2&L21+'1学期'!L21+'2学期'!L21&"、") ->  | AE21: =IF(AND(M21="",'1学期'!M21="",'2学期'!M21=""),"",M$2&M21+'1学期'!M21+'2学期'!M21&"、") -> 感染症のため8、 | AF21: =IF(AND(N21="",'1学期'!N21="",'2学期'!N21=""),"",N$2&N21+'1学期'!N21+'2学期'!N21&"、") ->  | AG21: =IF(AND(O21="",'1学期'!O21="",'2学期'!O21=""),"",O$2&O21+'1学期'!O21+'2学期'!O21&"、") ->  | AH21: =IF(AND(P21="",'1学期'!P21="",'2学期'!P21=""),"",P$2&P21+'1学期'!P21+'2学期'!P21&"、") ->  | AI21: =IF(AND(Q21="",'1学期'!Q21="",'2学期'!Q21=""),"",Q$2&Q21+'1学期'!Q21+'2学期'!Q21&"、") ->  | AJ21: =IF(AND(R21="",'1学期'!R21="",'2学期'!R21=""),"",R$2&R21+'1学期'!R21+'2学期'!R21&"、") -> 発熱1、 | AK21: =IF(AND(S21="",'1学期'!S21="",'2学期'!S21=""),"",S$2&S21+'1学期'!S21+'2学期'!S21&"、") ->  | AL21: =IF(AND(T21="",'1学期'!T21="",'2学期'!T21=""),"",T$2&T21+'1学期'!T21+'2学期'!T21&"、") ->  | AM21: =IF(AND(U21="",'1学期'!U21="",'2学期'!U21=""),"",U$2&U21+'1学期'!U21+'2学期'!U21&"、") ->  | AN21: =IF(AND(V21="",'1学期'!V21="",'2学期'!V21=""),"",V$2&V21+'1学期'!V21+'2学期'!V21&"、") ->  | AO21: =IF(AND(W21="",'1学期'!W21="",'2学期'!W21=""),"",W$2&W21+'1学期'!W21+'2学期'!W21&"、") ->  | AP21: =IF(AND(X21="",'1学期'!X21="",'2学期'!X21=""),"",X$2&X21+'1学期'!X21+'2学期'!X21&"、") ->  | AQ21: =IF(AND(Y21="",'1学期'!Y21="",'2学期'!Y21=""),"",Y$2&Y21+'1学期'!Y21+'2学期'!Y21&"、") ->  | AR21: =IF(AND(Z21="",'1学期'!Z21="",'2学期'!Z21=""),"",Z$2&Z21+'1学期'!Z21+'2学期'!Z21&"、") ->  | AT21: 発熱1、感染症のため8、
A22: =IF(名簿!$A20="","",名簿!$A20) -> 1120 | B22: =IFERROR(VLOOKUP($A22,名簿!$A:$C,3,0),"") -> 0 | C22: 56 | D22: 0 | E22: 0 | F22: 0 | G22: 0 | H22: 0 | J22: =IF(AT22="",IF(OR('1学期'!AA22="あり",'2学期'!AA22="あり",AA22="あり"),"特記事項なし","皆勤"),IF(AND('1学期'!AA22="",'2学期'!AA22="",AA22="",COUNTBLANK(AI22:AQ22)=COUNTA($AI$2:$AQ$2)),"皆勤、"&LEFT(AT22,LEN(AT22)-1),LEFT(AT22,LEN(AT22)-1))) -> 体調不良23、発熱9、頭痛2、腹痛2、自己都合16 | AD22: =IF(AND(L22="",'1学期'!L22="",'2学期'!L22=""),"",L$2&L22+'1学期'!L22+'2学期'!L22&"、") ->  | AE22: =IF(AND(M22="",'1学期'!M22="",'2学期'!M22=""),"",M$2&M22+'1学期'!M22+'2学期'!M22&"、") ->  | AF22: =IF(AND(N22="",'1学期'!N22="",'2学期'!N22=""),"",N$2&N22+'1学期'!N22+'2学期'!N22&"、") ->  | AG22: =IF(AND(O22="",'1学期'!O22="",'2学期'!O22=""),"",O$2&O22+'1学期'!O22+'2学期'!O22&"、") ->  | AH22: =IF(AND(P22="",'1学期'!P22="",'2学期'!P22=""),"",P$2&P22+'1学期'!P22+'2学期'!P22&"、") ->  | AI22: =IF(AND(Q22="",'1学期'!Q22="",'2学期'!Q22=""),"",Q$2&Q22+'1学期'!Q22+'2学期'!Q22&"、") -> 体調不良23、 | AJ22: =IF(AND(R22="",'1学期'!R22="",'2学期'!R22=""),"",R$2&R22+'1学期'!R22+'2学期'!R22&"、") -> 発熱9、 | AK22: =IF(AND(S22="",'1学期'!S22="",'2学期'!S22=""),"",S$2&S22+'1学期'!S22+'2学期'!S22&"、") ->  | AL22: =IF(AND(T22="",'1学期'!T22="",'2学期'!T22=""),"",T$2&T22+'1学期'!T22+'2学期'!T22&"、") -> 頭痛2、 | AM22: =IF(AND(U22="",'1学期'!U22="",'2学期'!U22=""),"",U$2&U22+'1学期'!U22+'2学期'!U22&"、") -> 腹痛2、 | AN22: =IF(AND(V22="",'1学期'!V22="",'2学期'!V22=""),"",V$2&V22+'1学期'!V22+'2学期'!V22&"、") ->  | AO22: =IF(AND(W22="",'1学期'!W22="",'2学期'!W22=""),"",W$2&W22+'1学期'!W22+'2学期'!W22&"、") ->  | AP22: =IF(AND(X22="",'1学期'!X22="",'2学期'!X22=""),"",X$2&X22+'1学期'!X22+'2学期'!X22&"、") ->  | AQ22: =IF(AND(Y22="",'1学期'!Y22="",'2学期'!Y22=""),"",Y$2&Y22+'1学期'!Y22+'2学期'!Y22&"、") ->  | AR22: =IF(AND(Z22="",'1学期'!Z22="",'2学期'!Z22=""),"",Z$2&Z22+'1学期'!Z22+'2学期'!Z22&"、") -> 自己都合16、 | AT22: 体調不良23、発熱9、頭痛2、腹痛2、自己都合16、
A23: =IF(名簿!$A21="","",名簿!$A21) -> 1121 | B23: =IFERROR(VLOOKUP($A23,名簿!$A:$C,3,0),"") -> 0 | C23: 56 | D23: 0 | E23: 0 | F23: 0 | G23: 0 | H23: 0 | J23: =IF(AT23="",IF(OR('1学期'!AA23="あり",'2学期'!AA23="あり",AA23="あり"),"特記事項なし","皆勤"),IF(AND('1学期'!AA23="",'2学期'!AA23="",AA23="",COUNTBLANK(AI23:AQ23)=COUNTA($AI$2:$AQ$2)),"皆勤、"&LEFT(AT23,LEN(AT23)-1),LEFT(AT23,LEN(AT23)-1))) -> 体調不良13、腹痛4 | U23: 3 | AD23: =IF(AND(L23="",'1学期'!L23="",'2学期'!L23=""),"",L$2&L23+'1学期'!L23+'2学期'!L23&"、") ->  | AE23: =IF(AND(M23="",'1学期'!M23="",'2学期'!M23=""),"",M$2&M23+'1学期'!M23+'2学期'!M23&"、") ->  | AF23: =IF(AND(N23="",'1学期'!N23="",'2学期'!N23=""),"",N$2&N23+'1学期'!N23+'2学期'!N23&"、") ->  | AG23: =IF(AND(O23="",'1学期'!O23="",'2学期'!O23=""),"",O$2&O23+'1学期'!O23+'2学期'!O23&"、") ->  | AH23: =IF(AND(P23="",'1学期'!P23="",'2学期'!P23=""),"",P$2&P23+'1学期'!P23+'2学期'!P23&"、") ->  | AI23: =IF(AND(Q23="",'1学期'!Q23="",'2学期'!Q23=""),"",Q$2&Q23+'1学期'!Q23+'2学期'!Q23&"、") -> 体調不良13、 | AJ23: =IF(AND(R23="",'1学期'!R23="",'2学期'!R23=""),"",R$2&R23+'1学期'!R23+'2学期'!R23&"、") ->  | AK23: =IF(AND(S23="",'1学期'!S23="",'2学期'!S23=""),"",S$2&S23+'1学期'!S23+'2学期'!S23&"、") ->  | AL23: =IF(AND(T23="",'1学期'!T23="",'2学期'!T23=""),"",T$2&T23+'1学期'!T23+'2学期'!T23&"、") ->  | AM23: =IF(AND(U23="",'1学期'!U23="",'2学期'!U23=""),"",U$2&U23+'1学期'!U23+'2学期'!U23&"、") -> 腹痛4、 | AN23: =IF(AND(V23="",'1学期'!V23="",'2学期'!V23=""),"",V$2&V23+'1学期'!V23+'2学期'!V23&"、") ->  | AO23: =IF(AND(W23="",'1学期'!W23="",'2学期'!W23=""),"",W$2&W23+'1学期'!W23+'2学期'!W23&"、") ->  | AP23: =IF(AND(X23="",'1学期'!X23="",'2学期'!X23=""),"",X$2&X23+'1学期'!X23+'2学期'!X23&"、") ->  | AQ23: =IF(AND(Y23="",'1学期'!Y23="",'2学期'!Y23=""),"",Y$2&Y23+'1学期'!Y23+'2学期'!Y23&"、") ->  | AR23: =IF(AND(Z23="",'1学期'!Z23="",'2学期'!Z23=""),"",Z$2&Z23+'1学期'!Z23+'2学期'!Z23&"、") ->  | AT23: 体調不良13、腹痛4、
A24: =IF(名簿!$A22="","",名簿!$A22) -> 1122 | B24: =IFERROR(VLOOKUP($A24,名簿!$A:$C,3,0),"") -> 0 | C24: 56 | D24: 0 | E24: 0 | F24: 0 | G24: 0 | H24: 0 | J24: =IF(AT24="",IF(OR('1学期'!AA24="あり",'2学期'!AA24="あり",AA24="あり"),"特記事項なし","皆勤"),IF(AND('1学期'!AA24="",'2学期'!AA24="",AA24="",COUNTBLANK(AI24:AQ24)=COUNTA($AI$2:$AQ$2)),"皆勤、"&LEFT(AT24,LEN(AT24)-1),LEFT(AT24,LEN(AT24)-1))) -> 体調不良9、発熱1、家事都合2、感染症予防のため2 | AD24: =IF(AND(L24="",'1学期'!L24="",'2学期'!L24=""),"",L$2&L24+'1学期'!L24+'2学期'!L24&"、") -> 感染症予防のため2、 | AE24: =IF(AND(M24="",'1学期'!M24="",'2学期'!M24=""),"",M$2&M24+'1学期'!M24+'2学期'!M24&"、") ->  | AF24: =IF(AND(N24="",'1学期'!N24="",'2学期'!N24=""),"",N$2&N24+'1学期'!N24+'2学期'!N24&"、") ->  | AG24: =IF(AND(O24="",'1学期'!O24="",'2学期'!O24=""),"",O$2&O24+'1学期'!O24+'2学期'!O24&"、") ->  | AH24: =IF(AND(P24="",'1学期'!P24="",'2学期'!P24=""),"",P$2&P24+'1学期'!P24+'2学期'!P24&"、") ->  | AI24: =IF(AND(Q24="",'1学期'!Q24="",'2学期'!Q24=""),"",Q$2&Q24+'1学期'!Q24+'2学期'!Q24&"、") -> 体調不良9、 | AJ24: =IF(AND(R24="",'1学期'!R24="",'2学期'!R24=""),"",R$2&R24+'1学期'!R24+'2学期'!R24&"、") -> 発熱1、 | AK24: =IF(AND(S24="",'1学期'!S24="",'2学期'!S24=""),"",S$2&S24+'1学期'!S24+'2学期'!S24&"、") ->  | AL24: =IF(AND(T24="",'1学期'!T24="",'2学期'!T24=""),"",T$2&T24+'1学期'!T24+'2学期'!T24&"、") ->  | AM24: =IF(AND(U24="",'1学期'!U24="",'2学期'!U24=""),"",U$2&U24+'1学期'!U24+'2学期'!U24&"、") ->  | AN24: =IF(AND(V24="",'1学期'!V24="",'2学期'!V24=""),"",V$2&V24+'1学期'!V24+'2学期'!V24&"、") ->  | AO24: =IF(AND(W24="",'1学期'!W24="",'2学期'!W24=""),"",W$2&W24+'1学期'!W24+'2学期'!W24&"、") ->  | AP24: =IF(AND(X24="",'1学期'!X24="",'2学期'!X24=""),"",X$2&X24+'1学期'!X24+'2学期'!X24&"、") ->  | AQ24: =IF(AND(Y24="",'1学期'!Y24="",'2学期'!Y24=""),"",Y$2&Y24+'1学期'!Y24+'2学期'!Y24&"、") -> 家事都合2、 | AR24: =IF(AND(Z24="",'1学期'!Z24="",'2学期'!Z24=""),"",Z$2&Z24+'1学期'!Z24+'2学期'!Z24&"、") ->  | AT24: 体調不良9、発熱1、家事都合2、感染症予防のため2、
A25: =IF(名簿!$A23="","",名簿!$A23) -> 1123 | B25: =IFERROR(VLOOKUP($A25,名簿!$A:$C,3,0),"") -> 0 | C25: 56 | D25: 0 | E25: 0 | F25: 0 | G25: 0 | H25: 0 | J25: =IF(AT25="",IF(OR('1学期'!AA25="あり",'2学期'!AA25="あり",AA25="あり"),"特記事項なし","皆勤"),IF(AND('1学期'!AA25="",'2学期'!AA25="",AA25="",COUNTBLANK(AI25:AQ25)=COUNTA($AI$2:$AQ$2)),"皆勤、"&LEFT(AT25,LEN(AT25)-1),LEFT(AT25,LEN(AT25)-1))) -> 皆勤、祖父葬儀1 | O25: 1 | AD25: =IF(AND(L25="",'1学期'!L25="",'2学期'!L25=""),"",L$2&L25+'1学期'!L25+'2学期'!L25&"、") ->  | AE25: =IF(AND(M25="",'1学期'!M25="",'2学期'!M25=""),"",M$2&M25+'1学期'!M25+'2学期'!M25&"、") ->  | AF25: =IF(AND(N25="",'1学期'!N25="",'2学期'!N25=""),"",N$2&N25+'1学期'!N25+'2学期'!N25&"、") ->  | AG25: =IF(AND(O25="",'1学期'!O25="",'2学期'!O25=""),"",O$2&O25+'1学期'!O25+'2学期'!O25&"、") -> 祖父葬儀1、 | AH25: =IF(AND(P25="",'1学期'!P25="",'2学期'!P25=""),"",P$2&P25+'1学期'!P25+'2学期'!P25&"、") ->  | AI25: =IF(AND(Q25="",'1学期'!Q25="",'2学期'!Q25=""),"",Q$2&Q25+'1学期'!Q25+'2学期'!Q25&"、") ->  | AJ25: =IF(AND(R25="",'1学期'!R25="",'2学期'!R25=""),"",R$2&R25+'1学期'!R25+'2学期'!R25&"、") ->  | AK25: =IF(AND(S25="",'1学期'!S25="",'2学期'!S25=""),"",S$2&S25+'1学期'!S25+'2学期'!S25&"、") ->  | AL25: =IF(AND(T25="",'1学期'!T25="",'2学期'!T25=""),"",T$2&T25+'1学期'!T25+'2学期'!T25&"、") ->  | AM25: =IF(AND(U25="",'1学期'!U25="",'2学期'!U25=""),"",U$2&U25+'1学期'!U25+'2学期'!U25&"、") ->  | AN25: =IF(AND(V25="",'1学期'!V25="",'2学期'!V25=""),"",V$2&V25+'1学期'!V25+'2学期'!V25&"、") ->  | AO25: =IF(AND(W25="",'1学期'!W25="",'2学期'!W25=""),"",W$2&W25+'1学期'!W25+'2学期'!W25&"、") ->  | AP25: =IF(AND(X25="",'1学期'!X25="",'2学期'!X25=""),"",X$2&X25+'1学期'!X25+'2学期'!X25&"、") ->  | AQ25: =IF(AND(Y25="",'1学期'!Y25="",'2学期'!Y25=""),"",Y$2&Y25+'1学期'!Y25+'2学期'!Y25&"、") ->  | AR25: =IF(AND(Z25="",'1学期'!Z25="",'2学期'!Z25=""),"",Z$2&Z25+'1学期'!Z25+'2学期'!Z25&"、") ->  | AT25: 祖父葬儀1、
A26: =IF(名簿!$A24="","",名簿!$A24) -> 1124 | B26: =IFERROR(VLOOKUP($A26,名簿!$A:$C,3,0),"") -> 0 | C26: 56 | D26: 0 | E26: 0 | F26: 0 | G26: 0 | H26: 0 | J26: =IF(AT26="",IF(OR('1学期'!AA26="あり",'2学期'!AA26="あり",AA26="あり"),"特記事項なし","皆勤"),IF(AND('1学期'!AA26="",'2学期'!AA26="",AA26="",COUNTBLANK(AI26:AQ26)=COUNTA($AI$2:$AQ$2)),"皆勤、"&LEFT(AT26,LEN(AT26)-1),LEFT(AT26,LEN(AT26)-1))) -> 皆勤 | AD26: =IF(AND(L26="",'1学期'!L26="",'2学期'!L26=""),"",L$2&L26+'1学期'!L26+'2学期'!L26&"、") ->  | AE26: =IF(AND(M26="",'1学期'!M26="",'2学期'!M26=""),"",M$2&M26+'1学期'!M26+'2学期'!M26&"、") ->  | AF26: =IF(AND(N26="",'1学期'!N26="",'2学期'!N26=""),"",N$2&N26+'1学期'!N26+'2学期'!N26&"、") ->  | AG26: =IF(AND(O26="",'1学期'!O26="",'2学期'!O26=""),"",O$2&O26+'1学期'!O26+'2学期'!O26&"、") ->  | AH26: =IF(AND(P26="",'1学期'!P26="",'2学期'!P26=""),"",P$2&P26+'1学期'!P26+'2学期'!P26&"、") ->  | AI26: =IF(AND(Q26="",'1学期'!Q26="",'2学期'!Q26=""),"",Q$2&Q26+'1学期'!Q26+'2学期'!Q26&"、") ->  | AJ26: =IF(AND(R26="",'1学期'!R26="",'2学期'!R26=""),"",R$2&R26+'1学期'!R26+'2学期'!R26&"、") ->  | AK26: =IF(AND(S26="",'1学期'!S26="",'2学期'!S26=""),"",S$2&S26+'1学期'!S26+'2学期'!S26&"、") ->  | AL26: =IF(AND(T26="",'1学期'!T26="",'2学期'!T26=""),"",T$2&T26+'1学期'!T26+'2学期'!T26&"、") ->  | AM26: =IF(AND(U26="",'1学期'!U26="",'2学期'!U26=""),"",U$2&U26+'1学期'!U26+'2学期'!U26&"、") ->  | AN26: =IF(AND(V26="",'1学期'!V26="",'2学期'!V26=""),"",V$2&V26+'1学期'!V26+'2学期'!V26&"、") ->  | AO26: =IF(AND(W26="",'1学期'!W26="",'2学期'!W26=""),"",W$2&W26+'1学期'!W26+'2学期'!W26&"、") ->  | AP26: =IF(AND(X26="",'1学期'!X26="",'2学期'!X26=""),"",X$2&X26+'1学期'!X26+'2学期'!X26&"、") ->  | AQ26: =IF(AND(Y26="",'1学期'!Y26="",'2学期'!Y26=""),"",Y$2&Y26+'1学期'!Y26+'2学期'!Y26&"、") ->  | AR26: =IF(AND(Z26="",'1学期'!Z26="",'2学期'!Z26=""),"",Z$2&Z26+'1学期'!Z26+'2学期'!Z26&"、") -> 
A27: =IF(名簿!$A25="","",名簿!$A25) -> 1125 | B27: =IFERROR(VLOOKUP($A27,名簿!$A:$C,3,0),"") -> 0 | C27: 56 | D27: 0 | E27: 0 | F27: 0 | G27: 0 | H27: 0 | J27: =IF(AT27="",IF(OR('1学期'!AA27="あり",'2学期'!AA27="あり",AA27="あり"),"特記事項なし","皆勤"),IF(AND('1学期'!AA27="",'2学期'!AA27="",AA27="",COUNTBLANK(AI27:AQ27)=COUNTA($AI$2:$AQ$2)),"皆勤、"&LEFT(AT27,LEN(AT27)-1),LEFT(AT27,LEN(AT27)-1))) -> 体調不良2、感染症予防のため1 | AD27: =IF(AND(L27="",'1学期'!L27="",'2学期'!L27=""),"",L$2&L27+'1学期'!L27+'2学期'!L27&"、") -> 感染症予防のため1、 | AE27: =IF(AND(M27="",'1学期'!M27="",'2学期'!M27=""),"",M$2&M27+'1学期'!M27+'2学期'!M27&"、") ->  | AF27: =IF(AND(N27="",'1学期'!N27="",'2学期'!N27=""),"",N$2&N27+'1学期'!N27+'2学期'!N27&"、") ->  | AG27: =IF(AND(O27="",'1学期'!O27="",'2学期'!O27=""),"",O$2&O27+'1学期'!O27+'2学期'!O27&"、") ->  | AH27: =IF(AND(P27="",'1学期'!P27="",'2学期'!P27=""),"",P$2&P27+'1学期'!P27+'2学期'!P27&"、") ->  | AI27: =IF(AND(Q27="",'1学期'!Q27="",'2学期'!Q27=""),"",Q$2&Q27+'1学期'!Q27+'2学期'!Q27&"、") -> 体調不良2、 | AJ27: =IF(AND(R27="",'1学期'!R27="",'2学期'!R27=""),"",R$2&R27+'1学期'!R27+'2学期'!R27&"、") ->  | AK27: =IF(AND(S27="",'1学期'!S27="",'2学期'!S27=""),"",S$2&S27+'1学期'!S27+'2学期'!S27&"、") ->  | AL27: =IF(AND(T27="",'1学期'!T27="",'2学期'!T27=""),"",T$2&T27+'1学期'!T27+'2学期'!T27&"、") ->  | AM27: =IF(AND(U27="",'1学期'!U27="",'2学期'!U27=""),"",U$2&U27+'1学期'!U27+'2学期'!U27&"、") ->  | AN27: =IF(AND(V27="",'1学期'!V27="",'2学期'!V27=""),"",V$2&V27+'1学期'!V27+'2学期'!V27&"、") ->  | AO27: =IF(AND(W27="",'1学期'!W27="",'2学期'!W27=""),"",W$2&W27+'1学期'!W27+'2学期'!W27&"、") ->  | AP27: =IF(AND(X27="",'1学期'!X27="",'2学期'!X27=""),"",X$2&X27+'1学期'!X27+'2学期'!X27&"、") ->  | AQ27: =IF(AND(Y27="",'1学期'!Y27="",'2学期'!Y27=""),"",Y$2&Y27+'1学期'!Y27+'2学期'!Y27&"、") ->  | AR27: =IF(AND(Z27="",'1学期'!Z27="",'2学期'!Z27=""),"",Z$2&Z27+'1学期'!Z27+'2学期'!Z27&"、") ->  | AT27: 体調不良2、感染症予防のため1、
A28: =IF(名簿!$A26="","",名簿!$A26) -> 1126 | B28: =IFERROR(VLOOKUP($A28,名簿!$A:$C,3,0),"") -> 0 | C28: 56 | D28: 0 | E28: 0 | F28: 0 | G28: 0 | H28: 0 | J28: =IF(AT28="",IF(OR('1学期'!AA28="あり",'2学期'!AA28="あり",AA28="あり"),"特記事項なし","皆勤"),IF(AND('1学期'!AA28="",'2学期'!AA28="",AA28="",COUNTBLANK(AI28:AQ28)=COUNTA($AI$2:$AQ$2)),"皆勤、"&LEFT(AT28,LEN(AT28)-1),LEFT(AT28,LEN(AT28)-1))) -> 体調不良43、通院3 | W28: 3 | AD28: =IF(AND(L28="",'1学期'!L28="",'2学期'!L28=""),"",L$2&L28+'1学期'!L28+'2学期'!L28&"、") ->  | AE28: =IF(AND(M28="",'1学期'!M28="",'2学期'!M28=""),"",M$2&M28+'1学期'!M28+'2学期'!M28&"、") ->  | AF28: =IF(AND(N28="",'1学期'!N28="",'2学期'!N28=""),"",N$2&N28+'1学期'!N28+'2学期'!N28&"、") ->  | AG28: =IF(AND(O28="",'1学期'!O28="",'2学期'!O28=""),"",O$2&O28+'1学期'!O28+'2学期'!O28&"、") ->  | AH28: =IF(AND(P28="",'1学期'!P28="",'2学期'!P28=""),"",P$2&P28+'1学期'!P28+'2学期'!P28&"、") ->  | AI28: =IF(AND(Q28="",'1学期'!Q28="",'2学期'!Q28=""),"",Q$2&Q28+'1学期'!Q28+'2学期'!Q28&"、") -> 体調不良43、 | AJ28: =IF(AND(R28="",'1学期'!R28="",'2学期'!R28=""),"",R$2&R28+'1学期'!R28+'2学期'!R28&"、") ->  | AK28: =IF(AND(S28="",'1学期'!S28="",'2学期'!S28=""),"",S$2&S28+'1学期'!S28+'2学期'!S28&"、") ->  | AL28: =IF(AND(T28="",'1学期'!T28="",'2学期'!T28=""),"",T$2&T28+'1学期'!T28+'2学期'!T28&"、") ->  | AM28: =IF(AND(U28="",'1学期'!U28="",'2学期'!U28=""),"",U$2&U28+'1学期'!U28+'2学期'!U28&"、") ->  | AN28: =IF(AND(V28="",'1学期'!V28="",'2学期'!V28=""),"",V$2&V28+'1学期'!V28+'2学期'!V28&"、") ->  | AO28: =IF(AND(W28="",'1学期'!W28="",'2学期'!W28=""),"",W$2&W28+'1学期'!W28+'2学期'!W28&"、") -> 通院3、 | AP28: =IF(AND(X28="",'1学期'!X28="",'2学期'!X28=""),"",X$2&X28+'1学期'!X28+'2学期'!X28&"、") ->  | AQ28: =IF(AND(Y28="",'1学期'!Y28="",'2学期'!Y28=""),"",Y$2&Y28+'1学期'!Y28+'2学期'!Y28&"、") ->  | AR28: =IF(AND(Z28="",'1学期'!Z28="",'2学期'!Z28=""),"",Z$2&Z28+'1学期'!Z28+'2学期'!Z28&"、") ->  | AT28: 体調不良43、通院3、
A29: =IF(名簿!$A27="","",名簿!$A27) -> 1127 | B29: =IFERROR(VLOOKUP($A29,名簿!$A:$C,3,0),"") -> 0 | C29: 56 | D29: 0 | E29: 0 | F29: 0 | G29: 0 | H29: 0 | J29: =IF(AT29="",IF(OR('1学期'!AA29="あり",'2学期'!AA29="あり",AA29="あり"),"特記事項なし","皆勤"),IF(AND('1学期'!AA29="",'2学期'!AA29="",AA29="",COUNTBLANK(AI29:AQ29)=COUNTA($AI$2:$AQ$2)),"皆勤、"&LEFT(AT29,LEN(AT29)-1),LEFT(AT29,LEN(AT29)-1))) -> 体調不良24、発熱1、風邪2 | S29: 2 | AD29: =IF(AND(L29="",'1学期'!L29="",'2学期'!L29=""),"",L$2&L29+'1学期'!L29+'2学期'!L29&"、") ->  | AE29: =IF(AND(M29="",'1学期'!M29="",'2学期'!M29=""),"",M$2&M29+'1学期'!M29+'2学期'!M29&"、") ->  | AF29: =IF(AND(N29="",'1学期'!N29="",'2学期'!N29=""),"",N$2&N29+'1学期'!N29+'2学期'!N29&"、") ->  | AG29: =IF(AND(O29="",'1学期'!O29="",'2学期'!O29=""),"",O$2&O29+'1学期'!O29+'2学期'!O29&"、") ->  | AH29: =IF(AND(P29="",'1学期'!P29="",'2学期'!P29=""),"",P$2&P29+'1学期'!P29+'2学期'!P29&"、") ->  | AI29: =IF(AND(Q29="",'1学期'!Q29="",'2学期'!Q29=""),"",Q$2&Q29+'1学期'!Q29+'2学期'!Q29&"、") -> 体調不良24、 | AJ29: =IF(AND(R29="",'1学期'!R29="",'2学期'!R29=""),"",R$2&R29+'1学期'!R29+'2学期'!R29&"、") -> 発熱1、 | AK29: =IF(AND(S29="",'1学期'!S29="",'2学期'!S29=""),"",S$2&S29+'1学期'!S29+'2学期'!S29&"、") -> 風邪2、 | AL29: =IF(AND(T29="",'1学期'!T29="",'2学期'!T29=""),"",T$2&T29+'1学期'!T29+'2学期'!T29&"、") ->  | AM29: =IF(AND(U29="",'1学期'!U29="",'2学期'!U29=""),"",U$2&U29+'1学期'!U29+'2学期'!U29&"、") ->  | AN29: =IF(AND(V29="",'1学期'!V29="",'2学期'!V29=""),"",V$2&V29+'1学期'!V29+'2学期'!V29&"、") ->  | AO29: =IF(AND(W29="",'1学期'!W29="",'2学期'!W29=""),"",W$2&W29+'1学期'!W29+'2学期'!W29&"、") ->  | AP29: =IF(AND(X29="",'1学期'!X29="",'2学期'!X29=""),"",X$2&X29+'1学期'!X29+'2学期'!X29&"、") ->  | AQ29: =IF(AND(Y29="",'1学期'!Y29="",'2学期'!Y29=""),"",Y$2&Y29+'1学期'!Y29+'2学期'!Y29&"、") ->  | AR29: =IF(AND(Z29="",'1学期'!Z29="",'2学期'!Z29=""),"",Z$2&Z29+'1学期'!Z29+'2学期'!Z29&"、") ->  | AT29: 体調不良24、発熱1、風邪2、
A30: =IF(名簿!$A28="","",名簿!$A28) -> 1128 | B30: =IFERROR(VLOOKUP($A30,名簿!$A:$C,3,0),"") -> 0 | C30: 56 | D30: 0 | E30: 0 | F30: 0 | G30: 0 | H30: 0 | J30: =IF(AT30="",IF(OR('1学期'!AA30="あり",'2学期'!AA30="あり",AA30="あり"),"特記事項なし","皆勤"),IF(AND('1学期'!AA30="",'2学期'!AA30="",AA30="",COUNTBLANK(AI30:AQ30)=COUNTA($AI$2:$AQ$2)),"皆勤、"&LEFT(AT30,LEN(AT30)-1),LEFT(AT30,LEN(AT30)-1))) -> 風邪3、頭痛2、通院1、祖父葬儀1 | O30: 1 | S30: 3 | W30: 1 | AD30: =IF(AND(L30="",'1学期'!L30="",'2学期'!L30=""),"",L$2&L30+'1学期'!L30+'2学期'!L30&"、") ->  | AE30: =IF(AND(M30="",'1学期'!M30="",'2学期'!M30=""),"",M$2&M30+'1学期'!M30+'2学期'!M30&"、") ->  | AF30: =IF(AND(N30="",'1学期'!N30="",'2学期'!N30=""),"",N$2&N30+'1学期'!N30+'2学期'!N30&"、") ->  | AG30: =IF(AND(O30="",'1学期'!O30="",'2学期'!O30=""),"",O$2&O30+'1学期'!O30+'2学期'!O30&"、") -> 祖父葬儀1、 | AH30: =IF(AND(P30="",'1学期'!P30="",'2学期'!P30=""),"",P$2&P30+'1学期'!P30+'2学期'!P30&"、") ->  | AI30: =IF(AND(Q30="",'1学期'!Q30="",'2学期'!Q30=""),"",Q$2&Q30+'1学期'!Q30+'2学期'!Q30&"、") ->  | AJ30: =IF(AND(R30="",'1学期'!R30="",'2学期'!R30=""),"",R$2&R30+'1学期'!R30+'2学期'!R30&"、") ->  | AK30: =IF(AND(S30="",'1学期'!S30="",'2学期'!S30=""),"",S$2&S30+'1学期'!S30+'2学期'!S30&"、") -> 風邪3、 | AL30: =IF(AND(T30="",'1学期'!T30="",'2学期'!T30=""),"",T$2&T30+'1学期'!T30+'2学期'!T30&"、") -> 頭痛2、 | AM30: =IF(AND(U30="",'1学期'!U30="",'2学期'!U30=""),"",U$2&U30+'1学期'!U30+'2学期'!U30&"、") ->  | AN30: =IF(AND(V30="",'1学期'!V30="",'2学期'!V30=""),"",V$2&V30+'1学期'!V30+'2学期'!V30&"、") ->  | AO30: =IF(AND(W30="",'1学期'!W30="",'2学期'!W30=""),"",W$2&W30+'1学期'!W30+'2学期'!W30&"、") -> 通院1、 | AP30: =IF(AND(X30="",'1学期'!X30="",'2学期'!X30=""),"",X$2&X30+'1学期'!X30+'2学期'!X30&"、") ->  | AQ30: =IF(AND(Y30="",'1学期'!Y30="",'2学期'!Y30=""),"",Y$2&Y30+'1学期'!Y30+'2学期'!Y30&"、") ->  | AR30: =IF(AND(Z30="",'1学期'!Z30="",'2学期'!Z30=""),"",Z$2&Z30+'1学期'!Z30+'2学期'!Z30&"、") ->  | AT30: 風邪3、頭痛2、通院1、祖父葬儀1、
A31: =IF(名簿!$A29="","",名簿!$A29) -> 1129 | B31: =IFERROR(VLOOKUP($A31,名簿!$A:$C,3,0),"") -> 0 | C31: 56 | D31: 0 | E31: 0 | F31: 0 | G31: 0 | H31: 0 | J31: =IF(AT31="",IF(OR('1学期'!AA31="あり",'2学期'!AA31="あり",AA31="あり"),"特記事項なし","皆勤"),IF(AND('1学期'!AA31="",'2学期'!AA31="",AA31="",COUNTBLANK(AI31:AQ31)=COUNTA($AI$2:$AQ$2)),"皆勤、"&LEFT(AT31,LEN(AT31)-1),LEFT(AT31,LEN(AT31)-1))) -> 頭痛1 | AD31: =IF(AND(L31="",'1学期'!L31="",'2学期'!L31=""),"",L$2&L31+'1学期'!L31+'2学期'!L31&"、") ->  | AE31: =IF(AND(M31="",'1学期'!M31="",'2学期'!M31=""),"",M$2&M31+'1学期'!M31+'2学期'!M31&"、") ->  | AF31: =IF(AND(N31="",'1学期'!N31="",'2学期'!N31=""),"",N$2&N31+'1学期'!N31+'2学期'!N31&"、") ->  | AG31: =IF(AND(O31="",'1学期'!O31="",'2学期'!O31=""),"",O$2&O31+'1学期'!O31+'2学期'!O31&"、") ->  | AH31: =IF(AND(P31="",'1学期'!P31="",'2学期'!P31=""),"",P$2&P31+'1学期'!P31+'2学期'!P31&"、") ->  | AI31: =IF(AND(Q31="",'1学期'!Q31="",'2学期'!Q31=""),"",Q$2&Q31+'1学期'!Q31+'2学期'!Q31&"、") ->  | AJ31: =IF(AND(R31="",'1学期'!R31="",'2学期'!R31=""),"",R$2&R31+'1学期'!R31+'2学期'!R31&"、") ->  | AK31: =IF(AND(S31="",'1学期'!S31="",'2学期'!S31=""),"",S$2&S31+'1学期'!S31+'2学期'!S31&"、") ->  | AL31: =IF(AND(T31="",'1学期'!T31="",'2学期'!T31=""),"",T$2&T31+'1学期'!T31+'2学期'!T31&"、") -> 頭痛1、 | AM31: =IF(AND(U31="",'1学期'!U31="",'2学期'!U31=""),"",U$2&U31+'1学期'!U31+'2学期'!U31&"、") ->  | AN31: =IF(AND(V31="",'1学期'!V31="",'2学期'!V31=""),"",V$2&V31+'1学期'!V31+'2学期'!V31&"、") ->  | AO31: =IF(AND(W31="",'1学期'!W31="",'2学期'!W31=""),"",W$2&W31+'1学期'!W31+'2学期'!W31&"、") ->  | AP31: =IF(AND(X31="",'1学期'!X31="",'2学期'!X31=""),"",X$2&X31+'1学期'!X31+'2学期'!X31&"、") ->  | AQ31: =IF(AND(Y31="",'1学期'!Y31="",'2学期'!Y31=""),"",Y$2&Y31+'1学期'!Y31+'2学期'!Y31&"、") ->  | AR31: =IF(AND(Z31="",'1学期'!Z31="",'2学期'!Z31=""),"",Z$2&Z31+'1学期'!Z31+'2学期'!Z31&"、") ->  | AT31: 頭痛1、
A32: =IF(名簿!$A30="","",名簿!$A30) -> 1130 | B32: =IFERROR(VLOOKUP($A32,名簿!$A:$C,3,0),"") -> 0 | C32: 56 | D32: 0 | E32: 0 | F32: 0 | G32: 0 | H32: 0 | J32: =IF(AT32="",IF(OR('1学期'!AA32="あり",'2学期'!AA32="あり",AA32="あり"),"特記事項なし","皆勤"),IF(AND('1学期'!AA32="",'2学期'!AA32="",AA32="",COUNTBLANK(AI32:AQ32)=COUNTA($AI$2:$AQ$2)),"皆勤、"&LEFT(AT32,LEN(AT32)-1),LEFT(AT32,LEN(AT32)-1))) -> 皆勤、感染症のため2 | M32: 2 | AD32: =IF(AND(L32="",'1学期'!L32="",'2学期'!L32=""),"",L$2&L32+'1学期'!L32+'2学期'!L32&"、") ->  | AE32: =IF(AND(M32="",'1学期'!M32="",'2学期'!M32=""),"",M$2&M32+'1学期'!M32+'2学期'!M32&"、") -> 感染症のため2、 | AF32: =IF(AND(N32="",'1学期'!N32="",'2学期'!N32=""),"",N$2&N32+'1学期'!N32+'2学期'!N32&"、") ->  | AG32: =IF(AND(O32="",'1学期'!O32="",'2学期'!O32=""),"",O$2&O32+'1学期'!O32+'2学期'!O32&"、") ->  | AH32: =IF(AND(P32="",'1学期'!P32="",'2学期'!P32=""),"",P$2&P32+'1学期'!P32+'2学期'!P32&"、") ->  | AI32: =IF(AND(Q32="",'1学期'!Q32="",'2学期'!Q32=""),"",Q$2&Q32+'1学期'!Q32+'2学期'!Q32&"、") ->  | AJ32: =IF(AND(R32="",'1学期'!R32="",'2学期'!R32=""),"",R$2&R32+'1学期'!R32+'2学期'!R32&"、") ->  | AK32: =IF(AND(S32="",'1学期'!S32="",'2学期'!S32=""),"",S$2&S32+'1学期'!S32+'2学期'!S32&"、") ->  | AL32: =IF(AND(T32="",'1学期'!T32="",'2学期'!T32=""),"",T$2&T32+'1学期'!T32+'2学期'!T32&"、") ->  | AM32: =IF(AND(U32="",'1学期'!U32="",'2学期'!U32=""),"",U$2&U32+'1学期'!U32+'2学期'!U32&"、") ->  | AN32: =IF(AND(V32="",'1学期'!V32="",'2学期'!V32=""),"",V$2&V32+'1学期'!V32+'2学期'!V32&"、") ->  | AO32: =IF(AND(W32="",'1学期'!W32="",'2学期'!W32=""),"",W$2&W32+'1学期'!W32+'2学期'!W32&"、") ->  | AP32: =IF(AND(X32="",'1学期'!X32="",'2学期'!X32=""),"",X$2&X32+'1学期'!X32+'2学期'!X32&"、") ->  | AQ32: =IF(AND(Y32="",'1学期'!Y32="",'2学期'!Y32=""),"",Y$2&Y32+'1学期'!Y32+'2学期'!Y32&"、") ->  | AR32: =IF(AND(Z32="",'1学期'!Z32="",'2学期'!Z32=""),"",Z$2&Z32+'1学期'!Z32+'2学期'!Z32&"、") ->  | AT32: 感染症のため2、
A33: =IF(名簿!$A31="","",名簿!$A31) -> 1131 | B33: =IFERROR(VLOOKUP($A33,名簿!$A:$C,3,0),"") -> 0 | C33: 56 | D33: 0 | E33: 0 | F33: 0 | G33: 0 | H33: 0 | J33: =IF(AT33="",IF(OR('1学期'!AA33="あり",'2学期'!AA33="あり",AA33="あり"),"特記事項なし","皆勤"),IF(AND('1学期'!AA33="",'2学期'!AA33="",AA33="",COUNTBLANK(AI33:AQ33)=COUNTA($AI$2:$AQ$2)),"皆勤、"&LEFT(AT33,LEN(AT33)-1),LEFT(AT33,LEN(AT33)-1))) -> 風邪2、頭痛1、感染症予防のため2 | S33: 2 | AD33: =IF(AND(L33="",'1学期'!L33="",'2学期'!L33=""),"",L$2&L33+'1学期'!L33+'2学期'!L33&"、") -> 感染症予防のため2、 | AE33: =IF(AND(M33="",'1学期'!M33="",'2学期'!M33=""),"",M$2&M33+'1学期'!M33+'2学期'!M33&"、") ->  | AF33: =IF(AND(N33="",'1学期'!N33="",'2学期'!N33=""),"",N$2&N33+'1学期'!N33+'2学期'!N33&"、") ->  | AG33: =IF(AND(O33="",'1学期'!O33="",'2学期'!O33=""),"",O$2&O33+'1学期'!O33+'2学期'!O33&"、") ->  | AH33: =IF(AND(P33="",'1学期'!P33="",'2学期'!P33=""),"",P$2&P33+'1学期'!P33+'2学期'!P33&"、") ->  | AI33: =IF(AND(Q33="",'1学期'!Q33="",'2学期'!Q33=""),"",Q$2&Q33+'1学期'!Q33+'2学期'!Q33&"、") ->  | AJ33: =IF(AND(R33="",'1学期'!R33="",'2学期'!R33=""),"",R$2&R33+'1学期'!R33+'2学期'!R33&"、") ->  | AK33: =IF(AND(S33="",'1学期'!S33="",'2学期'!S33=""),"",S$2&S33+'1学期'!S33+'2学期'!S33&"、") -> 風邪2、 | AL33: =IF(AND(T33="",'1学期'!T33="",'2学期'!T33=""),"",T$2&T33+'1学期'!T33+'2学期'!T33&"、") -> 頭痛1、 | AM33: =IF(AND(U33="",'1学期'!U33="",'2学期'!U33=""),"",U$2&U33+'1学期'!U33+'2学期'!U33&"、") ->  | AN33: =IF(AND(V33="",'1学期'!V33="",'2学期'!V33=""),"",V$2&V33+'1学期'!V33+'2学期'!V33&"、") ->  | AO33: =IF(AND(W33="",'1学期'!W33="",'2学期'!W33=""),"",W$2&W33+'1学期'!W33+'2学期'!W33&"、") ->  | AP33: =IF(AND(X33="",'1学期'!X33="",'2学期'!X33=""),"",X$2&X33+'1学期'!X33+'2学期'!X33&"、") ->  | AQ33: =IF(AND(Y33="",'1学期'!Y33="",'2学期'!Y33=""),"",Y$2&Y33+'1学期'!Y33+'2学期'!Y33&"、") ->  | AR33: =IF(AND(Z33="",'1学期'!Z33="",'2学期'!Z33=""),"",Z$2&Z33+'1学期'!Z33+'2学期'!Z33&"、") ->  | AT33: 風邪2、頭痛1、感染症予防のため2、
A34: =IF(名簿!$A32="","",名簿!$A32) -> 1132 | B34: =IFERROR(VLOOKUP($A34,名簿!$A:$C,3,0),"") -> 0 | C34: 56 | D34: 0 | E34: 0 | F34: 0 | G34: 0 | H34: 0 | J34: =IF(AT34="",IF(OR('1学期'!AA34="あり",'2学期'!AA34="あり",AA34="あり"),"特記事項なし","皆勤"),IF(AND('1学期'!AA34="",'2学期'!AA34="",AA34="",COUNTBLANK(AI34:AQ34)=COUNTA($AI$2:$AQ$2)),"皆勤、"&LEFT(AT34,LEN(AT34)-1),LEFT(AT34,LEN(AT34)-1))) -> 皆勤、感染症予防のため1、祖父葬儀3、入試1 | O34: 3 | AD34: =IF(AND(L34="",'1学期'!L34="",'2学期'!L34=""),"",L$2&L34+'1学期'!L34+'2学期'!L34&"、") -> 感染症予防のため1、 | AE34: =IF(AND(M34="",'1学期'!M34="",'2学期'!M34=""),"",M$2&M34+'1学期'!M34+'2学期'!M34&"、") ->  | AF34: =IF(AND(N34="",'1学期'!N34="",'2学期'!N34=""),"",N$2&N34+'1学期'!N34+'2学期'!N34&"、") ->  | AG34: =IF(AND(O34="",'1学期'!O34="",'2学期'!O34=""),"",O$2&O34+'1学期'!O34+'2学期'!O34&"、") -> 祖父葬儀3、 | AH34: =IF(AND(P34="",'1学期'!P34="",'2学期'!P34=""),"",P$2&P34+'1学期'!P34+'2学期'!P34&"、") -> 入試1、 | AI34: =IF(AND(Q34="",'1学期'!Q34="",'2学期'!Q34=""),"",Q$2&Q34+'1学期'!Q34+'2学期'!Q34&"、") ->  | AJ34: =IF(AND(R34="",'1学期'!R34="",'2学期'!R34=""),"",R$2&R34+'1学期'!R34+'2学期'!R34&"、") ->  | AK34: =IF(AND(S34="",'1学期'!S34="",'2学期'!S34=""),"",S$2&S34+'1学期'!S34+'2学期'!S34&"、") ->  | AL34: =IF(AND(T34="",'1学期'!T34="",'2学期'!T34=""),"",T$2&T34+'1学期'!T34+'2学期'!T34&"、") ->  | AM34: =IF(AND(U34="",'1学期'!U34="",'2学期'!U34=""),"",U$2&U34+'1学期'!U34+'2学期'!U34&"、") ->  | AN34: =IF(AND(V34="",'1学期'!V34="",'2学期'!V34=""),"",V$2&V34+'1学期'!V34+'2学期'!V34&"、") ->  | AO34: =IF(AND(W34="",'1学期'!W34="",'2学期'!W34=""),"",W$2&W34+'1学期'!W34+'2学期'!W34&"、") ->  | AP34: =IF(AND(X34="",'1学期'!X34="",'2学期'!X34=""),"",X$2&X34+'1学期'!X34+'2学期'!X34&"、") ->  | AQ34: =IF(AND(Y34="",'1学期'!Y34="",'2学期'!Y34=""),"",Y$2&Y34+'1学期'!Y34+'2学期'!Y34&"、") ->  | AR34: =IF(AND(Z34="",'1学期'!Z34="",'2学期'!Z34=""),"",Z$2&Z34+'1学期'!Z34+'2学期'!Z34&"、") ->  | AT34: 感染症予防のため1、祖父葬儀3、入試1、
A35: =IF(名簿!$A33="","",名簿!$A33) -> 1133 | B35: =IFERROR(VLOOKUP($A35,名簿!$A:$C,3,0),"") -> 0 | C35: 56 | D35: 0 | E35: 0 | F35: 0 | G35: 0 | H35: 0 | J35: =IF(AT35="",IF(OR('1学期'!AA35="あり",'2学期'!AA35="あり",AA35="あり"),"特記事項なし","皆勤"),IF(AND('1学期'!AA35="",'2学期'!AA35="",AA35="",COUNTBLANK(AI35:AQ35)=COUNTA($AI$2:$AQ$2)),"皆勤、"&LEFT(AT35,LEN(AT35)-1),LEFT(AT35,LEN(AT35)-1))) -> 感染症予防のため7、祖父葬儀3 | O35: 3 | AD35: =IF(AND(L35="",'1学期'!L35="",'2学期'!L35=""),"",L$2&L35+'1学期'!L35+'2学期'!L35&"、") -> 感染症予防のため7、 | AE35: =IF(AND(M35="",'1学期'!M35="",'2学期'!M35=""),"",M$2&M35+'1学期'!M35+'2学期'!M35&"、") ->  | AF35: =IF(AND(N35="",'1学期'!N35="",'2学期'!N35=""),"",N$2&N35+'1学期'!N35+'2学期'!N35&"、") ->  | AG35: =IF(AND(O35="",'1学期'!O35="",'2学期'!O35=""),"",O$2&O35+'1学期'!O35+'2学期'!O35&"、") -> 祖父葬儀3、 | AH35: =IF(AND(P35="",'1学期'!P35="",'2学期'!P35=""),"",P$2&P35+'1学期'!P35+'2学期'!P35&"、") ->  | AI35: =IF(AND(Q35="",'1学期'!Q35="",'2学期'!Q35=""),"",Q$2&Q35+'1学期'!Q35+'2学期'!Q35&"、") ->  | AJ35: =IF(AND(R35="",'1学期'!R35="",'2学期'!R35=""),"",R$2&R35+'1学期'!R35+'2学期'!R35&"、") ->  | AK35: =IF(AND(S35="",'1学期'!S35="",'2学期'!S35=""),"",S$2&S35+'1学期'!S35+'2学期'!S35&"、") ->  | AL35: =IF(AND(T35="",'1学期'!T35="",'2学期'!T35=""),"",T$2&T35+'1学期'!T35+'2学期'!T35&"、") ->  | AM35: =IF(AND(U35="",'1学期'!U35="",'2学期'!U35=""),"",U$2&U35+'1学期'!U35+'2学期'!U35&"、") ->  | AN35: =IF(AND(V35="",'1学期'!V35="",'2学期'!V35=""),"",V$2&V35+'1学期'!V35+'2学期'!V35&"、") ->  | AO35: =IF(AND(W35="",'1学期'!W35="",'2学期'!W35=""),"",W$2&W35+'1学期'!W35+'2学期'!W35&"、") ->  | AP35: =IF(AND(X35="",'1学期'!X35="",'2学期'!X35=""),"",X$2&X35+'1学期'!X35+'2学期'!X35&"、") ->  | AQ35: =IF(AND(Y35="",'1学期'!Y35="",'2学期'!Y35=""),"",Y$2&Y35+'1学期'!Y35+'2学期'!Y35&"、") ->  | AR35: =IF(AND(Z35="",'1学期'!Z35="",'2学期'!Z35=""),"",Z$2&Z35+'1学期'!Z35+'2学期'!Z35&"、") ->  | AT35: 感染症予防のため7、祖父葬儀3、
A36: =IF(名簿!$A34="","",名簿!$A34) -> 1134 | B36: =IFERROR(VLOOKUP($A36,名簿!$A:$C,3,0),"") -> 0 | C36: 56 | D36: 0 | E36: 0 | F36: 0 | G36: 0 | H36: 0 | J36: =IF(AT36="",IF(OR('1学期'!AA36="あり",'2学期'!AA36="あり",AA36="あり"),"特記事項なし","皆勤"),IF(AND('1学期'!AA36="",'2学期'!AA36="",AA36="",COUNTBLANK(AI36:AQ36)=COUNTA($AI$2:$AQ$2)),"皆勤、"&LEFT(AT36,LEN(AT36)-1),LEFT(AT36,LEN(AT36)-1))) -> 皆勤 | AD36: =IF(AND(L36="",'1学期'!L36="",'2学期'!L36=""),"",L$2&L36+'1学期'!L36+'2学期'!L36&"、") ->  | AE36: =IF(AND(M36="",'1学期'!M36="",'2学期'!M36=""),"",M$2&M36+'1学期'!M36+'2学期'!M36&"、") ->  | AF36: =IF(AND(N36="",'1学期'!N36="",'2学期'!N36=""),"",N$2&N36+'1学期'!N36+'2学期'!N36&"、") ->  | AG36: =IF(AND(O36="",'1学期'!O36="",'2学期'!O36=""),"",O$2&O36+'1学期'!O36+'2学期'!O36&"、") ->  | AH36: =IF(AND(P36="",'1学期'!P36="",'2学期'!P36=""),"",P$2&P36+'1学期'!P36+'2学期'!P36&"、") ->  | AI36: =IF(AND(Q36="",'1学期'!Q36="",'2学期'!Q36=""),"",Q$2&Q36+'1学期'!Q36+'2学期'!Q36&"、") ->  | AJ36: =IF(AND(R36="",'1学期'!R36="",'2学期'!R36=""),"",R$2&R36+'1学期'!R36+'2学期'!R36&"、") ->  | AK36: =IF(AND(S36="",'1学期'!S36="",'2学期'!S36=""),"",S$2&S36+'1学期'!S36+'2学期'!S36&"、") ->  | AL36: =IF(AND(T36="",'1学期'!T36="",'2学期'!T36=""),"",T$2&T36+'1学期'!T36+'2学期'!T36&"、") ->  | AM36: =IF(AND(U36="",'1学期'!U36="",'2学期'!U36=""),"",U$2&U36+'1学期'!U36+'2学期'!U36&"、") ->  | AN36: =IF(AND(V36="",'1学期'!V36="",'2学期'!V36=""),"",V$2&V36+'1学期'!V36+'2学期'!V36&"、") ->  | AO36: =IF(AND(W36="",'1学期'!W36="",'2学期'!W36=""),"",W$2&W36+'1学期'!W36+'2学期'!W36&"、") ->  | AP36: =IF(AND(X36="",'1学期'!X36="",'2学期'!X36=""),"",X$2&X36+'1学期'!X36+'2学期'!X36&"、") ->  | AQ36: =IF(AND(Y36="",'1学期'!Y36="",'2学期'!Y36=""),"",Y$2&Y36+'1学期'!Y36+'2学期'!Y36&"、") ->  | AR36: =IF(AND(Z36="",'1学期'!Z36="",'2学期'!Z36=""),"",Z$2&Z36+'1学期'!Z36+'2学期'!Z36&"、") -> 
A37: =IF(名簿!$A35="","",名簿!$A35) -> 1135 | B37: =IFERROR(VLOOKUP($A37,名簿!$A:$C,3,0),"") -> 0 | C37: 56 | D37: 0 | E37: 0 | F37: 0 | G37: 0 | H37: 0 | J37: =IF(AT37="",IF(OR('1学期'!AA37="あり",'2学期'!AA37="あり",AA37="あり"),"特記事項なし","皆勤"),IF(AND('1学期'!AA37="",'2学期'!AA37="",AA37="",COUNTBLANK(AI37:AQ37)=COUNTA($AI$2:$AQ$2)),"皆勤、"&LEFT(AT37,LEN(AT37)-1),LEFT(AT37,LEN(AT37)-1))) -> 体調不良3、腹痛1 | AD37: =IF(AND(L37="",'1学期'!L37="",'2学期'!L37=""),"",L$2&L37+'1学期'!L37+'2学期'!L37&"、") ->  | AE37: =IF(AND(M37="",'1学期'!M37="",'2学期'!M37=""),"",M$2&M37+'1学期'!M37+'2学期'!M37&"、") ->  | AF37: =IF(AND(N37="",'1学期'!N37="",'2学期'!N37=""),"",N$2&N37+'1学期'!N37+'2学期'!N37&"、") ->  | AG37: =IF(AND(O37="",'1学期'!O37="",'2学期'!O37=""),"",O$2&O37+'1学期'!O37+'2学期'!O37&"、") ->  | AH37: =IF(AND(P37="",'1学期'!P37="",'2学期'!P37=""),"",P$2&P37+'1学期'!P37+'2学期'!P37&"、") ->  | AI37: =IF(AND(Q37="",'1学期'!Q37="",'2学期'!Q37=""),"",Q$2&Q37+'1学期'!Q37+'2学期'!Q37&"、") -> 体調不良3、 | AJ37: =IF(AND(R37="",'1学期'!R37="",'2学期'!R37=""),"",R$2&R37+'1学期'!R37+'2学期'!R37&"、") ->  | AK37: =IF(AND(S37="",'1学期'!S37="",'2学期'!S37=""),"",S$2&S37+'1学期'!S37+'2学期'!S37&"、") ->  | AL37: =IF(AND(T37="",'1学期'!T37="",'2学期'!T37=""),"",T$2&T37+'1学期'!T37+'2学期'!T37&"、") ->  | AM37: =IF(AND(U37="",'1学期'!U37="",'2学期'!U37=""),"",U$2&U37+'1学期'!U37+'2学期'!U37&"、") -> 腹痛1、 | AN37: =IF(AND(V37="",'1学期'!V37="",'2学期'!V37=""),"",V$2&V37+'1学期'!V37+'2学期'!V37&"、") ->  | AO37: =IF(AND(W37="",'1学期'!W37="",'2学期'!W37=""),"",W$2&W37+'1学期'!W37+'2学期'!W37&"、") ->  | AP37: =IF(AND(X37="",'1学期'!X37="",'2学期'!X37=""),"",X$2&X37+'1学期'!X37+'2学期'!X37&"、") ->  | AQ37: =IF(AND(Y37="",'1学期'!Y37="",'2学期'!Y37=""),"",Y$2&Y37+'1学期'!Y37+'2学期'!Y37&"、") ->  | AR37: =IF(AND(Z37="",'1学期'!Z37="",'2学期'!Z37=""),"",Z$2&Z37+'1学期'!Z37+'2学期'!Z37&"、") ->  | AT37: 体調不良3、腹痛1、
A38: =IF(名簿!$A36="","",名簿!$A36) -> 1136 | B38: =IFERROR(VLOOKUP($A38,名簿!$A:$C,3,0),"") -> 0 | C38: 56 | D38: 0 | E38: 0 | F38: 0 | G38: 0 | H38: 0 | J38: =IF(AT38="",IF(OR('1学期'!AA38="あり",'2学期'!AA38="あり",AA38="あり"),"特記事項なし","皆勤"),IF(AND('1学期'!AA38="",'2学期'!AA38="",AA38="",COUNTBLANK(AI38:AQ38)=COUNTA($AI$2:$AQ$2)),"皆勤、"&LEFT(AT38,LEN(AT38)-1),LEFT(AT38,LEN(AT38)-1))) -> 頭痛3 | T38: 3 | AD38: =IF(AND(L38="",'1学期'!L38="",'2学期'!L38=""),"",L$2&L38+'1学期'!L38+'2学期'!L38&"、") ->  | AE38: =IF(AND(M38="",'1学期'!M38="",'2学期'!M38=""),"",M$2&M38+'1学期'!M38+'2学期'!M38&"、") ->  | AF38: =IF(AND(N38="",'1学期'!N38="",'2学期'!N38=""),"",N$2&N38+'1学期'!N38+'2学期'!N38&"、") ->  | AG38: =IF(AND(O38="",'1学期'!O38="",'2学期'!O38=""),"",O$2&O38+'1学期'!O38+'2学期'!O38&"、") ->  | AH38: =IF(AND(P38="",'1学期'!P38="",'2学期'!P38=""),"",P$2&P38+'1学期'!P38+'2学期'!P38&"、") ->  | AI38: =IF(AND(Q38="",'1学期'!Q38="",'2学期'!Q38=""),"",Q$2&Q38+'1学期'!Q38+'2学期'!Q38&"、") ->  | AJ38: =IF(AND(R38="",'1学期'!R38="",'2学期'!R38=""),"",R$2&R38+'1学期'!R38+'2学期'!R38&"、") ->  | AK38: =IF(AND(S38="",'1学期'!S38="",'2学期'!S38=""),"",S$2&S38+'1学期'!S38+'2学期'!S38&"、") ->  | AL38: =IF(AND(T38="",'1学期'!T38="",'2学期'!T38=""),"",T$2&T38+'1学期'!T38+'2学期'!T38&"、") -> 頭痛3、 | AM38: =IF(AND(U38="",'1学期'!U38="",'2学期'!U38=""),"",U$2&U38+'1学期'!U38+'2学期'!U38&"、") ->  | AN38: =IF(AND(V38="",'1学期'!V38="",'2学期'!V38=""),"",V$2&V38+'1学期'!V38+'2学期'!V38&"、") ->  | AO38: =IF(AND(W38="",'1学期'!W38="",'2学期'!W38=""),"",W$2&W38+'1学期'!W38+'2学期'!W38&"、") ->  | AP38: =IF(AND(X38="",'1学期'!X38="",'2学期'!X38=""),"",X$2&X38+'1学期'!X38+'2学期'!X38&"、") ->  | AQ38: =IF(AND(Y38="",'1学期'!Y38="",'2学期'!Y38=""),"",Y$2&Y38+'1学期'!Y38+'2学期'!Y38&"、") ->  | AR38: =IF(AND(Z38="",'1学期'!Z38="",'2学期'!Z38=""),"",Z$2&Z38+'1学期'!Z38+'2学期'!Z38&"、") ->  | AT38: 頭痛3、
A39: =IF(名簿!$A37="","",名簿!$A37) -> 1137 | B39: =IFERROR(VLOOKUP($A39,名簿!$A:$C,3,0),"") -> 0 | C39: 56 | D39: 0 | E39: 0 | F39: 0 | G39: 0 | H39: 0 | J39: =IF(AT39="",IF(OR('1学期'!AA39="あり",'2学期'!AA39="あり",AA39="あり"),"特記事項なし","皆勤"),IF(AND('1学期'!AA39="",'2学期'!AA39="",AA39="",COUNTBLANK(AI39:AQ39)=COUNTA($AI$2:$AQ$2)),"皆勤、"&LEFT(AT39,LEN(AT39)-1),LEFT(AT39,LEN(AT39)-1))) -> 皆勤、感染症予防のため1 | L39: 1 | AD39: =IF(AND(L39="",'1学期'!L39="",'2学期'!L39=""),"",L$2&L39+'1学期'!L39+'2学期'!L39&"、") -> 感染症予防のため1、 | AE39: =IF(AND(M39="",'1学期'!M39="",'2学期'!M39=""),"",M$2&M39+'1学期'!M39+'2学期'!M39&"、") ->  | AF39: =IF(AND(N39="",'1学期'!N39="",'2学期'!N39=""),"",N$2&N39+'1学期'!N39+'2学期'!N39&"、") ->  | AG39: =IF(AND(O39="",'1学期'!O39="",'2学期'!O39=""),"",O$2&O39+'1学期'!O39+'2学期'!O39&"、") ->  | AH39: =IF(AND(P39="",'1学期'!P39="",'2学期'!P39=""),"",P$2&P39+'1学期'!P39+'2学期'!P39&"、") ->  | AI39: =IF(AND(Q39="",'1学期'!Q39="",'2学期'!Q39=""),"",Q$2&Q39+'1学期'!Q39+'2学期'!Q39&"、") ->  | AJ39: =IF(AND(R39="",'1学期'!R39="",'2学期'!R39=""),"",R$2&R39+'1学期'!R39+'2学期'!R39&"、") ->  | AK39: =IF(AND(S39="",'1学期'!S39="",'2学期'!S39=""),"",S$2&S39+'1学期'!S39+'2学期'!S39&"、") ->  | AL39: =IF(AND(T39="",'1学期'!T39="",'2学期'!T39=""),"",T$2&T39+'1学期'!T39+'2学期'!T39&"、") ->  | AM39: =IF(AND(U39="",'1学期'!U39="",'2学期'!U39=""),"",U$2&U39+'1学期'!U39+'2学期'!U39&"、") ->  | AN39: =IF(AND(V39="",'1学期'!V39="",'2学期'!V39=""),"",V$2&V39+'1学期'!V39+'2学期'!V39&"、") ->  | AO39: =IF(AND(W39="",'1学期'!W39="",'2学期'!W39=""),"",W$2&W39+'1学期'!W39+'2学期'!W39&"、") ->  | AP39: =IF(AND(X39="",'1学期'!X39="",'2学期'!X39=""),"",X$2&X39+'1学期'!X39+'2学期'!X39&"、") ->  | AQ39: =IF(AND(Y39="",'1学期'!Y39="",'2学期'!Y39=""),"",Y$2&Y39+'1学期'!Y39+'2学期'!Y39&"、") ->  | AR39: =IF(AND(Z39="",'1学期'!Z39="",'2学期'!Z39=""),"",Z$2&Z39+'1学期'!Z39+'2学期'!Z39&"、") ->  | AT39: 感染症予防のため1、
A40: =IF(名簿!$A38="","",名簿!$A38) -> 1138 | B40: =IFERROR(VLOOKUP($A40,名簿!$A:$C,3,0),"") -> 0 | C40: 56 | D40: 0 | E40: 0 | F40: 0 | G40: 0 | H40: 0 | J40: =IF(AT40="",IF(OR('1学期'!AA40="あり",'2学期'!AA40="あり",AA40="あり"),"特記事項なし","皆勤"),IF(AND('1学期'!AA40="",'2学期'!AA40="",AA40="",COUNTBLANK(AI40:AQ40)=COUNTA($AI$2:$AQ$2)),"皆勤、"&LEFT(AT40,LEN(AT40)-1),LEFT(AT40,LEN(AT40)-1))) -> 皆勤 | AD40: =IF(AND(L40="",'1学期'!L40="",'2学期'!L40=""),"",L$2&L40+'1学期'!L40+'2学期'!L40&"、") ->  | AE40: =IF(AND(M40="",'1学期'!M40="",'2学期'!M40=""),"",M$2&M40+'1学期'!M40+'2学期'!M40&"、") ->  | AF40: =IF(AND(N40="",'1学期'!N40="",'2学期'!N40=""),"",N$2&N40+'1学期'!N40+'2学期'!N40&"、") ->  | AG40: =IF(AND(O40="",'1学期'!O40="",'2学期'!O40=""),"",O$2&O40+'1学期'!O40+'2学期'!O40&"、") ->  | AH40: =IF(AND(P40="",'1学期'!P40="",'2学期'!P40=""),"",P$2&P40+'1学期'!P40+'2学期'!P40&"、") ->  | AI40: =IF(AND(Q40="",'1学期'!Q40="",'2学期'!Q40=""),"",Q$2&Q40+'1学期'!Q40+'2学期'!Q40&"、") ->  | AJ40: =IF(AND(R40="",'1学期'!R40="",'2学期'!R40=""),"",R$2&R40+'1学期'!R40+'2学期'!R40&"、") ->  | AK40: =IF(AND(S40="",'1学期'!S40="",'2学期'!S40=""),"",S$2&S40+'1学期'!S40+'2学期'!S40&"、") ->  | AL40: =IF(AND(T40="",'1学期'!T40="",'2学期'!T40=""),"",T$2&T40+'1学期'!T40+'2学期'!T40&"、") ->  | AM40: =IF(AND(U40="",'1学期'!U40="",'2学期'!U40=""),"",U$2&U40+'1学期'!U40+'2学期'!U40&"、") ->  | AN40: =IF(AND(V40="",'1学期'!V40="",'2学期'!V40=""),"",V$2&V40+'1学期'!V40+'2学期'!V40&"、") ->  | AO40: =IF(AND(W40="",'1学期'!W40="",'2学期'!W40=""),"",W$2&W40+'1学期'!W40+'2学期'!W40&"、") ->  | AP40: =IF(AND(X40="",'1学期'!X40="",'2学期'!X40=""),"",X$2&X40+'1学期'!X40+'2学期'!X40&"、") ->  | AQ40: =IF(AND(Y40="",'1学期'!Y40="",'2学期'!Y40=""),"",Y$2&Y40+'1学期'!Y40+'2学期'!Y40&"、") ->  | AR40: =IF(AND(Z40="",'1学期'!Z40="",'2学期'!Z40=""),"",Z$2&Z40+'1学期'!Z40+'2学期'!Z40&"、") -> 
A41: =IF(名簿!$A39="","",名簿!$A39) -> 1139 | B41: =IFERROR(VLOOKUP($A41,名簿!$A:$C,3,0),"") -> 0 | C41: 56 | D41: 0 | E41: 0 | F41: 0 | G41: 0 | H41: 0 | J41: =IF(AT41="",IF(OR('1学期'!AA41="あり",'2学期'!AA41="あり",AA41="あり"),"特記事項なし","皆勤"),IF(AND('1学期'!AA41="",'2学期'!AA41="",AA41="",COUNTBLANK(AI41:AQ41)=COUNTA($AI$2:$AQ$2)),"皆勤、"&LEFT(AT41,LEN(AT41)-1),LEFT(AT41,LEN(AT41)-1))) -> 皆勤、感染症予防のため3 | L41: 3 | AD41: =IF(AND(L41="",'1学期'!L41="",'2学期'!L41=""),"",L$2&L41+'1学期'!L41+'2学期'!L41&"、") -> 感染症予防のため3、 | AE41: =IF(AND(M41="",'1学期'!M41="",'2学期'!M41=""),"",M$2&M41+'1学期'!M41+'2学期'!M41&"、") ->  | AF41: =IF(AND(N41="",'1学期'!N41="",'2学期'!N41=""),"",N$2&N41+'1学期'!N41+'2学期'!N41&"、") ->  | AG41: =IF(AND(O41="",'1学期'!O41="",'2学期'!O41=""),"",O$2&O41+'1学期'!O41+'2学期'!O41&"、") ->  | AH41: =IF(AND(P41="",'1学期'!P41="",'2学期'!P41=""),"",P$2&P41+'1学期'!P41+'2学期'!P41&"、") ->  | AI41: =IF(AND(Q41="",'1学期'!Q41="",'2学期'!Q41=""),"",Q$2&Q41+'1学期'!Q41+'2学期'!Q41&"、") ->  | AJ41: =IF(AND(R41="",'1学期'!R41="",'2学期'!R41=""),"",R$2&R41+'1学期'!R41+'2学期'!R41&"、") ->  | AK41: =IF(AND(S41="",'1学期'!S41="",'2学期'!S41=""),"",S$2&S41+'1学期'!S41+'2学期'!S41&"、") ->  | AL41: =IF(AND(T41="",'1学期'!T41="",'2学期'!T41=""),"",T$2&T41+'1学期'!T41+'2学期'!T41&"、") ->  | AM41: =IF(AND(U41="",'1学期'!U41="",'2学期'!U41=""),"",U$2&U41+'1学期'!U41+'2学期'!U41&"、") ->  | AN41: =IF(AND(V41="",'1学期'!V41="",'2学期'!V41=""),"",V$2&V41+'1学期'!V41+'2学期'!V41&"、") ->  | AO41: =IF(AND(W41="",'1学期'!W41="",'2学期'!W41=""),"",W$2&W41+'1学期'!W41+'2学期'!W41&"、") ->  | AP41: =IF(AND(X41="",'1学期'!X41="",'2学期'!X41=""),"",X$2&X41+'1学期'!X41+'2学期'!X41&"、") ->  | AQ41: =IF(AND(Y41="",'1学期'!Y41="",'2学期'!Y41=""),"",Y$2&Y41+'1学期'!Y41+'2学期'!Y41&"、") ->  | AR41: =IF(AND(Z41="",'1学期'!Z41="",'2学期'!Z41=""),"",Z$2&Z41+'1学期'!Z41+'2学期'!Z41&"、") ->  | AT41: 感染症予防のため3、
A42: =IF(名簿!$A40="","",名簿!$A40) -> 1140 | B42: =IFERROR(VLOOKUP($A42,名簿!$A:$C,3,0),"") -> 0 | C42: 56 | D42: 0 | E42: 0 | F42: 0 | G42: 0 | H42: 0 | J42: =IF(AT42="",IF(OR('1学期'!AA42="あり",'2学期'!AA42="あり",AA42="あり"),"特記事項なし","皆勤"),IF(AND('1学期'!AA42="",'2学期'!AA42="",AA42="",COUNTBLANK(AI42:AQ42)=COUNTA($AI$2:$AQ$2)),"皆勤、"&LEFT(AT42,LEN(AT42)-1),LEFT(AT42,LEN(AT42)-1))) -> 皆勤 | AD42: =IF(AND(L42="",'1学期'!L42="",'2学期'!L42=""),"",L$2&L42+'1学期'!L42+'2学期'!L42&"、") ->  | AE42: =IF(AND(M42="",'1学期'!M42="",'2学期'!M42=""),"",M$2&M42+'1学期'!M42+'2学期'!M42&"、") ->  | AF42: =IF(AND(N42="",'1学期'!N42="",'2学期'!N42=""),"",N$2&N42+'1学期'!N42+'2学期'!N42&"、") ->  | AG42: =IF(AND(O42="",'1学期'!O42="",'2学期'!O42=""),"",O$2&O42+'1学期'!O42+'2学期'!O42&"、") ->  | AH42: =IF(AND(P42="",'1学期'!P42="",'2学期'!P42=""),"",P$2&P42+'1学期'!P42+'2学期'!P42&"、") ->  | AI42: =IF(AND(Q42="",'1学期'!Q42="",'2学期'!Q42=""),"",Q$2&Q42+'1学期'!Q42+'2学期'!Q42&"、") ->  | AJ42: =IF(AND(R42="",'1学期'!R42="",'2学期'!R42=""),"",R$2&R42+'1学期'!R42+'2学期'!R42&"、") ->  | AK42: =IF(AND(S42="",'1学期'!S42="",'2学期'!S42=""),"",S$2&S42+'1学期'!S42+'2学期'!S42&"、") ->  | AL42: =IF(AND(T42="",'1学期'!T42="",'2学期'!T42=""),"",T$2&T42+'1学期'!T42+'2学期'!T42&"、") ->  | AM42: =IF(AND(U42="",'1学期'!U42="",'2学期'!U42=""),"",U$2&U42+'1学期'!U42+'2学期'!U42&"、") ->  | AN42: =IF(AND(V42="",'1学期'!V42="",'2学期'!V42=""),"",V$2&V42+'1学期'!V42+'2学期'!V42&"、") ->  | AO42: =IF(AND(W42="",'1学期'!W42="",'2学期'!W42=""),"",W$2&W42+'1学期'!W42+'2学期'!W42&"、") ->  | AP42: =IF(AND(X42="",'1学期'!X42="",'2学期'!X42=""),"",X$2&X42+'1学期'!X42+'2学期'!X42&"、") ->  | AQ42: =IF(AND(Y42="",'1学期'!Y42="",'2学期'!Y42=""),"",Y$2&Y42+'1学期'!Y42+'2学期'!Y42&"、") ->  | AR42: =IF(AND(Z42="",'1学期'!Z42="",'2学期'!Z42=""),"",Z$2&Z42+'1学期'!Z42+'2学期'!Z42&"、") -> 
AA45: あり

Sheet 出席簿に貼る
B7: 番号 | C7: 名前 | D7: 出席停止 | E7: 忌引 | F7: 体調不良 | G7: 発熱 | H7: 風邪 | I7: 頭痛 | J7: 腹痛 | K7: 腰痛 | L7: 通院 | M7: 怪我 | N7: 家事都合 | O7: その他
B8: =IF(名簿!$A1="","",名簿!$A1) -> 1101 | C8: =IFERROR(VLOOKUP($B8,名簿!$A:$C,3,0),"") -> 田中太郎
B9: =IF(名簿!$A2="","",名簿!$A2) -> 1102 | C9: =IFERROR(VLOOKUP($B9,名簿!$A:$C,3,0),"") -> 小林治郎
B10: =IF(名簿!$A3="","",名簿!$A3) -> 1103 | C10: =IFERROR(VLOOKUP($B10,名簿!$A:$C,3,0),"") -> 佐藤三郎
B11: =IF(名簿!$A4="","",名簿!$A4) -> 1104 | C11: =IFERROR(VLOOKUP($B11,名簿!$A:$C,3,0),"") -> 山田花子
B12: =IF(名簿!$A5="","",名簿!$A5) -> 1105 | C12: =IFERROR(VLOOKUP($B12,名簿!$A:$C,3,0),"") -> 山本とし子
B13: =IF(名簿!$A6="","",名簿!$A6) -> 1106 | C13: =IFERROR(VLOOKUP($B13,名簿!$A:$C,3,0),"") -> 0
B14: =IF(名簿!$A7="","",名簿!$A7) -> 1107 | C14: =IFERROR(VLOOKUP($B14,名簿!$A:$C,3,0),"") -> 0
B15: =IF(名簿!$A8="","",名簿!$A8) -> 1108 | C15: =IFERROR(VLOOKUP($B15,名簿!$A:$C,3,0),"") -> 0
B16: =IF(名簿!$A9="","",名簿!$A9) -> 1109 | C16: =IFERROR(VLOOKUP($B16,名簿!$A:$C,3,0),"") -> 0
B17: =IF(名簿!$A10="","",名簿!$A10) -> 1110 | C17: =IFERROR(VLOOKUP($B17,名簿!$A:$C,3,0),"") -> 0
B18: =IF(名簿!$A11="","",名簿!$A11) -> 1111 | C18: =IFERROR(VLOOKUP($B18,名簿!$A:$C,3,0),"") -> 0
B19: =IF(名簿!$A12="","",名簿!$A12) -> 1112 | C19: =IFERROR(VLOOKUP($B19,名簿!$A:$C,3,0),"") -> 0
B20: =IF(名簿!$A13="","",名簿!$A13) -> 1113 | C20: =IFERROR(VLOOKUP($B20,名簿!$A:$C,3,0),"") -> 0
B21: =IF(名簿!$A14="","",名簿!$A14) -> 1114 | C21: =IFERROR(VLOOKUP($B21,名簿!$A:$C,3,0),"") -> 0
B22: =IF(名簿!$A15="","",名簿!$A15) -> 1115 | C22: =IFERROR(VLOOKUP($B22,名簿!$A:$C,3,0),"") -> 0
B23: =IF(名簿!$A16="","",名簿!$A16) -> 1116 | C23: =IFERROR(VLOOKUP($B23,名簿!$A:$C,3,0),"") -> 0
B24: =IF(名簿!$A17="","",名簿!$A17) -> 1117 | C24: =IFERROR(VLOOKUP($B24,名簿!$A:$C,3,0),"") -> 0
B25: =IF(名簿!$A18="","",名簿!$A18) -> 1118 | C25: =IFERROR(VLOOKUP($B25,名簿!$A:$C,3,0),"") -> 0
B26: =IF(名簿!$A19="","",名簿!$A19) -> 1119 | C26: =IFERROR(VLOOKUP($B26,名簿!$A:$C,3,0),"") -> 0
B27: =IF(名簿!$A20="","",名簿!$A20) -> 1120 | C27: =IFERROR(VLOOKUP($B27,名簿!$A:$C,3,0),"") -> 0
B28: =IF(名簿!$A21="","",名簿!$A21) -> 1121 | C28: =IFERROR(VLOOKUP($B28,名簿!$A:$C,3,0),"") -> 0
B29: =IF(名簿!$A22="","",名簿!$A22) -> 1122 | C29: =IFERROR(VLOOKUP($B29,名簿!$A:$C,3,0),"") -> 0
B30: =IF(名簿!$A23="","",名簿!$A23) -> 1123 | C30: =IFERROR(VLOOKUP($B30,名簿!$A:$C,3,0),"") -> 0
B31: =IF(名簿!$A24="","",名簿!$A24) -> 1124 | C31: =IFERROR(VLOOKUP($B31,名簿!$A:$C,3,0),"") -> 0
B32: =IF(名簿!$A25="","",名簿!$A25) -> 1125 | C32: =IFERROR(VLOOKUP($B32,名簿!$A:$C,3,0),"") -> 0
B33: =IF(名簿!$A26="","",名簿!$A26) -> 1126 | C33: =IFERROR(VLOOKUP($B33,名簿!$A:$C,3,0),"") -> 0
B34: =IF(名簿!$A27="","",名簿!$A27) -> 1127 | C34: =IFERROR(VLOOKUP($B34,名簿!$A:$C,3,0),"") -> 0
B35: =IF(名簿!$A28="","",名簿!$A28) -> 1128 | C35: =IFERROR(VLOOKUP($B35,名簿!$A:$C,3,0),"") -> 0
B36: =IF(名簿!$A29="","",名簿!$A29) -> 1129 | C36: =IFERROR(VLOOKUP($B36,名簿!$A:$C,3,0),"") -> 0
B37: =IF(名簿!$A30="","",名簿!$A30) -> 1130 | C37: =IFERROR(VLOOKUP($B37,名簿!$A:$C,3,0),"") -> 0
B38: =IF(名簿!$A31="","",名簿!$A31) -> 1131 | C38: =IFERROR(VLOOKUP($B38,名簿!$A:$C,3,0),"") -> 0
B39: =IF(名簿!$A32="","",名簿!$A32) -> 1132 | C39: =IFERROR(VLOOKUP($B39,名簿!$A:$C,3,0),"") -> 0
B40: =IF(名簿!$A33="","",名簿!$A33) -> 1133 | C40: =IFERROR(VLOOKUP($B40,名簿!$A:$C,3,0),"") -> 0
B41: =IF(名簿!$A34="","",名簿!$A34) -> 1134 | C41: =IFERROR(VLOOKUP($B41,名簿!$A:$C,3,0),"") -> 0
B42: =IF(名簿!$A35="","",名簿!$A35) -> 1135 | C42: =IFERROR(VLOOKUP($B42,名簿!$A:$C,3,0),"") -> 0
B43: =IF(名簿!$A36="","",名簿!$A36) -> 1136 | C43: =IFERROR(VLOOKUP($B43,名簿!$A:$C,3,0),"") -> 0
B44: =IF(名簿!$A37="","",名簿!$A37) -> 1137 | C44: =IFERROR(VLOOKUP($B44,名簿!$A:$C,3,0),"") -> 0
B45: =IF(名簿!$A38="","",名簿!$A38) -> 1138 | C45: =IFERROR(VLOOKUP($B45,名簿!$A:$C,3,0),"") -> 0
B46: =IF(名簿!$A39="","",名簿!$A39) -> 1139 | C46: =IFERROR(VLOOKUP($B46,名簿!$A:$C,3,0),"") -> 0
B47: =IF(名簿!$A40="","",名簿!$A40) -> 1140 | C47: =IFERROR(VLOOKUP($B47,名簿!$A:$C,3,0),"") -> 0

Sheet 名簿
A1: 1101 | B1: 1 | C1: 田中太郎
A2: 1102 | B2: 2 | C2: 小林治郎
A3: 1103 | B3: 3 | C3: 佐藤三郎
A4: 1104 | B4: 4 | C4: 山田花子
A5: 1105 | B5: 5 | C5: 山本とし子
A6: 1106 | B6: 6
A7: 1107 | B7: 7
A8: 1108 | B8: 8
A9: 1109 | B9: 9
A10: 1110 | B10: 10
A11: 1111 | B11: 11
A12: 1112 | B12: 12
A13: 1113 | B13: 13
A14: 1114 | B14: 14
A15: 1115 | B15: 15
A16: 1116 | B16: 16
A17: 1117 | B17: 17
A18: 1118 | B18: 18
A19: 1119 | B19: 19
A20: 1120 | B20: 20
A21: 1121 | B21: 21
A22: 1122 | B22: 22
A23: 1123 | B23: 23
A24: 1124 | B24: 24
A25: 1125 | B25: 25
A26: 1126 | B26: 26
A27: 1127 | B27: 27
A28: 1128 | B28: 28
A29: 1129 | B29: 29
A30: 1130 | B30: 30
A31: 1131 | B31: 31
A32: 1132 | B32: 32
A33: 1133 | B33: 33
A34: 1134 | B34: 34
A35: 1135 | B35: 35
A36: 1136 | B36: 36
A37: 1137 | B37: 37
A38: 1138 | B38: 38
A39: 1139 | B39: 39
A40: 1140 | B40: 40
